Workbook

Sheet Kugeln
AE1: TRUE
B2: Anzahl der Kugeln | H2: 49
Y3: Aufschrift | Z3: Farbe
B4: entweder | X4: =CONCATENATE("(",Y4,", ",Z4,")") -> (7, grün) | Y4: 7 | Z4: grün | AB4: =IF(J65<=$H$2,IF($H$14=TRUE,Q65,IF(AND($H$7=TRUE,$H$9=TRUE),P65,IF($H$7=TRUE,J65,""))),"") -> 3 | AC4: =IF($H$21=TRUE,IF(J65<=$H$2,S65,""),"") -> grau
X5: =CONCATENATE("(",Y5,", ",Z5,")") -> (8, grün) | Y5: 8 | Z5: grün | AB5: 2 | AC5: grün
X6: (4, grün) | Y6: 4 | Z6: grün | AB6: 8 | AC6: rot
H7: FALSE | X7: (2, grau) | Y7: 2 | Z7: grau | AB7: 7 | AC7: rot
X8: (2, grün) | Y8: 2 | Z8: grün | AB8: 3 | AC8: grün
H9: FALSE | X9: (5, gelb) | Y9: 5 | Z9: gelb | AB9: 6 | AC9: gelb
X10: (8, blau) | Y10: 8 | Z10: blau | AB10: 8 | AC10: grau
B11: oder | X11: (9, grün) | Y11: 9 | Z11: grün | AB11: 7 | AC11: gelb
X12: (6, gelb) | Y12: 6 | Z12: gelb | AB12: 9 | AC12: grün
X13: (7, gelb) | Y13: 7 | Z13: gelb | AB13: 8 | AC13: gelb
H14: TRUE | X14: (8, grün) | Y14: 8 | Z14: grün | AB14: 7 | AC14: grün
X15: (7, grau) | Y15: 7 | Z15: grau | AB15: 7 | AC15: rot
C16: Minimum | H16: 2 | X16: (4, grau) | Y16: 4 | Z16: grau | AB16: 7 | AC16: grün | AG16: Schritte 1. - 5. können per Makro durchgeführt werden mit Tastenkombination:
X17: (2, grau) | Y17: 2 | Z17: grau | AB17: 7 | AC17: rot
C18: Maximum | H18: 9 | X18: (5, gelb) | Y18: 5 | Z18: gelb | AB18: 5 | AC18: grau
X19: (3, gelb) | Y19: 3 | Z19: gelb | AB19: 5 | AC19: rot
X20: (7, rot) | Y20: 7 | Z20: rot | AB20: 2 | AC20: rot
H21: TRUE | X21: (5, grau) | Y21: 5 | Z21: grau | AB21: 7 | AC21: blau
X22: (2, blau) | Y22: 2 | Z22: blau | AB22: 3 | AC22: grün
C23: Anzahl der Farben | H23: 5 | X23: (9, gelb) | Y23: 9 | Z23: gelb | AB23: 7 | AC23: rot
X24: (8, grün) | Y24: 8 | Z24: grün | AB24: 6 | AC24: blau | AK24: Strg + N
X25: (2, rot) | Y25: 2 | Z25: rot | AB25: 3 | AC25: grün
X26: (2, grau) | Y26: 2 | Z26: grau | AB26: 3 | AC26: grün
X27: (2, grün) | Y27: 2 | Z27: grün | AB27: 7 | AC27: gelb
X28: (5, grau) | Y28: 5 | Z28: grau | AB28: 3 | AC28: gelb
X29: (9, blau) | Y29: 9 | Z29: blau | AB29: 4 | AC29: blau
X30: (4, grün) | Y30: 4 | Z30: grün | AB30: 2 | AC30: gelb
X31: (3, grau) | Y31: 3 | Z31: grau | AB31: 2 | AC31: gelb
X32: (6, rot) | Y32: 6 | Z32: rot | AB32: 8 | AC32: grün
X33: (9, gelb) | Y33: 9 | Z33: gelb | AB33: 4 | AC33: gelb
X34: (7, grau) | Y34: 7 | Z34: grau | AB34: 7 | AC34: blau
X35: (7, blau) | Y35: 7 | Z35: blau | AB35: 8 | AC35: blau
X36: (6, rot) | Y36: 6 | Z36: rot | AB36: =IF(J97<=$H$2,IF($H$14=TRUE,Q97,IF(AND($H$7=TRUE,$H$9=TRUE),P97,IF($H$7=TRUE,J97,""))),"") -> 4 | AC36: =IF($H$21=TRUE,IF(J97<=$H$2,S97,""),"") -> grau
X37: (5, grün) | Y37: 5 | Z37: grün | AB37: 7 | AC37: rot
X38: (7, grün) | Y38: 7 | Z38: grün | AB38: 2 | AC38: gelb
X39: (5, blau) | Y39: 5 | Z39: blau | AB39: 5 | AC39: grün
X40: (2, grau) | Y40: 2 | Z40: grau | AB40: 6 | AC40: grün
X41: (9, grün) | Y41: 9 | Z41: grün | AB41: 9 | AC41: rot
X42: (6, grün) | Y42: 6 | Z42: grün | AB42: 3 | AC42: rot
X43: (8, rot) | Y43: 8 | Z43: rot | AB43: 4 | AC43: rot
X44: (4, rot) | Y44: 4 | Z44: rot | AB44: 2 | AC44: grau
X45: (6, gelb) | Y45: 6 | Z45: gelb | AB45: 3 | AC45: rot
X46: (5, blau) | Y46: 5 | Z46: blau | AB46: 3 | AC46: blau
X47: (6, grau) | Y47: 6 | Z47: grau | AB47: 3 | AC47: blau
X48: (3, grün) | Y48: 3 | Z48: grün | AB48: 2 | AC48: grün
X49: (6, grün) | Y49: 6 | Z49: grün | AB49: 7 | AC49: blau
X50: (8, grau) | Y50: 8 | Z50: grau | AB50: 9 | AC50: grau
X51: (4, gelb) | Y51: 4 | Z51: gelb | AB51: 5 | AC51: rot
X52: (9, blau) | Y52: 9 | Z52: blau | AB52: 9 | AC52: grün
X54: Anzahl: | Y54: =IF(COUNTBLANK(Y4:Y52)<49,49-COUNTBLANK(Y4:Y52),IF(COUNTBLANK(Z4:Z52)<49,49-COUNTBLANK(Z4:Z52),0)) -> 49
P63: umsortiert | U63: Farbnr.
J64: Nr. | K64: Zahl | L64: Farbnr. | M64: Farbe | N64: Zufallszahl | O64: Sortierung | P64: Nr. | Q64: Zahl | R64: Farbnr. | S64: Farbe | U64: rot | W64: 1
J65: 1 | K65: =RANDBETWEEN($H$16,$H$18) -> 7 | L65: =RANDBETWEEN(1,$H$23) -> 3 | M65: =IF(L65=$W$64,$U$64,IF(L65=$W$65,$U$65,IF(L65=$W$66,$U$66,IF(L65=$W$67,$U$67,IF(L65=$W$68,$U$68))))) -> blau | N65: =ROUND(RAND(),30) -> 0.2529602406 | O65: =SMALL($N$65:INDIRECT("$N"&ROW($J$65)+$H$2-1),J65) -> 0.09178516634 | P65: =MATCH(N65,$O$65:INDIRECT("$O"&ROW($J$65)+$H$2-1),1) -> 11 | Q65: =INDEX($K$65:INDIRECT("$K"&ROW($J$65)+$H$2-1),P65) -> 3 | R65: =INDEX($L$65:INDIRECT("$L"&ROW($J$65)+$H$2-1),P65) -> 5 | S65: =INDEX($M$65:INDIRECT("$M"&ROW($J$65)+$H$2-1),P65) -> grau | U65: grün | W65: 2
J66: 2 | K66: 5 | L66: 2 | M66: grün | N66: =ROUND(RAND(),30) -> 0.5619109332 | O66: =SMALL($N$65:INDIRECT("$N"&ROW($J$65)+$H$2-1),J66) -> 0.09609139129 | P66: =MATCH(N66,$O$65:INDIRECT("$O"&ROW($J$65)+$H$2-1),1) -> 28 | Q66: =INDEX($K$65:INDIRECT("$K"&ROW($J$65)+$H$2-1),P66) -> 2 | R66: =INDEX($L$65:INDIRECT("$L"&ROW($J$65)+$H$2-1),P66) -> 2 | S66: =INDEX($M$65:INDIRECT("$M"&ROW($J$65)+$H$2-1),P66) -> grün | U66: blau | W66: 3
J67: 3 | K67: 8 | L67: 5 | M67: grau | N67: 0.8440835649 | O67: =SMALL($N$65:INDIRECT("$N"&ROW($J$65)+$H$2-1),J67) -> 0.09966438511 | P67: =MATCH(N67,$O$65:INDIRECT("$O"&ROW($J$65)+$H$2-1),1) -> 41 | Q67: =INDEX($K$65:INDIRECT("$K"&ROW($J$65)+$H$2-1),P67) -> 8 | R67: =INDEX($L$65:INDIRECT("$L"&ROW($J$65)+$H$2-1),P67) -> 1 | S67: =INDEX($M$65:INDIRECT("$M"&ROW($J$65)+$H$2-1),P67) -> rot | U67: gelb | W67: 4
J68: 4 | K68: 2 | L68: 4 | M68: gelb | N68: 0.3131111739 | O68: =SMALL($N$65:INDIRECT("$N"&ROW($J$65)+$H$2-1),J68) -> 0.122607986 | P68: =MATCH(N68,$O$65:INDIRECT("$O"&ROW($J$65)+$H$2-1),1) -> 19 | Q68: =INDEX($K$65:INDIRECT("$K"&ROW($J$65)+$H$2-1),P68) -> 7 | R68: =INDEX($L$65:INDIRECT("$L"&ROW($J$65)+$H$2-1),P68) -> 1 | S68: =INDEX($M$65:INDIRECT("$M"&ROW($J$65)+$H$2-1),P68) -> rot | U68: grau | W68: 5
J69: 5 | K69: 3 | L69: 2 | M69: grün | N69: 0.916216527 | O69: =SMALL($N$65:INDIRECT("$N"&ROW($J$65)+$H$2-1),J69) -> 0.1377716999 | P69: =MATCH(N69,$O$65:INDIRECT("$O"&ROW($J$65)+$H$2-1),1) -> 44 | Q69: =INDEX($K$65:INDIRECT("$K"&ROW($J$65)+$H$2-1),P69) -> 3 | R69: =INDEX($L$65:INDIRECT("$L"&ROW($J$65)+$H$2-1),P69) -> 2 | S69: =INDEX($M$65:INDIRECT("$M"&ROW($J$65)+$H$2-1),P69) -> grün
J70: 6 | K70: 7 | L70: 3 | M70: blau | N70: 0.2645284758 | O70: =SMALL($N$65:INDIRECT("$N"&ROW($J$65)+$H$2-1),J70) -> 0.1493894953 | P70: =MATCH(N70,$O$65:INDIRECT("$O"&ROW($J$65)+$H$2-1),1) -> 14 | Q70: =INDEX($K$65:INDIRECT("$K"&ROW($J$65)+$H$2-1),P70) -> 6 | R70: =INDEX($L$65:INDIRECT("$L"&ROW($J$65)+$H$2-1),P70) -> 4 | S70: =INDEX($M$65:INDIRECT("$M"&ROW($J$65)+$H$2-1),P70) -> gelb
J71: 7 | K71: 3 | L71: 3 | M71: blau | N71: 0.09966438511 | O71: =SMALL($N$65:INDIRECT("$N"&ROW($J$65)+$H$2-1),J71) -> 0.189549756 | P71: =MATCH(N71,$O$65:INDIRECT("$O"&ROW($J$65)+$H$2-1),1) -> 3 | Q71: =INDEX($K$65:INDIRECT("$K"&ROW($J$65)+$H$2-1),P71) -> 8 | R71: =INDEX($L$65:INDIRECT("$L"&ROW($J$65)+$H$2-1),P71) -> 5 | S71: =INDEX($M$65:INDIRECT("$M"&ROW($J$65)+$H$2-1),P71) -> grau
J72: 8 | K72: 7 | L72: 4 | M72: gelb | N72: 0.3170443071 | O72: =SMALL($N$65:INDIRECT("$N"&ROW($J$65)+$H$2-1),J72) -> 0.1976682238 | P72: =MATCH(N72,$O$65:INDIRECT("$O"&ROW($J$65)+$H$2-1),1) -> 20 | Q72: =INDEX($K$65:INDIRECT("$K"&ROW($J$65)+$H$2-1),P72) -> 7 | R72: =INDEX($L$65:INDIRECT("$L"&ROW($J$65)+$H$2-1),P72) -> 4 | S72: =INDEX($M$65:INDIRECT("$M"&ROW($J$65)+$H$2-1),P72) -> gelb
J73: 9 | K73: 2 | L73: 5 | M73: grau | N73: 0.2619575214 | O73: =SMALL($N$65:INDIRECT("$N"&ROW($J$65)+$H$2-1),J73) -> 0.2022388262 | P73: =MATCH(N73,$O$65:INDIRECT("$O"&ROW($J$65)+$H$2-1),1) -> 13 | Q73: =INDEX($K$65:INDIRECT("$K"&ROW($J$65)+$H$2-1),P73) -> 9 | R73: =INDEX($L$65:INDIRECT("$L"&ROW($J$65)+$H$2-1),P73) -> 2 | S73: =INDEX($M$65:INDIRECT("$M"&ROW($J$65)+$H$2-1),P73) -> grün
J74: 10 | K74: 5 | L74: 1 | M74: rot | N74: 0.8375179701 | O74: =SMALL($N$65:INDIRECT("$N"&ROW($J$65)+$H$2-1),J74) -> 0.233464572 | P74: =MATCH(N74,$O$65:INDIRECT("$O"&ROW($J$65)+$H$2-1),1) -> 40 | Q74: =INDEX($K$65:INDIRECT("$K"&ROW($J$65)+$H$2-1),P74) -> 8 | R74: =INDEX($L$65:INDIRECT("$L"&ROW($J$65)+$H$2-1),P74) -> 4 | S74: =INDEX($M$65:INDIRECT("$M"&ROW($J$65)+$H$2-1),P74) -> gelb
J75: 11 | K75: 3 | L75: 5 | M75: grau | N75: 0.365486304 | O75: =SMALL($N$65:INDIRECT("$N"&ROW($J$65)+$H$2-1),J75) -> 0.2529602406 | P75: =MATCH(N75,$O$65:INDIRECT("$O"&ROW($J$65)+$H$2-1),1) -> 21 | Q75: =INDEX($K$65:INDIRECT("$K"&ROW($J$65)+$H$2-1),P75) -> 7 | R75: =INDEX($L$65:INDIRECT("$L"&ROW($J$65)+$H$2-1),P75) -> 2 | S75: =INDEX($M$65:INDIRECT("$M"&ROW($J$65)+$H$2-1),P75) -> grün
J76: 12 | K76: 7 | L76: 1 | M76: rot | N76: 0.5115112641 | O76: =SMALL($N$65:INDIRECT("$N"&ROW($J$65)+$H$2-1),J76) -> 0.2597220873 | P76: =MATCH(N76,$O$65:INDIRECT("$O"&ROW($J$65)+$H$2-1),1) -> 26 | Q76: =INDEX($K$65:INDIRECT("$K"&ROW($J$65)+$H$2-1),P76) -> 7 | R76: =INDEX($L$65:INDIRECT("$L"&ROW($J$65)+$H$2-1),P76) -> 1 | S76: =INDEX($M$65:INDIRECT("$M"&ROW($J$65)+$H$2-1),P76) -> rot
J77: 13 | K77: 9 | L77: 2 | M77: grün | N77: 0.3915632021 | O77: =SMALL($N$65:INDIRECT("$N"&ROW($J$65)+$H$2-1),J77) -> 0.2619575214 | P77: =MATCH(N77,$O$65:INDIRECT("$O"&ROW($J$65)+$H$2-1),1) -> 22 | Q77: =INDEX($K$65:INDIRECT("$K"&ROW($J$65)+$H$2-1),P77) -> 7 | R77: =INDEX($L$65:INDIRECT("$L"&ROW($J$65)+$H$2-1),P77) -> 2 | S77: =INDEX($M$65:INDIRECT("$M"&ROW($J$65)+$H$2-1),P77) -> grün
J78: 14 | K78: 6 | L78: 4 | M78: gelb | N78: 0.5588775696 | O78: =SMALL($N$65:INDIRECT("$N"&ROW($J$65)+$H$2-1),J78) -> 0.2645284758 | P78: =MATCH(N78,$O$65:INDIRECT("$O"&ROW($J$65)+$H$2-1),1) -> 27 | Q78: =INDEX($K$65:INDIRECT("$K"&ROW($J$65)+$H$2-1),P78) -> 7 | R78: =INDEX($L$65:INDIRECT("$L"&ROW($J$65)+$H$2-1),P78) -> 1 | S78: =INDEX($M$65:INDIRECT("$M"&ROW($J$65)+$H$2-1),P78) -> rot
J79: 15 | K79: 9 | L79: 5 | M79: grau | N79: 0.9558413877 | O79: =SMALL($N$65:INDIRECT("$N"&ROW($J$65)+$H$2-1),J79) -> 0.276642771 | P79: =MATCH(N79,$O$65:INDIRECT("$O"&ROW($J$65)+$H$2-1),1) -> 45 | Q79: =INDEX($K$65:INDIRECT("$K"&ROW($J$65)+$H$2-1),P79) -> 5 | R79: =INDEX($L$65:INDIRECT("$L"&ROW($J$65)+$H$2-1),P79) -> 5 | S79: =INDEX($M$65:INDIRECT("$M"&ROW($J$65)+$H$2-1),P79) -> grau
J80: 16 | K80: 9 | L80: 2 | M80: grün | N80: 0.233464572 | O80: =SMALL($N$65:INDIRECT("$N"&ROW($J$65)+$H$2-1),J80) -> 0.2895257586 | P80: =MATCH(N80,$O$65:INDIRECT("$O"&ROW($J$65)+$H$2-1),1) -> 10 | Q80: =INDEX($K$65:INDIRECT("$K"&ROW($J$65)+$H$2-1),P80) -> 5 | R80: =INDEX($L$65:INDIRECT("$L"&ROW($J$65)+$H$2-1),P80) -> 1 | S80: =INDEX($M$65:INDIRECT("$M"&ROW($J$65)+$H$2-1),P80) -> rot
J81: 17 | K81: 6 | L81: 3 | M81: blau | N81: 0.8995015541 | O81: =SMALL($N$65:INDIRECT("$N"&ROW($J$65)+$H$2-1),J81) -> 0.296043404 | P81: =MATCH(N81,$O$65:INDIRECT("$O"&ROW($J$65)+$H$2-1),1) -> 43 | Q81: =INDEX($K$65:INDIRECT("$K"&ROW($J$65)+$H$2-1),P81) -> 2 | R81: =INDEX($L$65:INDIRECT("$L"&ROW($J$65)+$H$2-1),P81) -> 1 | S81: =INDEX($M$65:INDIRECT("$M"&ROW($J$65)+$H$2-1),P81) -> rot
J82: 18 | K82: 2 | L82: 4 | M82: gelb | N82: 0.1493894953 | O82: =SMALL($N$65:INDIRECT("$N"&ROW($J$65)+$H$2-1),J82) -> 0.3020299386 | P82: =MATCH(N82,$O$65:INDIRECT("$O"&ROW($J$65)+$H$2-1),1) -> 6 | Q82: =INDEX($K$65:INDIRECT("$K"&ROW($J$65)+$H$2-1),P82) -> 7 | R82: =INDEX($L$65:INDIRECT("$L"&ROW($J$65)+$H$2-1),P82) -> 3 | S82: =INDEX($M$65:INDIRECT("$M"&ROW($J$65)+$H$2-1),P82) -> blau
J83: 19 | K83: 7 | L83: 1 | M83: rot | N83: 0.1377716999 | O83: =SMALL($N$65:INDIRECT("$N"&ROW($J$65)+$H$2-1),J83) -> 0.3131111739 | P83: =MATCH(N83,$O$65:INDIRECT("$O"&ROW($J$65)+$H$2-1),1) -> 5 | Q83: =INDEX($K$65:INDIRECT("$K"&ROW($J$65)+$H$2-1),P83) -> 3 | R83: =INDEX($L$65:INDIRECT("$L"&ROW($J$65)+$H$2-1),P83) -> 2 | S83: =INDEX($M$65:INDIRECT("$M"&ROW($J$65)+$H$2-1),P83) -> grün
J84: 20 | K84: 7 | L84: 4 | M84: gelb | N84: 0.2597220873 | O84: =SMALL($N$65:INDIRECT("$N"&ROW($J$65)+$H$2-1),J84) -> 0.3170443071 | P84: =MATCH(N84,$O$65:INDIRECT("$O"&ROW($J$65)+$H$2-1),1) -> 12 | Q84: =INDEX($K$65:INDIRECT("$K"&ROW($J$65)+$H$2-1),P84) -> 7 | R84: =INDEX($L$65:INDIRECT("$L"&ROW($J$65)+$H$2-1),P84) -> 1 | S84: =INDEX($M$65:INDIRECT("$M"&ROW($J$65)+$H$2-1),P84) -> rot
J85: 21 | K85: 7 | L85: 2 | M85: grün | N85: 0.296043404 | O85: =SMALL($N$65:INDIRECT("$N"&ROW($J$65)+$H$2-1),J85) -> 0.365486304 | P85: =MATCH(N85,$O$65:INDIRECT("$O"&ROW($J$65)+$H$2-1),1) -> 17 | Q85: =INDEX($K$65:INDIRECT("$K"&ROW($J$65)+$H$2-1),P85) -> 6 | R85: =INDEX($L$65:INDIRECT("$L"&ROW($J$65)+$H$2-1),P85) -> 3 | S85: =INDEX($M$65:INDIRECT("$M"&ROW($J$65)+$H$2-1),P85) -> blau
J86: 22 | K86: 7 | L86: 2 | M86: grün | N86: 0.7266917861 | O86: =SMALL($N$65:INDIRECT("$N"&ROW($J$65)+$H$2-1),J86) -> 0.3915632021 | P86: =MATCH(N86,$O$65:INDIRECT("$O"&ROW($J$65)+$H$2-1),1) -> 37 | Q86: =INDEX($K$65:INDIRECT("$K"&ROW($J$65)+$H$2-1),P86) -> 3 | R86: =INDEX($L$65:INDIRECT("$L"&ROW($J$65)+$H$2-1),P86) -> 2 | S86: =INDEX($M$65:INDIRECT("$M"&ROW($J$65)+$H$2-1),P86) -> grün
J87: 23 | K87: 7 | L87: 1 | M87: rot | N87: 0.6351950962 | O87: =SMALL($N$65:INDIRECT("$N"&ROW($J$65)+$H$2-1),J87) -> 0.4225617984 | P87: =MATCH(N87,$O$65:INDIRECT("$O"&ROW($J$65)+$H$2-1),1) -> 31 | Q87: =INDEX($K$65:INDIRECT("$K"&ROW($J$65)+$H$2-1),P87) -> 3 | R87: =INDEX($L$65:INDIRECT("$L"&ROW($J$65)+$H$2-1),P87) -> 2 | S87: =INDEX($M$65:INDIRECT("$M"&ROW($J$65)+$H$2-1),P87) -> grün
J88: 24 | K88: 8 | L88: 2 | M88: grün | N88: 0.1976682238 | O88: =SMALL($N$65:INDIRECT("$N"&ROW($J$65)+$H$2-1),J88) -> 0.4474838919 | P88: =MATCH(N88,$O$65:INDIRECT("$O"&ROW($J$65)+$H$2-1),1) -> 8 | Q88: =INDEX($K$65:INDIRECT("$K"&ROW($J$65)+$H$2-1),P88) -> 7 | R88: =INDEX($L$65:INDIRECT("$L"&ROW($J$65)+$H$2-1),P88) -> 4 | S88: =INDEX($M$65:INDIRECT("$M"&ROW($J$65)+$H$2-1),P88) -> gelb
J89: 25 | K89: 4 | L89: 4 | M89: gelb | N89: 0.979915689 | O89: =SMALL($N$65:INDIRECT("$N"&ROW($J$65)+$H$2-1),J89) -> 0.4778869651 | P89: =MATCH(N89,$O$65:INDIRECT("$O"&ROW($J$65)+$H$2-1),1) -> 48 | Q89: =INDEX($K$65:INDIRECT("$K"&ROW($J$65)+$H$2-1),P89) -> 3 | R89: =INDEX($L$65:INDIRECT("$L"&ROW($J$65)+$H$2-1),P89) -> 4 | S89: =INDEX($M$65:INDIRECT("$M"&ROW($J$65)+$H$2-1),P89) -> gelb
J90: 26 | K90: 7 | L90: 1 | M90: rot | N90: 0.8889443413 | O90: =SMALL($N$65:INDIRECT("$N"&ROW($J$65)+$H$2-1),J90) -> 0.5115112641 | P90: =MATCH(N90,$O$65:INDIRECT("$O"&ROW($J$65)+$H$2-1),1) -> 42 | Q90: =INDEX($K$65:INDIRECT("$K"&ROW($J$65)+$H$2-1),P90) -> 4 | R90: =INDEX($L$65:INDIRECT("$L"&ROW($J$65)+$H$2-1),P90) -> 3 | S90: =INDEX($M$65:INDIRECT("$M"&ROW($J$65)+$H$2-1),P90) -> blau
J91: 27 | K91: 7 | L91: 1 | M91: rot | N91: 0.3020299386 | O91: =SMALL($N$65:INDIRECT("$N"&ROW($J$65)+$H$2-1),J91) -> 0.5588775696 | P91: =MATCH(N91,$O$65:INDIRECT("$O"&ROW($J$65)+$H$2-1),1) -> 18 | Q91: =INDEX($K$65:INDIRECT("$K"&ROW($J$65)+$H$2-1),P91) -> 2 | R91: =INDEX($L$65:INDIRECT("$L"&ROW($J$65)+$H$2-1),P91) -> 4 | S91: =INDEX($M$65:INDIRECT("$M"&ROW($J$65)+$H$2-1),P91) -> gelb
J92: 28 | K92: 2 | L92: 2 | M92: grün | N92: 0.6917307806 | O92: =SMALL($N$65:INDIRECT("$N"&ROW($J$65)+$H$2-1),J92) -> 0.5619109332 | P92: =MATCH(N92,$O$65:INDIRECT("$O"&ROW($J$65)+$H$2-1),1) -> 34 | Q92: =INDEX($K$65:INDIRECT("$K"&ROW($J$65)+$H$2-1),P92) -> 2 | R92: =INDEX($L$65:INDIRECT("$L"&ROW($J$65)+$H$2-1),P92) -> 4 | S92: =INDEX($M$65:INDIRECT("$M"&ROW($J$65)+$H$2-1),P92) -> gelb
J93: 29 | K93: 4 | L93: 1 | M93: rot | N93: 0.4474838919 | O93: =SMALL($N$65:INDIRECT("$N"&ROW($J$65)+$H$2-1),J93) -> 0.5835734973 | P93: =MATCH(N93,$O$65:INDIRECT("$O"&ROW($J$65)+$H$2-1),1) -> 24 | Q93: =INDEX($K$65:INDIRECT("$K"&ROW($J$65)+$H$2-1),P93) -> 8 | R93: =INDEX($L$65:INDIRECT("$L"&ROW($J$65)+$H$2-1),P93) -> 2 | S93: =INDEX($M$65:INDIRECT("$M"&ROW($J$65)+$H$2-1),P93) -> grün
J94: 30 | K94: 5 | L94: 1 | M94: rot | N94: 0.4778869651 | O94: =SMALL($N$65:INDIRECT("$N"&ROW($J$65)+$H$2-1),J94) -> 0.6306677519 | P94: =MATCH(N94,$O$65:INDIRECT("$O"&ROW($J$65)+$H$2-1),1) -> 25 | Q94: =INDEX($K$65:INDIRECT("$K"&ROW($J$65)+$H$2-1),P94) -> 4 | R94: =INDEX($L$65:INDIRECT("$L"&ROW($J$65)+$H$2-1),P94) -> 4 | S94: =INDEX($M$65:INDIRECT("$M"&ROW($J$65)+$H$2-1),P94) -> gelb
J95: 31 | K95: 3 | L95: 2 | M95: grün | N95: 0.09178516634 | O95: =SMALL($N$65:INDIRECT("$N"&ROW($J$65)+$H$2-1),J95) -> 0.6351950962 | P95: =MATCH(N95,$O$65:INDIRECT("$O"&ROW($J$65)+$H$2-1),1) -> 1 | Q95: =INDEX($K$65:INDIRECT("$K"&ROW($J$65)+$H$2-1),P95) -> 7 | R95: =INDEX($L$65:INDIRECT("$L"&ROW($J$65)+$H$2-1),P95) -> 3 | S95: =INDEX($M$65:INDIRECT("$M"&ROW($J$65)+$H$2-1),P95) -> blau
J96: 32 | K96: 9 | L96: 1 | M96: rot | N96: 0.7487232677 | O96: =SMALL($N$65:INDIRECT("$N"&ROW($J$65)+$H$2-1),J96) -> 0.6713539556 | P96: =MATCH(N96,$O$65:INDIRECT("$O"&ROW($J$65)+$H$2-1),1) -> 39 | Q96: =INDEX($K$65:INDIRECT("$K"&ROW($J$65)+$H$2-1),P96) -> 8 | R96: =INDEX($L$65:INDIRECT("$L"&ROW($J$65)+$H$2-1),P96) -> 3 | S96: =INDEX($M$65:INDIRECT("$M"&ROW($J$65)+$H$2-1),P96) -> blau
J97: 33 | K97: =RANDBETWEEN($H$16,$H$18) -> 2 | L97: =RANDBETWEEN(1,$H$23) -> 2 | M97: =IF(L97=$W$64,$U$64,IF(L97=$W$65,$U$65,IF(L97=$W$66,$U$66,IF(L97=$W$67,$U$67,IF(L97=$W$68,$U$68))))) -> grün | N97: 0.7409053182 | O97: =SMALL($N$65:INDIRECT("$N"&ROW($J$65)+$H$2-1),J97) -> 0.6882912792 | P97: =MATCH(N97,$O$65:INDIRECT("$O"&ROW($J$65)+$H$2-1),1) -> 38 | Q97: =INDEX($K$65:INDIRECT("$K"&ROW($J$65)+$H$2-1),P97) -> 4 | R97: =INDEX($L$65:INDIRECT("$L"&ROW($J$65)+$H$2-1),P97) -> 5 | S97: =INDEX($M$65:INDIRECT("$M"&ROW($J$65)+$H$2-1),P97) -> grau
J98: 34 | K98: 2 | L98: 4 | M98: gelb | N98: 0.4225617984 | O98: =SMALL($N$65:INDIRECT("$N"&ROW($J$65)+$H$2-1),J98) -> 0.6917307806 | P98: =MATCH(N98,$O$65:INDIRECT("$O"&ROW($J$65)+$H$2-1),1) -> 23 | Q98: =INDEX($K$65:INDIRECT("$K"&ROW($J$65)+$H$2-1),P98) -> 7 | R98: =INDEX($L$65:INDIRECT("$L"&ROW($J$65)+$H$2-1),P98) -> 1 | S98: =INDEX($M$65:INDIRECT("$M"&ROW($J$65)+$H$2-1),P98) -> rot
J99: 35 | K99: 3 | L99: 1 | M99: rot | N99: 0.122607986 | O99: =SMALL($N$65:INDIRECT("$N"&ROW($J$65)+$H$2-1),J99) -> 0.6961947002 | P99: =MATCH(N99,$O$65:INDIRECT("$O"&ROW($J$65)+$H$2-1),1) -> 4 | Q99: =INDEX($K$65:INDIRECT("$K"&ROW($J$65)+$H$2-1),P99) -> 2 | R99: =INDEX($L$65:INDIRECT("$L"&ROW($J$65)+$H$2-1),P99) -> 4 | S99: =INDEX($M$65:INDIRECT("$M"&ROW($J$65)+$H$2-1),P99) -> gelb
J100: 36 | K100: 6 | L100: 2 | M100: grün | N100: 0.09609139129 | O100: =SMALL($N$65:INDIRECT("$N"&ROW($J$65)+$H$2-1),J100) -> 0.7037832654 | P100: =MATCH(N100,$O$65:INDIRECT("$O"&ROW($J$65)+$H$2-1),1) -> 2 | Q100: =INDEX($K$65:INDIRECT("$K"&ROW($J$65)+$H$2-1),P100) -> 5 | R100: =INDEX($L$65:INDIRECT("$L"&ROW($J$65)+$H$2-1),P100) -> 2 | S100: =INDEX($M$65:INDIRECT("$M"&ROW($J$65)+$H$2-1),P100) -> grün
J101: 37 | K101: 3 | L101: 2 | M101: grün | N101: 0.7037832654 | O101: =SMALL($N$65:INDIRECT("$N"&ROW($J$65)+$H$2-1),J101) -> 0.7266917861 | P101: =MATCH(N101,$O$65:INDIRECT("$O"&ROW($J$65)+$H$2-1),1) -> 36 | Q101: =INDEX($K$65:INDIRECT("$K"&ROW($J$65)+$H$2-1),P101) -> 6 | R101: =INDEX($L$65:INDIRECT("$L"&ROW($J$65)+$H$2-1),P101) -> 2 | S101: =INDEX($M$65:INDIRECT("$M"&ROW($J$65)+$H$2-1),P101) -> grün
J102: 38 | K102: 4 | L102: 5 | M102: grau | N102: 0.6713539556 | O102: =SMALL($N$65:INDIRECT("$N"&ROW($J$65)+$H$2-1),J102) -> 0.7409053182 | P102: =MATCH(N102,$O$65:INDIRECT("$O"&ROW($J$65)+$H$2-1),1) -> 32 | Q102: =INDEX($K$65:INDIRECT("$K"&ROW($J$65)+$H$2-1),P102) -> 9 | R102: =INDEX($L$65:INDIRECT("$L"&ROW($J$65)+$H$2-1),P102) -> 1 | S102: =INDEX($M$65:INDIRECT("$M"&ROW($J$65)+$H$2-1),P102) -> rot
J103: 39 | K103: 8 | L103: 3 | M103: blau | N103: 0.9761294035 | O103: =SMALL($N$65:INDIRECT("$N"&ROW($J$65)+$H$2-1),J103) -> 0.7487232677 | P103: =MATCH(N103,$O$65:INDIRECT("$O"&ROW($J$65)+$H$2-1),1) -> 46 | Q103: =INDEX($K$65:INDIRECT("$K"&ROW($J$65)+$H$2-1),P103) -> 3 | R103: =INDEX($L$65:INDIRECT("$L"&ROW($J$65)+$H$2-1),P103) -> 1 | S103: =INDEX($M$65:INDIRECT("$M"&ROW($J$65)+$H$2-1),P103) -> rot
J104: 40 | K104: 8 | L104: 4 | M104: gelb | N104: 0.5835734973 | O104: =SMALL($N$65:INDIRECT("$N"&ROW($J$65)+$H$2-1),J104) -> 0.8375179701 | P104: =MATCH(N104,$O$65:INDIRECT("$O"&ROW($J$65)+$H$2-1),1) -> 29 | Q104: =INDEX($K$65:INDIRECT("$K"&ROW($J$65)+$H$2-1),P104) -> 4 | R104: =INDEX($L$65:INDIRECT("$L"&ROW($J$65)+$H$2-1),P104) -> 1 | S104: =INDEX($M$65:INDIRECT("$M"&ROW($J$65)+$H$2-1),P104) -> rot
J105: 41 | K105: 8 | L105: 1 | M105: rot | N105: 0.2022388262 | O105: =SMALL($N$65:INDIRECT("$N"&ROW($J$65)+$H$2-1),J105) -> 0.8440835649 | P105: =MATCH(N105,$O$65:INDIRECT("$O"&ROW($J$65)+$H$2-1),1) -> 9 | Q105: =INDEX($K$65:INDIRECT("$K"&ROW($J$65)+$H$2-1),P105) -> 2 | R105: =INDEX($L$65:INDIRECT("$L"&ROW($J$65)+$H$2-1),P105) -> 5 | S105: =INDEX($M$65:INDIRECT("$M"&ROW($J$65)+$H$2-1),P105) -> grau
J106: 42 | K106: 4 | L106: 3 | M106: blau | N106: 0.6961947002 | O106: =SMALL($N$65:INDIRECT("$N"&ROW($J$65)+$H$2-1),J106) -> 0.8889443413 | P106: =MATCH(N106,$O$65:INDIRECT("$O"&ROW($J$65)+$H$2-1),1) -> 35 | Q106: =INDEX($K$65:INDIRECT("$K"&ROW($J$65)+$H$2-1),P106) -> 3 | R106: =INDEX($L$65:INDIRECT("$L"&ROW($J$65)+$H$2-1),P106) -> 1 | S106: =INDEX($M$65:INDIRECT("$M"&ROW($J$65)+$H$2-1),P106) -> rot
J107: 43 | K107: 2 | L107: 1 | M107: rot | N107: 0.189549756 | O107: =SMALL($N$65:INDIRECT("$N"&ROW($J$65)+$H$2-1),J107) -> 0.8995015541 | P107: =MATCH(N107,$O$65:INDIRECT("$O"&ROW($J$65)+$H$2-1),1) -> 7 | Q107: =INDEX($K$65:INDIRECT("$K"&ROW($J$65)+$H$2-1),P107) -> 3 | R107: =INDEX($L$65:INDIRECT("$L"&ROW($J$65)+$H$2-1),P107) -> 3 | S107: =INDEX($M$65:INDIRECT("$M"&ROW($J$65)+$H$2-1),P107) -> blau
J108: 44 | K108: 3 | L108: 2 | M108: grün | N108: 0.977771225 | O108: =SMALL($N$65:INDIRECT("$N"&ROW($J$65)+$H$2-1),J108) -> 0.916216527 | P108: =MATCH(N108,$O$65:INDIRECT("$O"&ROW($J$65)+$H$2-1),1) -> 47 | Q108: =INDEX($K$65:INDIRECT("$K"&ROW($J$65)+$H$2-1),P108) -> 3 | R108: =INDEX($L$65:INDIRECT("$L"&ROW($J$65)+$H$2-1),P108) -> 3 | S108: =INDEX($M$65:INDIRECT("$M"&ROW($J$65)+$H$2-1),P108) -> blau
J109: 45 | K109: 5 | L109: 5 | M109: grau | N109: 0.6882912792 | O109: =SMALL($N$65:INDIRECT("$N"&ROW($J$65)+$H$2-1),J109) -> 0.9558413877 | P109: =MATCH(N109,$O$65:INDIRECT("$O"&ROW($J$65)+$H$2-1),1) -> 33 | Q109: =INDEX($K$65:INDIRECT("$K"&ROW($J$65)+$H$2-1),P109) -> 2 | R109: =INDEX($L$65:INDIRECT("$L"&ROW($J$65)+$H$2-1),P109) -> 2 | S109: =INDEX($M$65:INDIRECT("$M"&ROW($J$65)+$H$2-1),P109) -> grün
J110: 46 | K110: 3 | L110: 1 | M110: rot | N110: 0.9991678229 | O110: =SMALL($N$65:INDIRECT("$N"&ROW($J$65)+$H$2-1),J110) -> 0.9761294035 | P110: =MATCH(N110,$O$65:INDIRECT("$O"&ROW($J$65)+$H$2-1),1) -> 49 | Q110: =INDEX($K$65:INDIRECT("$K"&ROW($J$65)+$H$2-1),P110) -> 7 | R110: =INDEX($L$65:INDIRECT("$L"&ROW($J$65)+$H$2-1),P110) -> 3 | S110: =INDEX($M$65:INDIRECT("$M"&ROW($J$65)+$H$2-1),P110) -> blau
J111: 47 | K111: 3 | L111: 3 | M111: blau | N111: 0.276642771 | O111: =SMALL($N$65:INDIRECT("$N"&ROW($J$65)+$H$2-1),J111) -> 0.977771225 | P111: =MATCH(N111,$O$65:INDIRECT("$O"&ROW($J$65)+$H$2-1),1) -> 15 | Q111: =INDEX($K$65:INDIRECT("$K"&ROW($J$65)+$H$2-1),P111) -> 9 | R111: =INDEX($L$65:INDIRECT("$L"&ROW($J$65)+$H$2-1),P111) -> 5 | S111: =INDEX($M$65:INDIRECT("$M"&ROW($J$65)+$H$2-1),P111) -> grau
J112: 48 | K112: 3 | L112: 4 | M112: gelb | N112: 0.6306677519 | O112: =SMALL($N$65:INDIRECT("$N"&ROW($J$65)+$H$2-1),J112) -> 0.979915689 | P112: =MATCH(N112,$O$65:INDIRECT("$O"&ROW($J$65)+$H$2-1),1) -> 30 | Q112: =INDEX($K$65:INDIRECT("$K"&ROW($J$65)+$H$2-1),P112) -> 5 | R112: =INDEX($L$65:INDIRECT("$L"&ROW($J$65)+$H$2-1),P112) -> 1 | S112: =INDEX($M$65:INDIRECT("$M"&ROW($J$65)+$H$2-1),P112) -> rot
J113: 49 | K113: 7 | L113: 3 | M113: blau | N113: 0.2895257586 | O113: =SMALL($N$65:INDIRECT("$N"&ROW($J$65)+$H$2-1),J113) -> 0.9991678229 | P113: =MATCH(N113,$O$65:INDIRECT("$O"&ROW($J$65)+$H$2-1),1) -> 16 | Q113: =INDEX($K$65:INDIRECT("$K"&ROW($J$65)+$H$2-1),P113) -> 9 | R113: =INDEX($L$65:INDIRECT("$L"&ROW($J$65)+$H$2-1),P113) -> 2 | S113: =INDEX($M$65:INDIRECT("$M"&ROW($J$65)+$H$2-1),P113) -> grün

Sheet Ergebnismenge
B3: Gefäß mit Kugeln: | J3: =Kugeln!Y54 -> 49 | K3: Stück | AD3: 3 Varianten zur Festlegung des Zufallsexperiments ( bzw. der Ergebnismenge Ω ) | AO3: FALSE
B5: =Kugeln!Y4 -> 7 | C5: =Kugeln!Z4 -> grün | D5: 1 | F5: =Kugeln!Y11 -> 9 | G5: =Kugeln!Z11 -> grün | H5: 8 | J5: =Kugeln!Y18 -> 5 | K5: =Kugeln!Z18 -> gelb | L5: 15 | N5: =Kugeln!Y25 -> 2 | O5: =Kugeln!Z25 -> rot | P5: 22 | R5: =Kugeln!Y32 -> 6 | S5: =Kugeln!Z32 -> rot | T5: 29 | V5: =Kugeln!Y39 -> 5 | W5: =Kugeln!Z39 -> blau | X5: 36 | Z5: =Kugeln!Y46 -> 5 | AA5: =Kugeln!Z46 -> blau | AB5: 43 | AD5: 1. Es wird 1-mal gezogen, Beobachtungskriterium: Farbe
B7: =Kugeln!Y5 -> 8 | C7: =Kugeln!Z5 -> grün | D7: 2 | F7: =Kugeln!Y12 -> 6 | G7: =Kugeln!Z12 -> gelb | H7: 9 | J7: =Kugeln!Y19 -> 3 | K7: =Kugeln!Z19 -> gelb | L7: 16 | N7: =Kugeln!Y26 -> 2 | O7: =Kugeln!Z26 -> grau | P7: 23 | R7: =Kugeln!Y33 -> 9 | S7: =Kugeln!Z33 -> gelb | T7: 30 | V7: =Kugeln!Y40 -> 2 | W7: =Kugeln!Z40 -> grau | X7: 37 | Z7: =Kugeln!Y47 -> 6 | AA7: =Kugeln!Z47 -> grau | AB7: 44 | AD7: Ω = | AE7: =CONCATENATE("{",V30,V31,V32,V33,V34,"}") -> {rot, grün, blau, gelb, grau}
B9: =Kugeln!Y6 -> 4 | C9: =Kugeln!Z6 -> grün | D9: 3 | F9: =Kugeln!Y13 -> 7 | G9: =Kugeln!Z13 -> gelb | H9: 10 | J9: =Kugeln!Y20 -> 7 | K9: =Kugeln!Z20 -> rot | L9: 17 | N9: =Kugeln!Y27 -> 2 | O9: =Kugeln!Z27 -> grün | P9: 24 | R9: =Kugeln!Y34 -> 7 | S9: =Kugeln!Z34 -> grau | T9: 31 | V9: =Kugeln!Y41 -> 9 | W9: =Kugeln!Z41 -> grün | X9: 38 | Z9: =Kugeln!Y48 -> 3 | AA9: =Kugeln!Z48 -> grün | AB9: 45 | AD9: |Ω| = | AE9: =G35 -> 5
B11: =Kugeln!Y7 -> 2 | C11: =Kugeln!Z7 -> grau | D11: 4 | F11: =Kugeln!Y14 -> 8 | G11: =Kugeln!Z14 -> grün | H11: 11 | J11: =Kugeln!Y21 -> 5 | K11: =Kugeln!Z21 -> grau | L11: 18 | N11: =Kugeln!Y28 -> 5 | O11: =Kugeln!Z28 -> grau | P11: 25 | R11: =Kugeln!Y35 -> 7 | S11: =Kugeln!Z35 -> blau | T11: 32 | V11: =Kugeln!Y42 -> 6 | W11: =Kugeln!Z42 -> grün | X11: 39 | Z11: =Kugeln!Y49 -> 6 | AA11: =Kugeln!Z49 -> grün | AB11: 46 | AD11: 2. Es wird 1-mal gezogen, Beobachtungskriterium: Zahl
B13: =Kugeln!Y8 -> 2 | C13: =Kugeln!Z8 -> grün | D13: 5 | F13: =Kugeln!Y15 -> 7 | G13: =Kugeln!Z15 -> grau | H13: 12 | J13: =Kugeln!Y22 -> 2 | K13: =Kugeln!Z22 -> blau | L13: 19 | N13: =Kugeln!Y29 -> 9 | O13: =Kugeln!Z29 -> blau | P13: 26 | R13: =Kugeln!Y36 -> 6 | S13: =Kugeln!Z36 -> rot | T13: 33 | V13: =Kugeln!Y43 -> 8 | W13: =Kugeln!Z43 -> rot | X13: 40 | Z13: =Kugeln!Y50 -> 8 | AA13: =Kugeln!Z50 -> grau | AB13: 47 | AD13: Ω = | AE13: =CONCATENATE("{",V39,V40,V41,V42,V43,V44,V45,V46,V47,V48,V49,V50,V51,V52,V53,V54,V55,V56,V57,V58,V59,V60,V61,V62,V63,V64,V65,V66,V67,V68,V69,V70,V71,V72,V73,V74,V75,V76,V77,V78,V79,V80,V81,V82,V83,V84,V85,V86,V87,"}") -> {2, 3, 4, 5, 6, 7, 8, 9}
B15: =Kugeln!Y9 -> 5 | C15: =Kugeln!Z9 -> gelb | D15: 6 | F15: =Kugeln!Y16 -> 4 | G15: =Kugeln!Z16 -> grau | H15: 13 | J15: =Kugeln!Y23 -> 9 | K15: =Kugeln!Z23 -> gelb | L15: 20 | N15: =Kugeln!Y30 -> 4 | O15: =Kugeln!Z30 -> grün | P15: 27 | R15: =Kugeln!Y37 -> 5 | S15: =Kugeln!Z37 -> grün | T15: 34 | V15: =Kugeln!Y44 -> 4 | W15: =Kugeln!Z44 -> rot | X15: 41 | Z15: =Kugeln!Y51 -> 4 | AA15: =Kugeln!Z51 -> gelb | AB15: 48
AD16: |Ω| = | AE16: =G88 -> 8
B17: =Kugeln!Y10 -> 8 | C17: =Kugeln!Z10 -> blau | D17: 7 | F17: =Kugeln!Y17 -> 2 | G17: =Kugeln!Z17 -> grau | H17: 14 | J17: =Kugeln!Y24 -> 8 | K17: =Kugeln!Z24 -> grün | L17: 21 | N17: =Kugeln!Y31 -> 3 | O17: =Kugeln!Z31 -> grau | P17: 28 | R17: =Kugeln!Y38 -> 7 | S17: =Kugeln!Z38 -> grün | T17: 35 | V17: =Kugeln!Y45 -> 6 | W17: =Kugeln!Z45 -> gelb | X17: 42 | Z17: =Kugeln!Y52 -> 9 | AA17: =Kugeln!Z52 -> blau | AB17: 49
AD18: 3. Es wird 1-mal gezogen, Beobachtungskriterium: Farbe und Zahl
E19: FALSE
AD20: Ω = | AE20: =CONCATENATE("{",V92,V93,V94,V95,V96,V97,V98,V99,V100,V101,V102,V103,V104,V105,V106,V107,V108,V109,V110,V111,V112,V113,V114,V115,V116,V117,V118,V119,V120,V121,V122,V123,V124,V125,V126,V127,V128,V129,V130,V131,V132,V133,V134,V135,V136,V137,V138,V139,V140,V141,V142,V143,V144,V145,V146,V147,V148,V149,V150,V151,V152,V153,V154,V155,V156,V157,V158,V159,V160,V161,V162,V163,V164,V165,V166,V167,V168,V169,V170,V171,V172,V173,V174,V175,V176,V177,V178,V179,V180,V181,V182,V183,V184,V185,V186,V187,V188,V189,V190,V191,V192,V193,V194,V195,V196,V197,V198,V199,V200,V201,V202,V203,V204,V205,V206,V207,V208,V209,V210,V211,V212,V213,V214,V215,V216,V217,V218,V219,V220,V221,V222,V223,V224,V225,V226,V227,V228,V229,V230,V231,V232,V233,V234,V235,V236,V237,V238,V239,V240,V241,V242,V243,V244,V245,V246,V247,V248,V249,V250,V251,V252,V253,V254,V255,V256,V257,V258,V259,V260,V261,V262,V263,V264,V265,V266,V267,V268,V269,V270,V271,V272,V273,V274,V275,V276,V277,V278,V279,V280,V281,V282,V283,V284,V285,V286,V287,V288,V289,V290,V291,V292,V293,V294,V295,V296,V297,V298,V299,V300,V301,V302,V303,V304,V305,V306,V307,V308,V309,V310,V311,V312,V313,V314,V315,V316,V317,V318,V319,V320,V321,V322,V323,V324,V325,V326,V327,V328,V329,V330,V331,V332,V333,V334,V335,V336,"}") -> {(rot, 2), (rot, 4), (rot, 6), (rot, 7), (rot, 8), (grün, 2), (grün, 3), (grün, 4), (grün, 5), (grün, 6), (grün, 7), (grün, 8), (grün, 9), (blau, 2), (blau, 5), (blau, 7), (blau, 8), (blau, 9), (gelb, 3), (gelb, 4), (gelb, 5), (gelb, 6), (gelb, 7), (gelb, 9), (grau, 2), (grau, 3), (grau, 4), (grau, 5), (grau, 6), (grau, 7), (grau, 8)}
AD27: |Ω| = | AE27: =G340 -> 31
B28: Anzahl Farben:
C30: rot | G30: =COUNTIF(Kugeln!$Y$4:$Z$52,Ergebnismenge!C30) -> 6 | O30: =IF(G30>0,C30,"") -> rot | V30: =CONCATENATE(N30,O30) -> rot
C31: grün | G31: =COUNTIF(Kugeln!$Y$4:$Z$52,Ergebnismenge!C31) -> 15 | N31: =IF(AND(SUM($G$30:G30)>0,G31>0),", ","") -> , | O31: =IF(G31>0,C31,"") -> grün | V31: =CONCATENATE(N31,O31) -> , grün
C32: blau | G32: =COUNTIF(Kugeln!$Y$4:$Z$52,Ergebnismenge!C32) -> 7 | N32: =IF(AND(SUM($G$30:G31)>0,G32>0),", ","") -> , | O32: =IF(G32>0,C32,"") -> blau | V32: , blau
C33: gelb | G33: =COUNTIF(Kugeln!$Y$4:$Z$52,Ergebnismenge!C33) -> 9 | N33: =IF(AND(SUM($G$30:G32)>0,G33>0),", ","") -> , | O33: =IF(G33>0,C33,"") -> gelb | V33: , gelb
C34: grau | G34: =COUNTIF(Kugeln!$Y$4:$Z$52,Ergebnismenge!C34) -> 12 | N34: =IF(AND(SUM($G$30:G33)>0,G34>0),", ","") -> , | O34: =IF(G34>0,C34,"") -> grau | V34: , grau
C35: |Ω| = | G35: =COUNTIF(G30:G34,">0") -> 5
B37: Anzahl Zahlen:
C39: 1 | G39: =COUNTIF(Kugeln!$Y$4:$Z$52,Ergebnismenge!C39) -> 0 | O39: =IF(G39>0,C39,"") -> 
C40: 2 | G40: =COUNTIF(Kugeln!$Y$4:$Z$52,Ergebnismenge!C40) -> 8 | N40: =IF(AND(SUM($G$39:G39)>0,G40>0),", ","") ->  | O40: 2 | V40: 2
C41: 3 | G41: =COUNTIF(Kugeln!$Y$4:$Z$52,Ergebnismenge!C41) -> 3 | N41: =IF(AND(SUM($G$39:G40)>0,G41>0),", ","") -> , | O41: 3 | V41: , 3
C42: 4 | G42: =COUNTIF(Kugeln!$Y$4:$Z$52,Ergebnismenge!C42) -> 5 | N42: =IF(AND(SUM($G$39:G41)>0,G42>0),", ","") -> , | O42: 4 | V42: , 4
C43: 5 | G43: =COUNTIF(Kugeln!$Y$4:$Z$52,Ergebnismenge!C43) -> 7 | N43: =IF(AND(SUM($G$39:G42)>0,G43>0),", ","") -> , | O43: 5 | V43: , 5
C44: 6 | G44: =COUNTIF(Kugeln!$Y$4:$Z$52,Ergebnismenge!C44) -> 7 | N44: =IF(AND(SUM($G$39:G43)>0,G44>0),", ","") -> , | O44: 6 | V44: , 6
C45: 7 | G45: =COUNTIF(Kugeln!$Y$4:$Z$52,Ergebnismenge!C45) -> 7 | N45: =IF(AND(SUM($G$39:G44)>0,G45>0),", ","") -> , | O45: 7 | V45: , 7
C46: 8 | G46: =COUNTIF(Kugeln!$Y$4:$Z$52,Ergebnismenge!C46) -> 6 | N46: =IF(AND(SUM($G$39:G45)>0,G46>0),", ","") -> , | O46: 8 | V46: , 8
C47: 9 | G47: =COUNTIF(Kugeln!$Y$4:$Z$52,Ergebnismenge!C47) -> 6 | N47: =IF(AND(SUM($G$39:G46)>0,G47>0),", ","") -> , | O47: 9 | V47: , 9
C48: 10 | G48: =COUNTIF(Kugeln!$Y$4:$Z$52,Ergebnismenge!C48) -> 0 | N48: =IF(AND(SUM($G$39:G47)>0,G48>0),", ","") -> 
C49: 11 | G49: =COUNTIF(Kugeln!$Y$4:$Z$52,Ergebnismenge!C49) -> 0 | N49: =IF(AND(SUM($G$39:G48)>0,G49>0),", ","") -> 
C50: 12 | G50: =COUNTIF(Kugeln!$Y$4:$Z$52,Ergebnismenge!C50) -> 0 | N50: =IF(AND(SUM($G$39:G49)>0,G50>0),", ","") -> 
C51: 13 | G51: =COUNTIF(Kugeln!$Y$4:$Z$52,Ergebnismenge!C51) -> 0 | N51: =IF(AND(SUM($G$39:G50)>0,G51>0),", ","") -> 
C52: 14 | G52: =COUNTIF(Kugeln!$Y$4:$Z$52,Ergebnismenge!C52) -> 0 | N52: =IF(AND(SUM($G$39:G51)>0,G52>0),", ","") -> 
C53: 15 | G53: =COUNTIF(Kugeln!$Y$4:$Z$52,Ergebnismenge!C53) -> 0 | N53: =IF(AND(SUM($G$39:G52)>0,G53>0),", ","") -> 
C54: 16 | G54: =COUNTIF(Kugeln!$Y$4:$Z$52,Ergebnismenge!C54) -> 0 | N54: =IF(AND(SUM($G$39:G53)>0,G54>0),", ","") -> 
C55: 17 | G55: =COUNTIF(Kugeln!$Y$4:$Z$52,Ergebnismenge!C55) -> 0 | N55: =IF(AND(SUM($G$39:G54)>0,G55>0),", ","") -> 
C56: 18 | G56: =COUNTIF(Kugeln!$Y$4:$Z$52,Ergebnismenge!C56) -> 0 | N56: =IF(AND(SUM($G$39:G55)>0,G56>0),", ","") -> 
C57: 19 | G57: =COUNTIF(Kugeln!$Y$4:$Z$52,Ergebnismenge!C57) -> 0 | N57: =IF(AND(SUM($G$39:G56)>0,G57>0),", ","") -> 
C58: 20 | G58: =COUNTIF(Kugeln!$Y$4:$Z$52,Ergebnismenge!C58) -> 0 | N58: =IF(AND(SUM($G$39:G57)>0,G58>0),", ","") -> 
C59: 21 | G59: =COUNTIF(Kugeln!$Y$4:$Z$52,Ergebnismenge!C59) -> 0 | N59: =IF(AND(SUM($G$39:G58)>0,G59>0),", ","") -> 
C60: 22 | G60: =COUNTIF(Kugeln!$Y$4:$Z$52,Ergebnismenge!C60) -> 0 | N60: =IF(AND(SUM($G$39:G59)>0,G60>0),", ","") -> 
C61: 23 | G61: =COUNTIF(Kugeln!$Y$4:$Z$52,Ergebnismenge!C61) -> 0 | N61: =IF(AND(SUM($G$39:G60)>0,G61>0),", ","") -> 
C62: 24 | G62: =COUNTIF(Kugeln!$Y$4:$Z$52,Ergebnismenge!C62) -> 0 | N62: =IF(AND(SUM($G$39:G61)>0,G62>0),", ","") -> 
C63: 25 | G63: =COUNTIF(Kugeln!$Y$4:$Z$52,Ergebnismenge!C63) -> 0 | N63: =IF(AND(SUM($G$39:G62)>0,G63>0),", ","") -> 
C64: 26 | G64: =COUNTIF(Kugeln!$Y$4:$Z$52,Ergebnismenge!C64) -> 0 | N64: =IF(AND(SUM($G$39:G63)>0,G64>0),", ","") -> 
C65: 27 | G65: =COUNTIF(Kugeln!$Y$4:$Z$52,Ergebnismenge!C65) -> 0 | N65: =IF(AND(SUM($G$39:G64)>0,G65>0),", ","") -> 
C66: 28 | G66: =COUNTIF(Kugeln!$Y$4:$Z$52,Ergebnismenge!C66) -> 0 | N66: =IF(AND(SUM($G$39:G65)>0,G66>0),", ","") -> 
C67: 29 | G67: =COUNTIF(Kugeln!$Y$4:$Z$52,Ergebnismenge!C67) -> 0 | N67: =IF(AND(SUM($G$39:G66)>0,G67>0),", ","") -> 
C68: 30 | G68: =COUNTIF(Kugeln!$Y$4:$Z$52,Ergebnismenge!C68) -> 0 | N68: =IF(AND(SUM($G$39:G67)>0,G68>0),", ","") -> 
C69: 31 | G69: =COUNTIF(Kugeln!$Y$4:$Z$52,Ergebnismenge!C69) -> 0 | N69: =IF(AND(SUM($G$39:G68)>0,G69>0),", ","") -> 
C70: 32 | G70: =COUNTIF(Kugeln!$Y$4:$Z$52,Ergebnismenge!C70) -> 0 | N70: =IF(AND(SUM($G$39:G69)>0,G70>0),", ","") -> 
C71: 33 | G71: =COUNTIF(Kugeln!$Y$4:$Z$52,Ergebnismenge!C71) -> 0 | N71: =IF(AND(SUM($G$39:G70)>0,G71>0),", ","") ->  | O71: =IF(G71>0,C71,"") -> 
C72: 34 | G72: =COUNTIF(Kugeln!$Y$4:$Z$52,Ergebnismenge!C72) -> 0 | N72: =IF(AND(SUM($G$39:G71)>0,G72>0),", ","") -> 
C73: 35 | G73: =COUNTIF(Kugeln!$Y$4:$Z$52,Ergebnismenge!C73) -> 0 | N73: =IF(AND(SUM($G$39:G72)>0,G73>0),", ","") -> 
C74: 36 | G74: =COUNTIF(Kugeln!$Y$4:$Z$52,Ergebnismenge!C74) -> 0 | N74: =IF(AND(SUM($G$39:G73)>0,G74>0),", ","") -> 
C75: 37 | G75: =COUNTIF(Kugeln!$Y$4:$Z$52,Ergebnismenge!C75) -> 0 | N75: =IF(AND(SUM($G$39:G74)>0,G75>0),", ","") -> 
C76: 38 | G76: =COUNTIF(Kugeln!$Y$4:$Z$52,Ergebnismenge!C76) -> 0 | N76: =IF(AND(SUM($G$39:G75)>0,G76>0),", ","") -> 
C77: 39 | G77: =COUNTIF(Kugeln!$Y$4:$Z$52,Ergebnismenge!C77) -> 0 | N77: =IF(AND(SUM($G$39:G76)>0,G77>0),", ","") -> 
C78: 40 | G78: =COUNTIF(Kugeln!$Y$4:$Z$52,Ergebnismenge!C78) -> 0 | N78: =IF(AND(SUM($G$39:G77)>0,G78>0),", ","") -> 
C79: 41 | G79: =COUNTIF(Kugeln!$Y$4:$Z$52,Ergebnismenge!C79) -> 0 | N79: =IF(AND(SUM($G$39:G78)>0,G79>0),", ","") -> 
C80: 42 | G80: =COUNTIF(Kugeln!$Y$4:$Z$52,Ergebnismenge!C80) -> 0 | N80: =IF(AND(SUM($G$39:G79)>0,G80>0),", ","") -> 
C81: 43 | G81: =COUNTIF(Kugeln!$Y$4:$Z$52,Ergebnismenge!C81) -> 0 | N81: =IF(AND(SUM($G$39:G80)>0,G81>0),", ","") -> 
C82: 44 | G82: =COUNTIF(Kugeln!$Y$4:$Z$52,Ergebnismenge!C82) -> 0 | N82: =IF(AND(SUM($G$39:G81)>0,G82>0),", ","") -> 
C83: 45 | G83: =COUNTIF(Kugeln!$Y$4:$Z$52,Ergebnismenge!C83) -> 0 | N83: =IF(AND(SUM($G$39:G82)>0,G83>0),", ","") -> 
C84: 46 | G84: =COUNTIF(Kugeln!$Y$4:$Z$52,Ergebnismenge!C84) -> 0 | N84: =IF(AND(SUM($G$39:G83)>0,G84>0),", ","") -> 
C85: 47 | G85: =COUNTIF(Kugeln!$Y$4:$Z$52,Ergebnismenge!C85) -> 0 | N85: =IF(AND(SUM($G$39:G84)>0,G85>0),", ","") -> 
C86: 48 | G86: =COUNTIF(Kugeln!$Y$4:$Z$52,Ergebnismenge!C86) -> 0 | N86: =IF(AND(SUM($G$39:G85)>0,G86>0),", ","") -> 
C87: 49 | G87: =COUNTIF(Kugeln!$Y$4:$Z$52,Ergebnismenge!C87) -> 0 | N87: =IF(AND(SUM($G$39:G86)>0,G87>0),", ","") -> 
C88: |Ω| = | G88: =COUNTIF(G39:G87,">0") -> 8
B90: Anzahl (Zahl, Farbe):
C92: 1 | F92: rot | G92: =COUNTIF(Kugeln!$X$4:$X$52,CONCATENATE("(",Ergebnismenge!C92,", ",F92,")")) -> 0 | O92: =IF(G92>0,CONCATENATE("(",F92,", ",C92,")"),"") -> 
C93: 2 | F93: rot | G93: =COUNTIF(Kugeln!$X$4:$X$52,CONCATENATE("(",Ergebnismenge!C93,", ",F93,")")) -> 1 | N93: =IF(AND(SUM($G$92:G92)>0,G93>0),", ","") ->  | O93: (rot, 2) | V93: (rot, 2)
C94: 3 | F94: rot | G94: =COUNTIF(Kugeln!$X$4:$X$52,CONCATENATE("(",Ergebnismenge!C94,", ",F94,")")) -> 0 | N94: =IF(AND(SUM($G$92:G93)>0,G94>0),", ","") ->  | O94: =IF(G94>0,CONCATENATE("(",F94,", ",C94,")"),"") -> 
C95: 4 | F95: rot | G95: =COUNTIF(Kugeln!$X$4:$X$52,CONCATENATE("(",Ergebnismenge!C95,", ",F95,")")) -> 1 | N95: =IF(AND(SUM($G$92:G94)>0,G95>0),", ","") -> , | O95: =IF(G95>0,CONCATENATE("(",F95,", ",C95,")"),"") -> (rot, 4) | V95: , (rot, 4)
C96: 5 | F96: rot | G96: =COUNTIF(Kugeln!$X$4:$X$52,CONCATENATE("(",Ergebnismenge!C96,", ",F96,")")) -> 0 | N96: =IF(AND(SUM($G$92:G95)>0,G96>0),", ","") -> 
C97: 6 | F97: rot | G97: =COUNTIF(Kugeln!$X$4:$X$52,CONCATENATE("(",Ergebnismenge!C97,", ",F97,")")) -> 2 | N97: =IF(AND(SUM($G$92:G96)>0,G97>0),", ","") -> , | O97: (rot, 6) | V97: =CONCATENATE(N97,O97) -> , (rot, 6)
C98: 7 | F98: rot | G98: =COUNTIF(Kugeln!$X$4:$X$52,CONCATENATE("(",Ergebnismenge!C98,", ",F98,")")) -> 1 | N98: =IF(AND(SUM($G$92:G97)>0,G98>0),", ","") -> , | O98: (rot, 7) | V98: , (rot, 7)
C99: 8 | F99: rot | G99: =COUNTIF(Kugeln!$X$4:$X$52,CONCATENATE("(",Ergebnismenge!C99,", ",F99,")")) -> 1 | N99: =IF(AND(SUM($G$92:G98)>0,G99>0),", ","") -> , | O99: (rot, 8) | V99: , (rot, 8)
C100: 9 | F100: rot | G100: =COUNTIF(Kugeln!$X$4:$X$52,CONCATENATE("(",Ergebnismenge!C100,", ",F100,")")) -> 0 | N100: =IF(AND(SUM($G$92:G99)>0,G100>0),", ","") -> 
C101: 10 | F101: rot | G101: =COUNTIF(Kugeln!$X$4:$X$52,CONCATENATE("(",Ergebnismenge!C101,", ",F101,")")) -> 0 | N101: =IF(AND(SUM($G$92:G100)>0,G101>0),", ","") -> 
C102: 11 | F102: rot | G102: =COUNTIF(Kugeln!$X$4:$X$52,CONCATENATE("(",Ergebnismenge!C102,", ",F102,")")) -> 0 | N102: =IF(AND(SUM($G$92:G101)>0,G102>0),", ","") -> 
C103: 12 | F103: rot | G103: =COUNTIF(Kugeln!$X$4:$X$52,CONCATENATE("(",Ergebnismenge!C103,", ",F103,")")) -> 0 | N103: =IF(AND(SUM($G$92:G102)>0,G103>0),", ","") -> 
C104: 13 | F104: rot | G104: =COUNTIF(Kugeln!$X$4:$X$52,CONCATENATE("(",Ergebnismenge!C104,", ",F104,")")) -> 0 | N104: =IF(AND(SUM($G$92:G103)>0,G104>0),", ","") -> 
C105: 14 | F105: rot | G105: =COUNTIF(Kugeln!$X$4:$X$52,CONCATENATE("(",Ergebnismenge!C105,", ",F105,")")) -> 0 | N105: =IF(AND(SUM($G$92:G104)>0,G105>0),", ","") -> 
C106: 15 | F106: rot | G106: =COUNTIF(Kugeln!$X$4:$X$52,CONCATENATE("(",Ergebnismenge!C106,", ",F106,")")) -> 0 | N106: =IF(AND(SUM($G$92:G105)>0,G106>0),", ","") -> 
C107: 16 | F107: rot | G107: =COUNTIF(Kugeln!$X$4:$X$52,CONCATENATE("(",Ergebnismenge!C107,", ",F107,")")) -> 0 | N107: =IF(AND(SUM($G$92:G106)>0,G107>0),", ","") -> 
C108: 17 | F108: rot | G108: =COUNTIF(Kugeln!$X$4:$X$52,CONCATENATE("(",Ergebnismenge!C108,", ",F108,")")) -> 0 | N108: =IF(AND(SUM($G$92:G107)>0,G108>0),", ","") -> 
C109: 18 | F109: rot | G109: =COUNTIF(Kugeln!$X$4:$X$52,CONCATENATE("(",Ergebnismenge!C109,", ",F109,")")) -> 0 | N109: =IF(AND(SUM($G$92:G108)>0,G109>0),", ","") -> 
C110: 19 | F110: rot | G110: =COUNTIF(Kugeln!$X$4:$X$52,CONCATENATE("(",Ergebnismenge!C110,", ",F110,")")) -> 0 | N110: =IF(AND(SUM($G$92:G109)>0,G110>0),", ","") -> 
C111: 20 | F111: rot | G111: =COUNTIF(Kugeln!$X$4:$X$52,CONCATENATE("(",Ergebnismenge!C111,", ",F111,")")) -> 0 | N111: =IF(AND(SUM($G$92:G110)>0,G111>0),", ","") -> 
C112: 21 | F112: rot | G112: =COUNTIF(Kugeln!$X$4:$X$52,CONCATENATE("(",Ergebnismenge!C112,", ",F112,")")) -> 0 | N112: =IF(AND(SUM($G$92:G111)>0,G112>0),", ","") -> 
C113: 22 | F113: rot | G113: =COUNTIF(Kugeln!$X$4:$X$52,CONCATENATE("(",Ergebnismenge!C113,", ",F113,")")) -> 0 | N113: =IF(AND(SUM($G$92:G112)>0,G113>0),", ","") -> 
C114: 23 | F114: rot | G114: =COUNTIF(Kugeln!$X$4:$X$52,CONCATENATE("(",Ergebnismenge!C114,", ",F114,")")) -> 0 | N114: =IF(AND(SUM($G$92:G113)>0,G114>0),", ","") -> 
C115: 24 | F115: rot | G115: =COUNTIF(Kugeln!$X$4:$X$52,CONCATENATE("(",Ergebnismenge!C115,", ",F115,")")) -> 0 | N115: =IF(AND(SUM($G$92:G114)>0,G115>0),", ","") -> 
C116: 25 | F116: rot | G116: =COUNTIF(Kugeln!$X$4:$X$52,CONCATENATE("(",Ergebnismenge!C116,", ",F116,")")) -> 0 | N116: =IF(AND(SUM($G$92:G115)>0,G116>0),", ","") -> 
C117: 26 | F117: rot | G117: =COUNTIF(Kugeln!$X$4:$X$52,CONCATENATE("(",Ergebnismenge!C117,", ",F117,")")) -> 0 | N117: =IF(AND(SUM($G$92:G116)>0,G117>0),", ","") -> 
C118: 27 | F118: rot | G118: =COUNTIF(Kugeln!$X$4:$X$52,CONCATENATE("(",Ergebnismenge!C118,", ",F118,")")) -> 0 | N118: =IF(AND(SUM($G$92:G117)>0,G118>0),", ","") -> 
C119: 28 | F119: rot | G119: =COUNTIF(Kugeln!$X$4:$X$52,CONCATENATE("(",Ergebnismenge!C119,", ",F119,")")) -> 0 | N119: =IF(AND(SUM($G$92:G118)>0,G119>0),", ","") -> 
C120: 29 | F120: rot | G120: =COUNTIF(Kugeln!$X$4:$X$52,CONCATENATE("(",Ergebnismenge!C120,", ",F120,")")) -> 0 | N120: =IF(AND(SUM($G$92:G119)>0,G120>0),", ","") -> 
C121: 30 | F121: rot | G121: =COUNTIF(Kugeln!$X$4:$X$52,CONCATENATE("(",Ergebnismenge!C121,", ",F121,")")) -> 0 | N121: =IF(AND(SUM($G$92:G120)>0,G121>0),", ","") -> 
C122: 31 | F122: rot | G122: =COUNTIF(Kugeln!$X$4:$X$52,CONCATENATE("(",Ergebnismenge!C122,", ",F122,")")) -> 0 | N122: =IF(AND(SUM($G$92:G121)>0,G122>0),", ","") -> 
C123: 32 | F123: rot | G123: =COUNTIF(Kugeln!$X$4:$X$52,CONCATENATE("(",Ergebnismenge!C123,", ",F123,")")) -> 0 | N123: =IF(AND(SUM($G$92:G122)>0,G123>0),", ","") -> 
C124: 33 | F124: rot | G124: =COUNTIF(Kugeln!$X$4:$X$52,CONCATENATE("(",Ergebnismenge!C124,", ",F124,")")) -> 0 | N124: =IF(AND(SUM($G$92:G123)>0,G124>0),", ","") -> 
C125: 34 | F125: rot | G125: =COUNTIF(Kugeln!$X$4:$X$52,CONCATENATE("(",Ergebnismenge!C125,", ",F125,")")) -> 0 | N125: =IF(AND(SUM($G$92:G124)>0,G125>0),", ","") -> 
C126: 35 | F126: rot | G126: =COUNTIF(Kugeln!$X$4:$X$52,CONCATENATE("(",Ergebnismenge!C126,", ",F126,")")) -> 0 | N126: =IF(AND(SUM($G$92:G125)>0,G126>0),", ","") -> 
C127: 36 | F127: rot | G127: =COUNTIF(Kugeln!$X$4:$X$52,CONCATENATE("(",Ergebnismenge!C127,", ",F127,")")) -> 0 | N127: =IF(AND(SUM($G$92:G126)>0,G127>0),", ","") -> 
C128: 37 | F128: rot | G128: =COUNTIF(Kugeln!$X$4:$X$52,CONCATENATE("(",Ergebnismenge!C128,", ",F128,")")) -> 0 | N128: =IF(AND(SUM($G$92:G127)>0,G128>0),", ","") -> 
C129: 38 | F129: rot | G129: =COUNTIF(Kugeln!$X$4:$X$52,CONCATENATE("(",Ergebnismenge!C129,", ",F129,")")) -> 0 | N129: =IF(AND(SUM($G$92:G128)>0,G129>0),", ","") -> 
C130: 39 | F130: rot | G130: =COUNTIF(Kugeln!$X$4:$X$52,CONCATENATE("(",Ergebnismenge!C130,", ",F130,")")) -> 0 | N130: =IF(AND(SUM($G$92:G129)>0,G130>0),", ","") -> 
C131: 40 | F131: rot | G131: =COUNTIF(Kugeln!$X$4:$X$52,CONCATENATE("(",Ergebnismenge!C131,", ",F131,")")) -> 0 | N131: =IF(AND(SUM($G$92:G130)>0,G131>0),", ","") -> 
C132: 41 | F132: rot | G132: =COUNTIF(Kugeln!$X$4:$X$52,CONCATENATE("(",Ergebnismenge!C132,", ",F132,")")) -> 0 | N132: =IF(AND(SUM($G$92:G131)>0,G132>0),", ","") -> 
C133: 42 | F133: rot | G133: =COUNTIF(Kugeln!$X$4:$X$52,CONCATENATE("(",Ergebnismenge!C133,", ",F133,")")) -> 0 | N133: =IF(AND(SUM($G$92:G132)>0,G133>0),", ","") -> 
C134: 43 | F134: rot | G134: =COUNTIF(Kugeln!$X$4:$X$52,CONCATENATE("(",Ergebnismenge!C134,", ",F134,")")) -> 0 | N134: =IF(AND(SUM($G$92:G133)>0,G134>0),", ","") -> 
C135: 44 | F135: rot | G135: =COUNTIF(Kugeln!$X$4:$X$52,CONCATENATE("(",Ergebnismenge!C135,", ",F135,")")) -> 0 | N135: =IF(AND(SUM($G$92:G134)>0,G135>0),", ","") -> 
C136: 45 | F136: rot | G136: =COUNTIF(Kugeln!$X$4:$X$52,CONCATENATE("(",Ergebnismenge!C136,", ",F136,")")) -> 0 | N136: =IF(AND(SUM($G$92:G135)>0,G136>0),", ","") -> 
C137: 46 | F137: rot | G137: =COUNTIF(Kugeln!$X$4:$X$52,CONCATENATE("(",Ergebnismenge!C137,", ",F137,")")) -> 0 | N137: =IF(AND(SUM($G$92:G136)>0,G137>0),", ","") -> 
C138: 47 | F138: rot | G138: =COUNTIF(Kugeln!$X$4:$X$52,CONCATENATE("(",Ergebnismenge!C138,", ",F138,")")) -> 0 | N138: =IF(AND(SUM($G$92:G137)>0,G138>0),", ","") -> 
C139: 48 | F139: rot | G139: =COUNTIF(Kugeln!$X$4:$X$52,CONCATENATE("(",Ergebnismenge!C139,", ",F139,")")) -> 0 | N139: =IF(AND(SUM($G$92:G138)>0,G139>0),", ","") -> 
C140: 49 | F140: rot | G140: =COUNTIF(Kugeln!$X$4:$X$52,CONCATENATE("(",Ergebnismenge!C140,", ",F140,")")) -> 0 | N140: =IF(AND(SUM($G$92:G139)>0,G140>0),", ","") -> 
C141: 1 | F141: grün | G141: =COUNTIF(Kugeln!$X$4:$X$52,CONCATENATE("(",Ergebnismenge!C141,", ",F141,")")) -> 0 | N141: =IF(AND(SUM($G$92:G140)>0,G141>0),", ","") -> 
C142: 2 | F142: grün | G142: =COUNTIF(Kugeln!$X$4:$X$52,CONCATENATE("(",Ergebnismenge!C142,", ",F142,")")) -> 2 | N142: =IF(AND(SUM($G$92:G141)>0,G142>0),", ","") -> , | O142: (grün, 2) | V142: , (grün, 2)
C143: 3 | F143: grün | G143: =COUNTIF(Kugeln!$X$4:$X$52,CONCATENATE("(",Ergebnismenge!C143,", ",F143,")")) -> 1 | N143: =IF(AND(SUM($G$92:G142)>0,G143>0),", ","") -> , | O143: (grün, 3) | V143: , (grün, 3)
C144: 4 | F144: grün | G144: =COUNTIF(Kugeln!$X$4:$X$52,CONCATENATE("(",Ergebnismenge!C144,", ",F144,")")) -> 2 | N144: =IF(AND(SUM($G$92:G143)>0,G144>0),", ","") -> , | O144: (grün, 4) | V144: , (grün, 4)
C145: 5 | F145: grün | G145: =COUNTIF(Kugeln!$X$4:$X$52,CONCATENATE("(",Ergebnismenge!C145,", ",F145,")")) -> 1 | N145: =IF(AND(SUM($G$92:G144)>0,G145>0),", ","") -> , | O145: (grün, 5) | V145: , (grün, 5)
C146: 6 | F146: grün | G146: =COUNTIF(Kugeln!$X$4:$X$52,CONCATENATE("(",Ergebnismenge!C146,", ",F146,")")) -> 2 | N146: =IF(AND(SUM($G$92:G145)>0,G146>0),", ","") -> , | O146: (grün, 6) | V146: , (grün, 6)
C147: 7 | F147: grün | G147: =COUNTIF(Kugeln!$X$4:$X$52,CONCATENATE("(",Ergebnismenge!C147,", ",F147,")")) -> 2 | N147: =IF(AND(SUM($G$92:G146)>0,G147>0),", ","") -> , | O147: (grün, 7) | V147: , (grün, 7)
C148: 8 | F148: grün | G148: =COUNTIF(Kugeln!$X$4:$X$52,CONCATENATE("(",Ergebnismenge!C148,", ",F148,")")) -> 3 | N148: =IF(AND(SUM($G$92:G147)>0,G148>0),", ","") -> , | O148: (grün, 8) | V148: , (grün, 8)
C149: 9 | F149: grün | G149: =COUNTIF(Kugeln!$X$4:$X$52,CONCATENATE("(",Ergebnismenge!C149,", ",F149,")")) -> 2 | N149: =IF(AND(SUM($G$92:G148)>0,G149>0),", ","") -> , | O149: (grün, 9) | V149: , (grün, 9)
C150: 10 | F150: grün | G150: =COUNTIF(Kugeln!$X$4:$X$52,CONCATENATE("(",Ergebnismenge!C150,", ",F150,")")) -> 0 | N150: =IF(AND(SUM($G$92:G149)>0,G150>0),", ","") -> 
C151: 11 | F151: grün | G151: =COUNTIF(Kugeln!$X$4:$X$52,CONCATENATE("(",Ergebnismenge!C151,", ",F151,")")) -> 0 | N151: =IF(AND(SUM($G$92:G150)>0,G151>0),", ","") -> 
C152: 12 | F152: grün | G152: =COUNTIF(Kugeln!$X$4:$X$52,CONCATENATE("(",Ergebnismenge!C152,", ",F152,")")) -> 0 | N152: =IF(AND(SUM($G$92:G151)>0,G152>0),", ","") -> 
C153: 13 | F153: grün | G153: =COUNTIF(Kugeln!$X$4:$X$52,CONCATENATE("(",Ergebnismenge!C153,", ",F153,")")) -> 0 | N153: =IF(AND(SUM($G$92:G152)>0,G153>0),", ","") -> 
C154: 14 | F154: grün | G154: =COUNTIF(Kugeln!$X$4:$X$52,CONCATENATE("(",Ergebnismenge!C154,", ",F154,")")) -> 0 | N154: =IF(AND(SUM($G$92:G153)>0,G154>0),", ","") -> 
C155: 15 | F155: grün | G155: =COUNTIF(Kugeln!$X$4:$X$52,CONCATENATE("(",Ergebnismenge!C155,", ",F155,")")) -> 0 | N155: =IF(AND(SUM($G$92:G154)>0,G155>0),", ","") -> 
C156: 16 | F156: grün | G156: =COUNTIF(Kugeln!$X$4:$X$52,CONCATENATE("(",Ergebnismenge!C156,", ",F156,")")) -> 0 | N156: =IF(AND(SUM($G$92:G155)>0,G156>0),", ","") -> 
C157: 17 | F157: grün | G157: =COUNTIF(Kugeln!$X$4:$X$52,CONCATENATE("(",Ergebnismenge!C157,", ",F157,")")) -> 0 | N157: =IF(AND(SUM($G$92:G156)>0,G157>0),", ","") -> 
C158: 18 | F158: grün | G158: =COUNTIF(Kugeln!$X$4:$X$52,CONCATENATE("(",Ergebnismenge!C158,", ",F158,")")) -> 0 | N158: =IF(AND(SUM($G$92:G157)>0,G158>0),", ","") -> 
C159: 19 | F159: grün | G159: =COUNTIF(Kugeln!$X$4:$X$52,CONCATENATE("(",Ergebnismenge!C159,", ",F159,")")) -> 0 | N159: =IF(AND(SUM($G$92:G158)>0,G159>0),", ","") ->  | O159: =IF(G159>0,CONCATENATE("(",F159,", ",C159,")"),"") -> 
C160: 20 | F160: grün | G160: =COUNTIF(Kugeln!$X$4:$X$52,CONCATENATE("(",Ergebnismenge!C160,", ",F160,")")) -> 0 | N160: =IF(AND(SUM($G$92:G159)>0,G160>0),", ","") -> 
C161: 21 | F161: grün | G161: =COUNTIF(Kugeln!$X$4:$X$52,CONCATENATE("(",Ergebnismenge!C161,", ",F161,")")) -> 0 | N161: =IF(AND(SUM($G$92:G160)>0,G161>0),", ","") ->  | V161: =CONCATENATE(N161,O161) -> 
C162: 22 | F162: grün | G162: =COUNTIF(Kugeln!$X$4:$X$52,CONCATENATE("(",Ergebnismenge!C162,", ",F162,")")) -> 0 | N162: =IF(AND(SUM($G$92:G161)>0,G162>0),", ","") -> 
C163: 23 | F163: grün | G163: =COUNTIF(Kugeln!$X$4:$X$52,CONCATENATE("(",Ergebnismenge!C163,", ",F163,")")) -> 0 | N163: =IF(AND(SUM($G$92:G162)>0,G163>0),", ","") -> 
C164: 24 | F164: grün | G164: =COUNTIF(Kugeln!$X$4:$X$52,CONCATENATE("(",Ergebnismenge!C164,", ",F164,")")) -> 0 | N164: =IF(AND(SUM($G$92:G163)>0,G164>0),", ","") -> 
C165: 25 | F165: grün | G165: =COUNTIF(Kugeln!$X$4:$X$52,CONCATENATE("(",Ergebnismenge!C165,", ",F165,")")) -> 0 | N165: =IF(AND(SUM($G$92:G164)>0,G165>0),", ","") -> 
C166: 26 | F166: grün | G166: =COUNTIF(Kugeln!$X$4:$X$52,CONCATENATE("(",Ergebnismenge!C166,", ",F166,")")) -> 0 | N166: =IF(AND(SUM($G$92:G165)>0,G166>0),", ","") -> 
C167: 27 | F167: grün | G167: =COUNTIF(Kugeln!$X$4:$X$52,CONCATENATE("(",Ergebnismenge!C167,", ",F167,")")) -> 0 | N167: =IF(AND(SUM($G$92:G166)>0,G167>0),", ","") -> 
C168: 28 | F168: grün | G168: =COUNTIF(Kugeln!$X$4:$X$52,CONCATENATE("(",Ergebnismenge!C168,", ",F168,")")) -> 0 | N168: =IF(AND(SUM($G$92:G167)>0,G168>0),", ","") -> 
C169: 29 | F169: grün | G169: =COUNTIF(Kugeln!$X$4:$X$52,CONCATENATE("(",Ergebnismenge!C169,", ",F169,")")) -> 0 | N169: =IF(AND(SUM($G$92:G168)>0,G169>0),", ","") -> 
C170: 30 | F170: grün | G170: =COUNTIF(Kugeln!$X$4:$X$52,CONCATENATE("(",Ergebnismenge!C170,", ",F170,")")) -> 0 | N170: =IF(AND(SUM($G$92:G169)>0,G170>0),", ","") -> 
C171: 31 | F171: grün | G171: =COUNTIF(Kugeln!$X$4:$X$52,CONCATENATE("(",Ergebnismenge!C171,", ",F171,")")) -> 0 | N171: =IF(AND(SUM($G$92:G170)>0,G171>0),", ","") -> 
C172: 32 | F172: grün | G172: =COUNTIF(Kugeln!$X$4:$X$52,CONCATENATE("(",Ergebnismenge!C172,", ",F172,")")) -> 0 | N172: =IF(AND(SUM($G$92:G171)>0,G172>0),", ","") -> 
C173: 33 | F173: grün | G173: =COUNTIF(Kugeln!$X$4:$X$52,CONCATENATE("(",Ergebnismenge!C173,", ",F173,")")) -> 0 | N173: =IF(AND(SUM($G$92:G172)>0,G173>0),", ","") -> 
C174: 34 | F174: grün | G174: =COUNTIF(Kugeln!$X$4:$X$52,CONCATENATE("(",Ergebnismenge!C174,", ",F174,")")) -> 0 | N174: =IF(AND(SUM($G$92:G173)>0,G174>0),", ","") -> 
C175: 35 | F175: grün | G175: =COUNTIF(Kugeln!$X$4:$X$52,CONCATENATE("(",Ergebnismenge!C175,", ",F175,")")) -> 0 | N175: =IF(AND(SUM($G$92:G174)>0,G175>0),", ","") -> 
C176: 36 | F176: grün | G176: =COUNTIF(Kugeln!$X$4:$X$52,CONCATENATE("(",Ergebnismenge!C176,", ",F176,")")) -> 0 | N176: =IF(AND(SUM($G$92:G175)>0,G176>0),", ","") -> 
C177: 37 | F177: grün | G177: =COUNTIF(Kugeln!$X$4:$X$52,CONCATENATE("(",Ergebnismenge!C177,", ",F177,")")) -> 0 | N177: =IF(AND(SUM($G$92:G176)>0,G177>0),", ","") -> 
C178: 38 | F178: grün | G178: =COUNTIF(Kugeln!$X$4:$X$52,CONCATENATE("(",Ergebnismenge!C178,", ",F178,")")) -> 0 | N178: =IF(AND(SUM($G$92:G177)>0,G178>0),", ","") -> 
C179: 39 | F179: grün | G179: =COUNTIF(Kugeln!$X$4:$X$52,CONCATENATE("(",Ergebnismenge!C179,", ",F179,")")) -> 0 | N179: =IF(AND(SUM($G$92:G178)>0,G179>0),", ","") -> 
C180: 40 | F180: grün | G180: =COUNTIF(Kugeln!$X$4:$X$52,CONCATENATE("(",Ergebnismenge!C180,", ",F180,")")) -> 0 | N180: =IF(AND(SUM($G$92:G179)>0,G180>0),", ","") -> 
C181: 41 | F181: grün | G181: =COUNTIF(Kugeln!$X$4:$X$52,CONCATENATE("(",Ergebnismenge!C181,", ",F181,")")) -> 0 | N181: =IF(AND(SUM($G$92:G180)>0,G181>0),", ","") -> 
C182: 42 | F182: grün | G182: =COUNTIF(Kugeln!$X$4:$X$52,CONCATENATE("(",Ergebnismenge!C182,", ",F182,")")) -> 0 | N182: =IF(AND(SUM($G$92:G181)>0,G182>0),", ","") -> 
C183: 43 | F183: grün | G183: =COUNTIF(Kugeln!$X$4:$X$52,CONCATENATE("(",Ergebnismenge!C183,", ",F183,")")) -> 0 | N183: =IF(AND(SUM($G$92:G182)>0,G183>0),", ","") -> 
C184: 44 | F184: grün | G184: =COUNTIF(Kugeln!$X$4:$X$52,CONCATENATE("(",Ergebnismenge!C184,", ",F184,")")) -> 0 | N184: =IF(AND(SUM($G$92:G183)>0,G184>0),", ","") -> 
C185: 45 | F185: grün | G185: =COUNTIF(Kugeln!$X$4:$X$52,CONCATENATE("(",Ergebnismenge!C185,", ",F185,")")) -> 0 | N185: =IF(AND(SUM($G$92:G184)>0,G185>0),", ","") -> 
C186: 46 | F186: grün | G186: =COUNTIF(Kugeln!$X$4:$X$52,CONCATENATE("(",Ergebnismenge!C186,", ",F186,")")) -> 0 | N186: =IF(AND(SUM($G$92:G185)>0,G186>0),", ","") -> 
C187: 47 | F187: grün | G187: =COUNTIF(Kugeln!$X$4:$X$52,CONCATENATE("(",Ergebnismenge!C187,", ",F187,")")) -> 0 | N187: =IF(AND(SUM($G$92:G186)>0,G187>0),", ","") -> 
C188: 48 | F188: grün | G188: =COUNTIF(Kugeln!$X$4:$X$52,CONCATENATE("(",Ergebnismenge!C188,", ",F188,")")) -> 0 | N188: =IF(AND(SUM($G$92:G187)>0,G188>0),", ","") -> 
C189: 49 | F189: grün | G189: =COUNTIF(Kugeln!$X$4:$X$52,CONCATENATE("(",Ergebnismenge!C189,", ",F189,")")) -> 0 | N189: =IF(AND(SUM($G$92:G188)>0,G189>0),", ","") -> 
C190: 1 | F190: blau | G190: =COUNTIF(Kugeln!$X$4:$X$52,CONCATENATE("(",Ergebnismenge!C190,", ",F190,")")) -> 0 | N190: =IF(AND(SUM($G$92:G189)>0,G190>0),", ","") -> 
C191: 2 | F191: blau | G191: =COUNTIF(Kugeln!$X$4:$X$52,CONCATENATE("(",Ergebnismenge!C191,", ",F191,")")) -> 1 | N191: =IF(AND(SUM($G$92:G190)>0,G191>0),", ","") -> , | O191: (blau, 2) | V191: , (blau, 2)
C192: 3 | F192: blau | G192: =COUNTIF(Kugeln!$X$4:$X$52,CONCATENATE("(",Ergebnismenge!C192,", ",F192,")")) -> 0 | N192: =IF(AND(SUM($G$92:G191)>0,G192>0),", ","") -> 
C193: 4 | F193: blau | G193: =COUNTIF(Kugeln!$X$4:$X$52,CONCATENATE("(",Ergebnismenge!C193,", ",F193,")")) -> 0 | N193: =IF(AND(SUM($G$92:G192)>0,G193>0),", ","") -> 
C194: 5 | F194: blau | G194: =COUNTIF(Kugeln!$X$4:$X$52,CONCATENATE("(",Ergebnismenge!C194,", ",F194,")")) -> 2 | N194: =IF(AND(SUM($G$92:G193)>0,G194>0),", ","") -> , | O194: (blau, 5) | V194: , (blau, 5)
C195: 6 | F195: blau | G195: =COUNTIF(Kugeln!$X$4:$X$52,CONCATENATE("(",Ergebnismenge!C195,", ",F195,")")) -> 0 | N195: =IF(AND(SUM($G$92:G194)>0,G195>0),", ","") -> 
C196: 7 | F196: blau | G196: =COUNTIF(Kugeln!$X$4:$X$52,CONCATENATE("(",Ergebnismenge!C196,", ",F196,")")) -> 1 | N196: =IF(AND(SUM($G$92:G195)>0,G196>0),", ","") -> , | O196: (blau, 7) | V196: , (blau, 7)
C197: 8 | F197: blau | G197: =COUNTIF(Kugeln!$X$4:$X$52,CONCATENATE("(",Ergebnismenge!C197,", ",F197,")")) -> 1 | N197: =IF(AND(SUM($G$92:G196)>0,G197>0),", ","") -> , | O197: (blau, 8) | V197: , (blau, 8)
C198: 9 | F198: blau | G198: =COUNTIF(Kugeln!$X$4:$X$52,CONCATENATE("(",Ergebnismenge!C198,", ",F198,")")) -> 2 | N198: =IF(AND(SUM($G$92:G197)>0,G198>0),", ","") -> , | O198: (blau, 9) | V198: , (blau, 9)
C199: 10 | F199: blau | G199: =COUNTIF(Kugeln!$X$4:$X$52,CONCATENATE("(",Ergebnismenge!C199,", ",F199,")")) -> 0 | N199: =IF(AND(SUM($G$92:G198)>0,G199>0),", ","") -> 
C200: 11 | F200: blau | G200: =COUNTIF(Kugeln!$X$4:$X$52,CONCATENATE("(",Ergebnismenge!C200,", ",F200,")")) -> 0 | N200: =IF(AND(SUM($G$92:G199)>0,G200>0),", ","") -> 
C201: 12 | F201: blau | G201: =COUNTIF(Kugeln!$X$4:$X$52,CONCATENATE("(",Ergebnismenge!C201,", ",F201,")")) -> 0 | N201: =IF(AND(SUM($G$92:G200)>0,G201>0),", ","") -> 
C202: 13 | F202: blau | G202: =COUNTIF(Kugeln!$X$4:$X$52,CONCATENATE("(",Ergebnismenge!C202,", ",F202,")")) -> 0 | N202: =IF(AND(SUM($G$92:G201)>0,G202>0),", ","") -> 
C203: 14 | F203: blau | G203: =COUNTIF(Kugeln!$X$4:$X$52,CONCATENATE("(",Ergebnismenge!C203,", ",F203,")")) -> 0 | N203: =IF(AND(SUM($G$92:G202)>0,G203>0),", ","") -> 
C204: 15 | F204: blau | G204: =COUNTIF(Kugeln!$X$4:$X$52,CONCATENATE("(",Ergebnismenge!C204,", ",F204,")")) -> 0 | N204: =IF(AND(SUM($G$92:G203)>0,G204>0),", ","") -> 
C205: 16 | F205: blau | G205: =COUNTIF(Kugeln!$X$4:$X$52,CONCATENATE("(",Ergebnismenge!C205,", ",F205,")")) -> 0 | N205: =IF(AND(SUM($G$92:G204)>0,G205>0),", ","") -> 
C206: 17 | F206: blau | G206: =COUNTIF(Kugeln!$X$4:$X$52,CONCATENATE("(",Ergebnismenge!C206,", ",F206,")")) -> 0 | N206: =IF(AND(SUM($G$92:G205)>0,G206>0),", ","") -> 
C207: 18 | F207: blau | G207: =COUNTIF(Kugeln!$X$4:$X$52,CONCATENATE("(",Ergebnismenge!C207,", ",F207,")")) -> 0 | N207: =IF(AND(SUM($G$92:G206)>0,G207>0),", ","") -> 
C208: 19 | F208: blau | G208: =COUNTIF(Kugeln!$X$4:$X$52,CONCATENATE("(",Ergebnismenge!C208,", ",F208,")")) -> 0 | N208: =IF(AND(SUM($G$92:G207)>0,G208>0),", ","") -> 
C209: 20 | F209: blau | G209: =COUNTIF(Kugeln!$X$4:$X$52,CONCATENATE("(",Ergebnismenge!C209,", ",F209,")")) -> 0 | N209: =IF(AND(SUM($G$92:G208)>0,G209>0),", ","") -> 
C210: 21 | F210: blau | G210: =COUNTIF(Kugeln!$X$4:$X$52,CONCATENATE("(",Ergebnismenge!C210,", ",F210,")")) -> 0 | N210: =IF(AND(SUM($G$92:G209)>0,G210>0),", ","") -> 
C211: 22 | F211: blau | G211: =COUNTIF(Kugeln!$X$4:$X$52,CONCATENATE("(",Ergebnismenge!C211,", ",F211,")")) -> 0 | N211: =IF(AND(SUM($G$92:G210)>0,G211>0),", ","") -> 
C212: 23 | F212: blau | G212: =COUNTIF(Kugeln!$X$4:$X$52,CONCATENATE("(",Ergebnismenge!C212,", ",F212,")")) -> 0 | N212: =IF(AND(SUM($G$92:G211)>0,G212>0),", ","") -> 
C213: 24 | F213: blau | G213: =COUNTIF(Kugeln!$X$4:$X$52,CONCATENATE("(",Ergebnismenge!C213,", ",F213,")")) -> 0 | N213: =IF(AND(SUM($G$92:G212)>0,G213>0),", ","") -> 
C214: 25 | F214: blau | G214: =COUNTIF(Kugeln!$X$4:$X$52,CONCATENATE("(",Ergebnismenge!C214,", ",F214,")")) -> 0 | N214: =IF(AND(SUM($G$92:G213)>0,G214>0),", ","") -> 
C215: 26 | F215: blau | G215: =COUNTIF(Kugeln!$X$4:$X$52,CONCATENATE("(",Ergebnismenge!C215,", ",F215,")")) -> 0 | N215: =IF(AND(SUM($G$92:G214)>0,G215>0),", ","") -> 
C216: 27 | F216: blau | G216: =COUNTIF(Kugeln!$X$4:$X$52,CONCATENATE("(",Ergebnismenge!C216,", ",F216,")")) -> 0 | N216: =IF(AND(SUM($G$92:G215)>0,G216>0),", ","") -> 
C217: 28 | F217: blau | G217: =COUNTIF(Kugeln!$X$4:$X$52,CONCATENATE("(",Ergebnismenge!C217,", ",F217,")")) -> 0 | N217: =IF(AND(SUM($G$92:G216)>0,G217>0),", ","") -> 
C218: 29 | F218: blau | G218: =COUNTIF(Kugeln!$X$4:$X$52,CONCATENATE("(",Ergebnismenge!C218,", ",F218,")")) -> 0 | N218: =IF(AND(SUM($G$92:G217)>0,G218>0),", ","") -> 
C219: 30 | F219: blau | G219: =COUNTIF(Kugeln!$X$4:$X$52,CONCATENATE("(",Ergebnismenge!C219,", ",F219,")")) -> 0 | N219: =IF(AND(SUM($G$92:G218)>0,G219>0),", ","") -> 
... 119 more rows

Sheet Ergebnis-W.
B3: Gefäß mit Kugeln: | J3: =Kugeln!Y54 -> 49 | K3: Stück | AD3: Ergebnis-Wahrscheinlichkeiten | AP3: FALSE
C5: =Kugeln!Z4 -> grün | D5: 1 | G5: =Kugeln!Z11 -> grün | H5: 8 | K5: =Kugeln!Z18 -> gelb | L5: 15 | O5: =Kugeln!Z25 -> rot | P5: 22 | S5: =Kugeln!Z32 -> rot | T5: 29 | W5: =Kugeln!Z39 -> blau | X5: 36 | AA5: =Kugeln!Z46 -> blau | AB5: 43 | AD5: 1. Es wird 1-mal gezogen, Beobachtungskriterium: Farbe
C7: =Kugeln!Z5 -> grün | D7: 2 | G7: =Kugeln!Z12 -> gelb | H7: 9 | K7: =Kugeln!Z19 -> gelb | L7: 16 | O7: =Kugeln!Z26 -> grau | P7: 23 | S7: =Kugeln!Z33 -> gelb | T7: 30 | W7: =Kugeln!Z40 -> grau | X7: 37 | AA7: =Kugeln!Z47 -> grau | AB7: 44 | AD7: Ω = | AE7: =CONCATENATE("{",V37,V38,V39,V40,V41,"}") -> {rot, grün, blau, gelb, grau}
C9: =Kugeln!Z6 -> grün | D9: 3 | G9: =Kugeln!Z13 -> gelb | H9: 10 | K9: =Kugeln!Z20 -> rot | L9: 17 | O9: =Kugeln!Z27 -> grün | P9: 24 | S9: =Kugeln!Z34 -> grau | T9: 31 | W9: =Kugeln!Z41 -> grün | X9: 38 | AA9: =Kugeln!Z48 -> grün | AB9: 45 | AD9: |Ω| = | AE9: =G42 -> 5
C11: =Kugeln!Z7 -> grau | D11: 4 | G11: =Kugeln!Z14 -> grün | H11: 11 | K11: =Kugeln!Z21 -> grau | L11: 18 | O11: =Kugeln!Z28 -> grau | P11: 25 | S11: =Kugeln!Z35 -> blau | T11: 32 | W11: =Kugeln!Z42 -> grün | X11: 39 | AA11: =Kugeln!Z49 -> grün | AB11: 46
C13: =Kugeln!Z8 -> grün | D13: 5 | G13: =Kugeln!Z15 -> grau | H13: 12 | K13: =Kugeln!Z22 -> blau | L13: 19 | O13: =Kugeln!Z29 -> blau | P13: 26 | S13: =Kugeln!Z36 -> rot | T13: 33 | W13: =Kugeln!Z43 -> rot | X13: 40 | AA13: =Kugeln!Z50 -> grau | AB13: 47 | AD13: =G37 -> 6 | AE13: rote Kugeln | AH13: P(rot) | AI13: = | AJ13: =AD13 -> 6 | AK13: ≅ | AL13: =AJ13/AJ14 -> 0.1224489796 | AM13: ≅ | AN13: =AL13 -> 0.1224489796
AJ14: =$AD$28 -> 49 | AS14: =IF(OR(AL13=0,AL13=MAX($AL$13:$AL$26)),1,0) -> 0
C15: =Kugeln!Z9 -> gelb | D15: 6 | G15: =Kugeln!Z16 -> grau | H15: 13 | K15: =Kugeln!Z23 -> gelb | L15: 20 | O15: =Kugeln!Z30 -> grün | P15: 27 | S15: =Kugeln!Z37 -> grün | T15: 34 | W15: =Kugeln!Z44 -> rot | X15: 41 | AA15: =Kugeln!Z51 -> gelb | AB15: 48
AD16: =G38 -> 15 | AE16: grüne Kugeln | AH16: P(grün) | AI16: = | AJ16: =AD16 -> 15 | AK16: ≅ | AL16: =AJ16/AJ17 -> 0.306122449 | AM16: ≅ | AN16: =AL16 -> 0.306122449
C17: =Kugeln!Z10 -> blau | D17: 7 | G17: =Kugeln!Z17 -> grau | H17: 14 | K17: =Kugeln!Z24 -> grün | L17: 21 | O17: =Kugeln!Z31 -> grau | P17: 28 | S17: =Kugeln!Z38 -> grün | T17: 35 | W17: =Kugeln!Z45 -> gelb | X17: 42 | AA17: =Kugeln!Z52 -> blau | AB17: 49 | AJ17: =$AD$28 -> 49 | AP17: Alle Ergebnisse gleichwahrscheinlich: | AS17: =IF(OR(AL16=0,AL16=MAX($AL$13:$AL$26)),1,0) -> 1
AR18: =IF(SUM(AS14:AS26)=5,"ja","nein") -> nein
E19: FALSE | AD19: =G39 -> 7 | AE19: blaue Kugeln | AH19: P(blau) | AI19: = | AJ19: =AD19 -> 7 | AK19: ≅ | AL19: =AJ19/AJ20 -> 0.1428571429 | AM19: ≅ | AN19: =AL19 -> 0.1428571429
AJ20: =$AD$28 -> 49 | AS20: 0
AP21: ⇒ | AQ21: =IF(AR18="ja","Laplace-Experiment", "KEIN Laplace-Experiment") -> KEIN Laplace-Experiment
AD22: =G40 -> 9 | AE22: gelbe Kugeln | AH22: P(gelb) | AI22: = | AJ22: =AD22 -> 9 | AK22: ≅ | AL22: =AJ22/AJ23 -> 0.1836734694 | AM22: ≅ | AN22: =AL22 -> 0.1836734694
AJ23: =$AD$28 -> 49 | AS23: 0
AD25: =G41 -> 12 | AE25: graue Kugeln | AH25: P(grau) | AI25: = | AJ25: =AD25 -> 12 | AK25: ≅ | AL25: =AJ25/AJ26 -> 0.2448979592 | AM25: ≅ | AN25: =AL25 -> 0.2448979592
AJ26: =$AD$28 -> 49 | AS26: 0
AD28: =SUM(AD13:AD25) -> 49 | AE28: Kugeln (gesamt) | AH28: P(Ω) | AI28: = | AJ28: =AD28 -> 49 | AK28: ≅ | AL28: =AJ28/AJ29 -> 1 | AM28: ≅ | AN28: =AL28 -> 1
AJ29: =$AD$28 -> 49
B35: Anzahl Farben:
C37: rot | G37: =COUNTIF(Kugeln!$Y$4:$Z$52,Ergebnismenge!C30) -> 6 | O37: =IF(G37>0,C37,"") -> rot | V37: =CONCATENATE(N37,O37) -> rot
C38: grün | G38: =COUNTIF(Kugeln!$Y$4:$Z$52,Ergebnismenge!C31) -> 15 | N38: =IF(AND(SUM($G$37:G37)>0,G38>0),", ","") -> , | O38: =IF(G38>0,C38,"") -> grün | V38: =CONCATENATE(N38,O38) -> , grün
C39: blau | G39: =COUNTIF(Kugeln!$Y$4:$Z$52,Ergebnismenge!C32) -> 7 | N39: =IF(AND(SUM($G$37:G38)>0,G39>0),", ","") -> , | O39: =IF(G39>0,C39,"") -> blau | V39: , blau
C40: gelb | G40: =COUNTIF(Kugeln!$Y$4:$Z$52,Ergebnismenge!C33) -> 9 | N40: =IF(AND(SUM($G$37:G39)>0,G40>0),", ","") -> , | O40: =IF(G40>0,C40,"") -> gelb | V40: , gelb
C41: grau | G41: =COUNTIF(Kugeln!$Y$4:$Z$52,Ergebnismenge!C34) -> 12 | N41: =IF(AND(SUM($G$37:G40)>0,G41>0),", ","") -> , | O41: =IF(G41>0,C41,"") -> grau | V41: , grau
C42: |Ω| = | G42: =COUNTIF(G37:G41,">0") -> 5
B44: Anzahl Zahlen:
C46: 1 | G46: =COUNTIF(Kugeln!$Y$4:$Z$52,Ergebnismenge!C39) -> 0 | O46: =IF(G46>0,C46,"") -> 
C47: 2 | G47: =COUNTIF(Kugeln!$Y$4:$Z$52,Ergebnismenge!C40) -> 8 | N47: =IF(AND(SUM($G$46:G46)>0,G47>0),", ","") ->  | O47: 2 | V47: 2
C48: 3 | G48: =COUNTIF(Kugeln!$Y$4:$Z$52,Ergebnismenge!C41) -> 3 | N48: =IF(AND(SUM($G$46:G47)>0,G48>0),", ","") -> , | O48: 3 | V48: , 3
C49: 4 | G49: =COUNTIF(Kugeln!$Y$4:$Z$52,Ergebnismenge!C42) -> 5 | N49: =IF(AND(SUM($G$46:G48)>0,G49>0),", ","") -> , | O49: 4 | V49: , 4
C50: 5 | G50: =COUNTIF(Kugeln!$Y$4:$Z$52,Ergebnismenge!C43) -> 7 | N50: =IF(AND(SUM($G$46:G49)>0,G50>0),", ","") -> , | O50: 5 | V50: , 5
C51: 6 | G51: =COUNTIF(Kugeln!$Y$4:$Z$52,Ergebnismenge!C44) -> 7 | N51: =IF(AND(SUM($G$46:G50)>0,G51>0),", ","") -> , | O51: 6 | V51: , 6
C52: 7 | G52: =COUNTIF(Kugeln!$Y$4:$Z$52,Ergebnismenge!C45) -> 7 | N52: =IF(AND(SUM($G$46:G51)>0,G52>0),", ","") -> , | O52: 7 | V52: , 7
C53: 8 | G53: =COUNTIF(Kugeln!$Y$4:$Z$52,Ergebnismenge!C46) -> 6 | N53: =IF(AND(SUM($G$46:G52)>0,G53>0),", ","") -> , | O53: 8 | V53: , 8
C54: 9 | G54: =COUNTIF(Kugeln!$Y$4:$Z$52,Ergebnismenge!C47) -> 6 | N54: =IF(AND(SUM($G$46:G53)>0,G54>0),", ","") -> , | O54: 9 | V54: , 9
C55: 10 | G55: =COUNTIF(Kugeln!$Y$4:$Z$52,Ergebnismenge!C48) -> 0 | N55: =IF(AND(SUM($G$46:G54)>0,G55>0),", ","") -> 
C56: 11 | G56: =COUNTIF(Kugeln!$Y$4:$Z$52,Ergebnismenge!C49) -> 0 | N56: =IF(AND(SUM($G$46:G55)>0,G56>0),", ","") -> 
C57: 12 | G57: =COUNTIF(Kugeln!$Y$4:$Z$52,Ergebnismenge!C50) -> 0 | N57: =IF(AND(SUM($G$46:G56)>0,G57>0),", ","") -> 
C58: 13 | G58: =COUNTIF(Kugeln!$Y$4:$Z$52,Ergebnismenge!C51) -> 0 | N58: =IF(AND(SUM($G$46:G57)>0,G58>0),", ","") -> 
C59: 14 | G59: =COUNTIF(Kugeln!$Y$4:$Z$52,Ergebnismenge!C52) -> 0 | N59: =IF(AND(SUM($G$46:G58)>0,G59>0),", ","") -> 
C60: 15 | G60: =COUNTIF(Kugeln!$Y$4:$Z$52,Ergebnismenge!C53) -> 0 | N60: =IF(AND(SUM($G$46:G59)>0,G60>0),", ","") -> 
C61: 16 | G61: =COUNTIF(Kugeln!$Y$4:$Z$52,Ergebnismenge!C54) -> 0 | N61: =IF(AND(SUM($G$46:G60)>0,G61>0),", ","") -> 
C62: 17 | G62: =COUNTIF(Kugeln!$Y$4:$Z$52,Ergebnismenge!C55) -> 0 | N62: =IF(AND(SUM($G$46:G61)>0,G62>0),", ","") -> 
C63: 18 | G63: =COUNTIF(Kugeln!$Y$4:$Z$52,Ergebnismenge!C56) -> 0 | N63: =IF(AND(SUM($G$46:G62)>0,G63>0),", ","") -> 
C64: 19 | G64: =COUNTIF(Kugeln!$Y$4:$Z$52,Ergebnismenge!C57) -> 0 | N64: =IF(AND(SUM($G$46:G63)>0,G64>0),", ","") -> 
C65: 20 | G65: =COUNTIF(Kugeln!$Y$4:$Z$52,Ergebnismenge!C58) -> 0 | N65: =IF(AND(SUM($G$46:G64)>0,G65>0),", ","") -> 
C66: 21 | G66: =COUNTIF(Kugeln!$Y$4:$Z$52,Ergebnismenge!C59) -> 0 | N66: =IF(AND(SUM($G$46:G65)>0,G66>0),", ","") -> 
C67: 22 | G67: =COUNTIF(Kugeln!$Y$4:$Z$52,Ergebnismenge!C60) -> 0 | N67: =IF(AND(SUM($G$46:G66)>0,G67>0),", ","") -> 
C68: 23 | G68: =COUNTIF(Kugeln!$Y$4:$Z$52,Ergebnismenge!C61) -> 0 | N68: =IF(AND(SUM($G$46:G67)>0,G68>0),", ","") -> 
C69: 24 | G69: =COUNTIF(Kugeln!$Y$4:$Z$52,Ergebnismenge!C62) -> 0 | N69: =IF(AND(SUM($G$46:G68)>0,G69>0),", ","") -> 
C70: 25 | G70: =COUNTIF(Kugeln!$Y$4:$Z$52,Ergebnismenge!C63) -> 0 | N70: =IF(AND(SUM($G$46:G69)>0,G70>0),", ","") -> 
C71: 26 | G71: =COUNTIF(Kugeln!$Y$4:$Z$52,Ergebnismenge!C64) -> 0 | N71: =IF(AND(SUM($G$46:G70)>0,G71>0),", ","") -> 
C72: 27 | G72: =COUNTIF(Kugeln!$Y$4:$Z$52,Ergebnismenge!C65) -> 0 | N72: =IF(AND(SUM($G$46:G71)>0,G72>0),", ","") -> 
C73: 28 | G73: =COUNTIF(Kugeln!$Y$4:$Z$52,Ergebnismenge!C66) -> 0 | N73: =IF(AND(SUM($G$46:G72)>0,G73>0),", ","") -> 
C74: 29 | G74: =COUNTIF(Kugeln!$Y$4:$Z$52,Ergebnismenge!C67) -> 0 | N74: =IF(AND(SUM($G$46:G73)>0,G74>0),", ","") -> 
C75: 30 | G75: =COUNTIF(Kugeln!$Y$4:$Z$52,Ergebnismenge!C68) -> 0 | N75: =IF(AND(SUM($G$46:G74)>0,G75>0),", ","") -> 
C76: 31 | G76: =COUNTIF(Kugeln!$Y$4:$Z$52,Ergebnismenge!C69) -> 0 | N76: =IF(AND(SUM($G$46:G75)>0,G76>0),", ","") -> 
C77: 32 | G77: =COUNTIF(Kugeln!$Y$4:$Z$52,Ergebnismenge!C70) -> 0 | N77: =IF(AND(SUM($G$46:G76)>0,G77>0),", ","") -> 
C78: 33 | G78: =COUNTIF(Kugeln!$Y$4:$Z$52,Ergebnismenge!C71) -> 0 | N78: =IF(AND(SUM($G$46:G77)>0,G78>0),", ","") ->  | O78: =IF(G78>0,C78,"") -> 
C79: 34 | G79: =COUNTIF(Kugeln!$Y$4:$Z$52,Ergebnismenge!C72) -> 0 | N79: =IF(AND(SUM($G$46:G78)>0,G79>0),", ","") -> 
C80: 35 | G80: =COUNTIF(Kugeln!$Y$4:$Z$52,Ergebnismenge!C73) -> 0 | N80: =IF(AND(SUM($G$46:G79)>0,G80>0),", ","") -> 
C81: 36 | G81: =COUNTIF(Kugeln!$Y$4:$Z$52,Ergebnismenge!C74) -> 0 | N81: =IF(AND(SUM($G$46:G80)>0,G81>0),", ","") -> 
C82: 37 | G82: =COUNTIF(Kugeln!$Y$4:$Z$52,Ergebnismenge!C75) -> 0 | N82: =IF(AND(SUM($G$46:G81)>0,G82>0),", ","") -> 
C83: 38 | G83: =COUNTIF(Kugeln!$Y$4:$Z$52,Ergebnismenge!C76) -> 0 | N83: =IF(AND(SUM($G$46:G82)>0,G83>0),", ","") -> 
C84: 39 | G84: =COUNTIF(Kugeln!$Y$4:$Z$52,Ergebnismenge!C77) -> 0 | N84: =IF(AND(SUM($G$46:G83)>0,G84>0),", ","") -> 
C85: 40 | G85: =COUNTIF(Kugeln!$Y$4:$Z$52,Ergebnismenge!C78) -> 0 | N85: =IF(AND(SUM($G$46:G84)>0,G85>0),", ","") -> 
C86: 41 | G86: =COUNTIF(Kugeln!$Y$4:$Z$52,Ergebnismenge!C79) -> 0 | N86: =IF(AND(SUM($G$46:G85)>0,G86>0),", ","") -> 
C87: 42 | G87: =COUNTIF(Kugeln!$Y$4:$Z$52,Ergebnismenge!C80) -> 0 | N87: =IF(AND(SUM($G$46:G86)>0,G87>0),", ","") -> 
C88: 43 | G88: =COUNTIF(Kugeln!$Y$4:$Z$52,Ergebnismenge!C81) -> 0 | N88: =IF(AND(SUM($G$46:G87)>0,G88>0),", ","") -> 
C89: 44 | G89: =COUNTIF(Kugeln!$Y$4:$Z$52,Ergebnismenge!C82) -> 0 | N89: =IF(AND(SUM($G$46:G88)>0,G89>0),", ","") -> 
C90: 45 | G90: =COUNTIF(Kugeln!$Y$4:$Z$52,Ergebnismenge!C83) -> 0 | N90: =IF(AND(SUM($G$46:G89)>0,G90>0),", ","") -> 
C91: 46 | G91: =COUNTIF(Kugeln!$Y$4:$Z$52,Ergebnismenge!C84) -> 0 | N91: =IF(AND(SUM($G$46:G90)>0,G91>0),", ","") -> 
C92: 47 | G92: =COUNTIF(Kugeln!$Y$4:$Z$52,Ergebnismenge!C85) -> 0 | N92: =IF(AND(SUM($G$46:G91)>0,G92>0),", ","") -> 
C93: 48 | G93: =COUNTIF(Kugeln!$Y$4:$Z$52,Ergebnismenge!C86) -> 0 | N93: =IF(AND(SUM($G$46:G92)>0,G93>0),", ","") -> 
C94: 49 | G94: =COUNTIF(Kugeln!$Y$4:$Z$52,Ergebnismenge!C87) -> 0 | N94: =IF(AND(SUM($G$46:G93)>0,G94>0),", ","") -> 
C95: |Ω| = | G95: =COUNTIF(G46:G94,">0") -> 8
B97: Anzahl (Zahl, Farbe):
C99: 1 | F99: rot | G99: =COUNTIF(Kugeln!$X$4:$X$52,CONCATENATE("(",Ergebnismenge!C92,", ",F99,")")) -> 0 | O99: =IF(G99>0,CONCATENATE("(",F99,", ",C99,")"),"") -> 
C100: 2 | F100: rot | G100: =COUNTIF(Kugeln!$X$4:$X$52,CONCATENATE("(",Ergebnismenge!C93,", ",F100,")")) -> 1 | N100: =IF(AND(SUM($G$99:G99)>0,G100>0),", ","") ->  | O100: (rot, 2) | V100: (rot, 2)
C101: 3 | F101: rot | G101: =COUNTIF(Kugeln!$X$4:$X$52,CONCATENATE("(",Ergebnismenge!C94,", ",F101,")")) -> 0 | N101: =IF(AND(SUM($G$99:G100)>0,G101>0),", ","") ->  | O101: =IF(G101>0,CONCATENATE("(",F101,", ",C101,")"),"") -> 
C102: 4 | F102: rot | G102: =COUNTIF(Kugeln!$X$4:$X$52,CONCATENATE("(",Ergebnismenge!C95,", ",F102,")")) -> 1 | N102: =IF(AND(SUM($G$99:G101)>0,G102>0),", ","") -> , | O102: =IF(G102>0,CONCATENATE("(",F102,", ",C102,")"),"") -> (rot, 4) | V102: , (rot, 4)
C103: 5 | F103: rot | G103: =COUNTIF(Kugeln!$X$4:$X$52,CONCATENATE("(",Ergebnismenge!C96,", ",F103,")")) -> 0 | N103: =IF(AND(SUM($G$99:G102)>0,G103>0),", ","") -> 
C104: 6 | F104: rot | G104: =COUNTIF(Kugeln!$X$4:$X$52,CONCATENATE("(",Ergebnismenge!C97,", ",F104,")")) -> 2 | N104: =IF(AND(SUM($G$99:G103)>0,G104>0),", ","") -> , | O104: (rot, 6) | V104: =CONCATENATE(N104,O104) -> , (rot, 6)
C105: 7 | F105: rot | G105: =COUNTIF(Kugeln!$X$4:$X$52,CONCATENATE("(",Ergebnismenge!C98,", ",F105,")")) -> 1 | N105: =IF(AND(SUM($G$99:G104)>0,G105>0),", ","") -> , | O105: (rot, 7) | V105: , (rot, 7)
C106: 8 | F106: rot | G106: =COUNTIF(Kugeln!$X$4:$X$52,CONCATENATE("(",Ergebnismenge!C99,", ",F106,")")) -> 1 | N106: =IF(AND(SUM($G$99:G105)>0,G106>0),", ","") -> , | O106: (rot, 8) | V106: , (rot, 8)
C107: 9 | F107: rot | G107: =COUNTIF(Kugeln!$X$4:$X$52,CONCATENATE("(",Ergebnismenge!C100,", ",F107,")")) -> 0 | N107: =IF(AND(SUM($G$99:G106)>0,G107>0),", ","") -> 
C108: 10 | F108: rot | G108: =COUNTIF(Kugeln!$X$4:$X$52,CONCATENATE("(",Ergebnismenge!C101,", ",F108,")")) -> 0 | N108: =IF(AND(SUM($G$99:G107)>0,G108>0),", ","") -> 
C109: 11 | F109: rot | G109: =COUNTIF(Kugeln!$X$4:$X$52,CONCATENATE("(",Ergebnismenge!C102,", ",F109,")")) -> 0 | N109: =IF(AND(SUM($G$99:G108)>0,G109>0),", ","") -> 
C110: 12 | F110: rot | G110: =COUNTIF(Kugeln!$X$4:$X$52,CONCATENATE("(",Ergebnismenge!C103,", ",F110,")")) -> 0 | N110: =IF(AND(SUM($G$99:G109)>0,G110>0),", ","") -> 
C111: 13 | F111: rot | G111: =COUNTIF(Kugeln!$X$4:$X$52,CONCATENATE("(",Ergebnismenge!C104,", ",F111,")")) -> 0 | N111: =IF(AND(SUM($G$99:G110)>0,G111>0),", ","") -> 
C112: 14 | F112: rot | G112: =COUNTIF(Kugeln!$X$4:$X$52,CONCATENATE("(",Ergebnismenge!C105,", ",F112,")")) -> 0 | N112: =IF(AND(SUM($G$99:G111)>0,G112>0),", ","") -> 
C113: 15 | F113: rot | G113: =COUNTIF(Kugeln!$X$4:$X$52,CONCATENATE("(",Ergebnismenge!C106,", ",F113,")")) -> 0 | N113: =IF(AND(SUM($G$99:G112)>0,G113>0),", ","") -> 
C114: 16 | F114: rot | G114: =COUNTIF(Kugeln!$X$4:$X$52,CONCATENATE("(",Ergebnismenge!C107,", ",F114,")")) -> 0 | N114: =IF(AND(SUM($G$99:G113)>0,G114>0),", ","") -> 
C115: 17 | F115: rot | G115: =COUNTIF(Kugeln!$X$4:$X$52,CONCATENATE("(",Ergebnismenge!C108,", ",F115,")")) -> 0 | N115: =IF(AND(SUM($G$99:G114)>0,G115>0),", ","") -> 
C116: 18 | F116: rot | G116: =COUNTIF(Kugeln!$X$4:$X$52,CONCATENATE("(",Ergebnismenge!C109,", ",F116,")")) -> 0 | N116: =IF(AND(SUM($G$99:G115)>0,G116>0),", ","") -> 
C117: 19 | F117: rot | G117: =COUNTIF(Kugeln!$X$4:$X$52,CONCATENATE("(",Ergebnismenge!C110,", ",F117,")")) -> 0 | N117: =IF(AND(SUM($G$99:G116)>0,G117>0),", ","") -> 
C118: 20 | F118: rot | G118: =COUNTIF(Kugeln!$X$4:$X$52,CONCATENATE("(",Ergebnismenge!C111,", ",F118,")")) -> 0 | N118: =IF(AND(SUM($G$99:G117)>0,G118>0),", ","") -> 
C119: 21 | F119: rot | G119: =COUNTIF(Kugeln!$X$4:$X$52,CONCATENATE("(",Ergebnismenge!C112,", ",F119,")")) -> 0 | N119: =IF(AND(SUM($G$99:G118)>0,G119>0),", ","") -> 
C120: 22 | F120: rot | G120: =COUNTIF(Kugeln!$X$4:$X$52,CONCATENATE("(",Ergebnismenge!C113,", ",F120,")")) -> 0 | N120: =IF(AND(SUM($G$99:G119)>0,G120>0),", ","") -> 
C121: 23 | F121: rot | G121: =COUNTIF(Kugeln!$X$4:$X$52,CONCATENATE("(",Ergebnismenge!C114,", ",F121,")")) -> 0 | N121: =IF(AND(SUM($G$99:G120)>0,G121>0),", ","") -> 
C122: 24 | F122: rot | G122: =COUNTIF(Kugeln!$X$4:$X$52,CONCATENATE("(",Ergebnismenge!C115,", ",F122,")")) -> 0 | N122: =IF(AND(SUM($G$99:G121)>0,G122>0),", ","") -> 
C123: 25 | F123: rot | G123: =COUNTIF(Kugeln!$X$4:$X$52,CONCATENATE("(",Ergebnismenge!C116,", ",F123,")")) -> 0 | N123: =IF(AND(SUM($G$99:G122)>0,G123>0),", ","") -> 
C124: 26 | F124: rot | G124: =COUNTIF(Kugeln!$X$4:$X$52,CONCATENATE("(",Ergebnismenge!C117,", ",F124,")")) -> 0 | N124: =IF(AND(SUM($G$99:G123)>0,G124>0),", ","") -> 
C125: 27 | F125: rot | G125: =COUNTIF(Kugeln!$X$4:$X$52,CONCATENATE("(",Ergebnismenge!C118,", ",F125,")")) -> 0 | N125: =IF(AND(SUM($G$99:G124)>0,G125>0),", ","") -> 
C126: 28 | F126: rot | G126: =COUNTIF(Kugeln!$X$4:$X$52,CONCATENATE("(",Ergebnismenge!C119,", ",F126,")")) -> 0 | N126: =IF(AND(SUM($G$99:G125)>0,G126>0),", ","") -> 
C127: 29 | F127: rot | G127: =COUNTIF(Kugeln!$X$4:$X$52,CONCATENATE("(",Ergebnismenge!C120,", ",F127,")")) -> 0 | N127: =IF(AND(SUM($G$99:G126)>0,G127>0),", ","") -> 
C128: 30 | F128: rot | G128: =COUNTIF(Kugeln!$X$4:$X$52,CONCATENATE("(",Ergebnismenge!C121,", ",F128,")")) -> 0 | N128: =IF(AND(SUM($G$99:G127)>0,G128>0),", ","") -> 
C129: 31 | F129: rot | G129: =COUNTIF(Kugeln!$X$4:$X$52,CONCATENATE("(",Ergebnismenge!C122,", ",F129,")")) -> 0 | N129: =IF(AND(SUM($G$99:G128)>0,G129>0),", ","") -> 
C130: 32 | F130: rot | G130: =COUNTIF(Kugeln!$X$4:$X$52,CONCATENATE("(",Ergebnismenge!C123,", ",F130,")")) -> 0 | N130: =IF(AND(SUM($G$99:G129)>0,G130>0),", ","") -> 
C131: 33 | F131: rot | G131: =COUNTIF(Kugeln!$X$4:$X$52,CONCATENATE("(",Ergebnismenge!C124,", ",F131,")")) -> 0 | N131: =IF(AND(SUM($G$99:G130)>0,G131>0),", ","") -> 
C132: 34 | F132: rot | G132: =COUNTIF(Kugeln!$X$4:$X$52,CONCATENATE("(",Ergebnismenge!C125,", ",F132,")")) -> 0 | N132: =IF(AND(SUM($G$99:G131)>0,G132>0),", ","") -> 
C133: 35 | F133: rot | G133: =COUNTIF(Kugeln!$X$4:$X$52,CONCATENATE("(",Ergebnismenge!C126,", ",F133,")")) -> 0 | N133: =IF(AND(SUM($G$99:G132)>0,G133>0),", ","") -> 
C134: 36 | F134: rot | G134: =COUNTIF(Kugeln!$X$4:$X$52,CONCATENATE("(",Ergebnismenge!C127,", ",F134,")")) -> 0 | N134: =IF(AND(SUM($G$99:G133)>0,G134>0),", ","") -> 
C135: 37 | F135: rot | G135: =COUNTIF(Kugeln!$X$4:$X$52,CONCATENATE("(",Ergebnismenge!C128,", ",F135,")")) -> 0 | N135: =IF(AND(SUM($G$99:G134)>0,G135>0),", ","") -> 
C136: 38 | F136: rot | G136: =COUNTIF(Kugeln!$X$4:$X$52,CONCATENATE("(",Ergebnismenge!C129,", ",F136,")")) -> 0 | N136: =IF(AND(SUM($G$99:G135)>0,G136>0),", ","") -> 
C137: 39 | F137: rot | G137: =COUNTIF(Kugeln!$X$4:$X$52,CONCATENATE("(",Ergebnismenge!C130,", ",F137,")")) -> 0 | N137: =IF(AND(SUM($G$99:G136)>0,G137>0),", ","") -> 
C138: 40 | F138: rot | G138: =COUNTIF(Kugeln!$X$4:$X$52,CONCATENATE("(",Ergebnismenge!C131,", ",F138,")")) -> 0 | N138: =IF(AND(SUM($G$99:G137)>0,G138>0),", ","") -> 
C139: 41 | F139: rot | G139: =COUNTIF(Kugeln!$X$4:$X$52,CONCATENATE("(",Ergebnismenge!C132,", ",F139,")")) -> 0 | N139: =IF(AND(SUM($G$99:G138)>0,G139>0),", ","") -> 
C140: 42 | F140: rot | G140: =COUNTIF(Kugeln!$X$4:$X$52,CONCATENATE("(",Ergebnismenge!C133,", ",F140,")")) -> 0 | N140: =IF(AND(SUM($G$99:G139)>0,G140>0),", ","") -> 
C141: 43 | F141: rot | G141: =COUNTIF(Kugeln!$X$4:$X$52,CONCATENATE("(",Ergebnismenge!C134,", ",F141,")")) -> 0 | N141: =IF(AND(SUM($G$99:G140)>0,G141>0),", ","") -> 
C142: 44 | F142: rot | G142: =COUNTIF(Kugeln!$X$4:$X$52,CONCATENATE("(",Ergebnismenge!C135,", ",F142,")")) -> 0 | N142: =IF(AND(SUM($G$99:G141)>0,G142>0),", ","") -> 
C143: 45 | F143: rot | G143: =COUNTIF(Kugeln!$X$4:$X$52,CONCATENATE("(",Ergebnismenge!C136,", ",F143,")")) -> 0 | N143: =IF(AND(SUM($G$99:G142)>0,G143>0),", ","") -> 
C144: 46 | F144: rot | G144: =COUNTIF(Kugeln!$X$4:$X$52,CONCATENATE("(",Ergebnismenge!C137,", ",F144,")")) -> 0 | N144: =IF(AND(SUM($G$99:G143)>0,G144>0),", ","") -> 
C145: 47 | F145: rot | G145: =COUNTIF(Kugeln!$X$4:$X$52,CONCATENATE("(",Ergebnismenge!C138,", ",F145,")")) -> 0 | N145: =IF(AND(SUM($G$99:G144)>0,G145>0),", ","") -> 
C146: 48 | F146: rot | G146: =COUNTIF(Kugeln!$X$4:$X$52,CONCATENATE("(",Ergebnismenge!C139,", ",F146,")")) -> 0 | N146: =IF(AND(SUM($G$99:G145)>0,G146>0),", ","") -> 
C147: 49 | F147: rot | G147: =COUNTIF(Kugeln!$X$4:$X$52,CONCATENATE("(",Ergebnismenge!C140,", ",F147,")")) -> 0 | N147: =IF(AND(SUM($G$99:G146)>0,G147>0),", ","") -> 
C148: 1 | F148: grün | G148: =COUNTIF(Kugeln!$X$4:$X$52,CONCATENATE("(",Ergebnismenge!C141,", ",F148,")")) -> 0 | N148: =IF(AND(SUM($G$99:G147)>0,G148>0),", ","") -> 
C149: 2 | F149: grün | G149: =COUNTIF(Kugeln!$X$4:$X$52,CONCATENATE("(",Ergebnismenge!C142,", ",F149,")")) -> 2 | N149: =IF(AND(SUM($G$99:G148)>0,G149>0),", ","") -> , | O149: (grün, 2) | V149: , (grün, 2)
C150: 3 | F150: grün | G150: =COUNTIF(Kugeln!$X$4:$X$52,CONCATENATE("(",Ergebnismenge!C143,", ",F150,")")) -> 1 | N150: =IF(AND(SUM($G$99:G149)>0,G150>0),", ","") -> , | O150: (grün, 3) | V150: , (grün, 3)
C151: 4 | F151: grün | G151: =COUNTIF(Kugeln!$X$4:$X$52,CONCATENATE("(",Ergebnismenge!C144,", ",F151,")")) -> 2 | N151: =IF(AND(SUM($G$99:G150)>0,G151>0),", ","") -> , | O151: (grün, 4) | V151: , (grün, 4)
C152: 5 | F152: grün | G152: =COUNTIF(Kugeln!$X$4:$X$52,CONCATENATE("(",Ergebnismenge!C145,", ",F152,")")) -> 1 | N152: =IF(AND(SUM($G$99:G151)>0,G152>0),", ","") -> , | O152: (grün, 5) | V152: , (grün, 5)
C153: 6 | F153: grün | G153: =COUNTIF(Kugeln!$X$4:$X$52,CONCATENATE("(",Ergebnismenge!C146,", ",F153,")")) -> 2 | N153: =IF(AND(SUM($G$99:G152)>0,G153>0),", ","") -> , | O153: (grün, 6) | V153: , (grün, 6)
C154: 7 | F154: grün | G154: =COUNTIF(Kugeln!$X$4:$X$52,CONCATENATE("(",Ergebnismenge!C147,", ",F154,")")) -> 2 | N154: =IF(AND(SUM($G$99:G153)>0,G154>0),", ","") -> , | O154: (grün, 7) | V154: , (grün, 7)
C155: 8 | F155: grün | G155: =COUNTIF(Kugeln!$X$4:$X$52,CONCATENATE("(",Ergebnismenge!C148,", ",F155,")")) -> 3 | N155: =IF(AND(SUM($G$99:G154)>0,G155>0),", ","") -> , | O155: (grün, 8) | V155: , (grün, 8)
C156: 9 | F156: grün | G156: =COUNTIF(Kugeln!$X$4:$X$52,CONCATENATE("(",Ergebnismenge!C149,", ",F156,")")) -> 2 | N156: =IF(AND(SUM($G$99:G155)>0,G156>0),", ","") -> , | O156: (grün, 9) | V156: , (grün, 9)
C157: 10 | F157: grün | G157: =COUNTIF(Kugeln!$X$4:$X$52,CONCATENATE("(",Ergebnismenge!C150,", ",F157,")")) -> 0 | N157: =IF(AND(SUM($G$99:G156)>0,G157>0),", ","") -> 
C158: 11 | F158: grün | G158: =COUNTIF(Kugeln!$X$4:$X$52,CONCATENATE("(",Ergebnismenge!C151,", ",F158,")")) -> 0 | N158: =IF(AND(SUM($G$99:G157)>0,G158>0),", ","") -> 
C159: 12 | F159: grün | G159: =COUNTIF(Kugeln!$X$4:$X$52,CONCATENATE("(",Ergebnismenge!C152,", ",F159,")")) -> 0 | N159: =IF(AND(SUM($G$99:G158)>0,G159>0),", ","") -> 
C160: 13 | F160: grün | G160: =COUNTIF(Kugeln!$X$4:$X$52,CONCATENATE("(",Ergebnismenge!C153,", ",F160,")")) -> 0 | N160: =IF(AND(SUM($G$99:G159)>0,G160>0),", ","") -> 
C161: 14 | F161: grün | G161: =COUNTIF(Kugeln!$X$4:$X$52,CONCATENATE("(",Ergebnismenge!C154,", ",F161,")")) -> 0 | N161: =IF(AND(SUM($G$99:G160)>0,G161>0),", ","") -> 
C162: 15 | F162: grün | G162: =COUNTIF(Kugeln!$X$4:$X$52,CONCATENATE("(",Ergebnismenge!C155,", ",F162,")")) -> 0 | N162: =IF(AND(SUM($G$99:G161)>0,G162>0),", ","") -> 
C163: 16 | F163: grün | G163: =COUNTIF(Kugeln!$X$4:$X$52,CONCATENATE("(",Ergebnismenge!C156,", ",F163,")")) -> 0 | N163: =IF(AND(SUM($G$99:G162)>0,G163>0),", ","") -> 
C164: 17 | F164: grün | G164: =COUNTIF(Kugeln!$X$4:$X$52,CONCATENATE("(",Ergebnismenge!C157,", ",F164,")")) -> 0 | N164: =IF(AND(SUM($G$99:G163)>0,G164>0),", ","") -> 
C165: 18 | F165: grün | G165: =COUNTIF(Kugeln!$X$4:$X$52,CONCATENATE("(",Ergebnismenge!C158,", ",F165,")")) -> 0 | N165: =IF(AND(SUM($G$99:G164)>0,G165>0),", ","") -> 
C166: 19 | F166: grün | G166: =COUNTIF(Kugeln!$X$4:$X$52,CONCATENATE("(",Ergebnismenge!C159,", ",F166,")")) -> 0 | N166: =IF(AND(SUM($G$99:G165)>0,G166>0),", ","") ->  | O166: =IF(G166>0,CONCATENATE("(",F166,", ",C166,")"),"") -> 
C167: 20 | F167: grün | G167: =COUNTIF(Kugeln!$X$4:$X$52,CONCATENATE("(",Ergebnismenge!C160,", ",F167,")")) -> 0 | N167: =IF(AND(SUM($G$99:G166)>0,G167>0),", ","") -> 
C168: 21 | F168: grün | G168: =COUNTIF(Kugeln!$X$4:$X$52,CONCATENATE("(",Ergebnismenge!C161,", ",F168,")")) -> 0 | N168: =IF(AND(SUM($G$99:G167)>0,G168>0),", ","") ->  | V168: =CONCATENATE(N168,O168) -> 
C169: 22 | F169: grün | G169: =COUNTIF(Kugeln!$X$4:$X$52,CONCATENATE("(",Ergebnismenge!C162,", ",F169,")")) -> 0 | N169: =IF(AND(SUM($G$99:G168)>0,G169>0),", ","") -> 
C170: 23 | F170: grün | G170: =COUNTIF(Kugeln!$X$4:$X$52,CONCATENATE("(",Ergebnismenge!C163,", ",F170,")")) -> 0 | N170: =IF(AND(SUM($G$99:G169)>0,G170>0),", ","") -> 
C171: 24 | F171: grün | G171: =COUNTIF(Kugeln!$X$4:$X$52,CONCATENATE("(",Ergebnismenge!C164,", ",F171,")")) -> 0 | N171: =IF(AND(SUM($G$99:G170)>0,G171>0),", ","") -> 
C172: 25 | F172: grün | G172: =COUNTIF(Kugeln!$X$4:$X$52,CONCATENATE("(",Ergebnismenge!C165,", ",F172,")")) -> 0 | N172: =IF(AND(SUM($G$99:G171)>0,G172>0),", ","") -> 
C173: 26 | F173: grün | G173: =COUNTIF(Kugeln!$X$4:$X$52,CONCATENATE("(",Ergebnismenge!C166,", ",F173,")")) -> 0 | N173: =IF(AND(SUM($G$99:G172)>0,G173>0),", ","") -> 
C174: 27 | F174: grün | G174: =COUNTIF(Kugeln!$X$4:$X$52,CONCATENATE("(",Ergebnismenge!C167,", ",F174,")")) -> 0 | N174: =IF(AND(SUM($G$99:G173)>0,G174>0),", ","") -> 
C175: 28 | F175: grün | G175: =COUNTIF(Kugeln!$X$4:$X$52,CONCATENATE("(",Ergebnismenge!C168,", ",F175,")")) -> 0 | N175: =IF(AND(SUM($G$99:G174)>0,G175>0),", ","") -> 
C176: 29 | F176: grün | G176: =COUNTIF(Kugeln!$X$4:$X$52,CONCATENATE("(",Ergebnismenge!C169,", ",F176,")")) -> 0 | N176: =IF(AND(SUM($G$99:G175)>0,G176>0),", ","") -> 
C177: 30 | F177: grün | G177: =COUNTIF(Kugeln!$X$4:$X$52,CONCATENATE("(",Ergebnismenge!C170,", ",F177,")")) -> 0 | N177: =IF(AND(SUM($G$99:G176)>0,G177>0),", ","") -> 
C178: 31 | F178: grün | G178: =COUNTIF(Kugeln!$X$4:$X$52,CONCATENATE("(",Ergebnismenge!C171,", ",F178,")")) -> 0 | N178: =IF(AND(SUM($G$99:G177)>0,G178>0),", ","") -> 
C179: 32 | F179: grün | G179: =COUNTIF(Kugeln!$X$4:$X$52,CONCATENATE("(",Ergebnismenge!C172,", ",F179,")")) -> 0 | N179: =IF(AND(SUM($G$99:G178)>0,G179>0),", ","") -> 
C180: 33 | F180: grün | G180: =COUNTIF(Kugeln!$X$4:$X$52,CONCATENATE("(",Ergebnismenge!C173,", ",F180,")")) -> 0 | N180: =IF(AND(SUM($G$99:G179)>0,G180>0),", ","") -> 
C181: 34 | F181: grün | G181: =COUNTIF(Kugeln!$X$4:$X$52,CONCATENATE("(",Ergebnismenge!C174,", ",F181,")")) -> 0 | N181: =IF(AND(SUM($G$99:G180)>0,G181>0),", ","") -> 
C182: 35 | F182: grün | G182: =COUNTIF(Kugeln!$X$4:$X$52,CONCATENATE("(",Ergebnismenge!C175,", ",F182,")")) -> 0 | N182: =IF(AND(SUM($G$99:G181)>0,G182>0),", ","") -> 
C183: 36 | F183: grün | G183: =COUNTIF(Kugeln!$X$4:$X$52,CONCATENATE("(",Ergebnismenge!C176,", ",F183,")")) -> 0 | N183: =IF(AND(SUM($G$99:G182)>0,G183>0),", ","") -> 
C184: 37 | F184: grün | G184: =COUNTIF(Kugeln!$X$4:$X$52,CONCATENATE("(",Ergebnismenge!C177,", ",F184,")")) -> 0 | N184: =IF(AND(SUM($G$99:G183)>0,G184>0),", ","") -> 
C185: 38 | F185: grün | G185: =COUNTIF(Kugeln!$X$4:$X$52,CONCATENATE("(",Ergebnismenge!C178,", ",F185,")")) -> 0 | N185: =IF(AND(SUM($G$99:G184)>0,G185>0),", ","") -> 
C186: 39 | F186: grün | G186: =COUNTIF(Kugeln!$X$4:$X$52,CONCATENATE("(",Ergebnismenge!C179,", ",F186,")")) -> 0 | N186: =IF(AND(SUM($G$99:G185)>0,G186>0),", ","") -> 
C187: 40 | F187: grün | G187: =COUNTIF(Kugeln!$X$4:$X$52,CONCATENATE("(",Ergebnismenge!C180,", ",F187,")")) -> 0 | N187: =IF(AND(SUM($G$99:G186)>0,G187>0),", ","") -> 
C188: 41 | F188: grün | G188: =COUNTIF(Kugeln!$X$4:$X$52,CONCATENATE("(",Ergebnismenge!C181,", ",F188,")")) -> 0 | N188: =IF(AND(SUM($G$99:G187)>0,G188>0),", ","") -> 
C189: 42 | F189: grün | G189: =COUNTIF(Kugeln!$X$4:$X$52,CONCATENATE("(",Ergebnismenge!C182,", ",F189,")")) -> 0 | N189: =IF(AND(SUM($G$99:G188)>0,G189>0),", ","") -> 
C190: 43 | F190: grün | G190: =COUNTIF(Kugeln!$X$4:$X$52,CONCATENATE("(",Ergebnismenge!C183,", ",F190,")")) -> 0 | N190: =IF(AND(SUM($G$99:G189)>0,G190>0),", ","") -> 
C191: 44 | F191: grün | G191: =COUNTIF(Kugeln!$X$4:$X$52,CONCATENATE("(",Ergebnismenge!C184,", ",F191,")")) -> 0 | N191: =IF(AND(SUM($G$99:G190)>0,G191>0),", ","") -> 
C192: 45 | F192: grün | G192: =COUNTIF(Kugeln!$X$4:$X$52,CONCATENATE("(",Ergebnismenge!C185,", ",F192,")")) -> 0 | N192: =IF(AND(SUM($G$99:G191)>0,G192>0),", ","") -> 
C193: 46 | F193: grün | G193: =COUNTIF(Kugeln!$X$4:$X$52,CONCATENATE("(",Ergebnismenge!C186,", ",F193,")")) -> 0 | N193: =IF(AND(SUM($G$99:G192)>0,G193>0),", ","") -> 
C194: 47 | F194: grün | G194: =COUNTIF(Kugeln!$X$4:$X$52,CONCATENATE("(",Ergebnismenge!C187,", ",F194,")")) -> 0 | N194: =IF(AND(SUM($G$99:G193)>0,G194>0),", ","") -> 
C195: 48 | F195: grün | G195: =COUNTIF(Kugeln!$X$4:$X$52,CONCATENATE("(",Ergebnismenge!C188,", ",F195,")")) -> 0 | N195: =IF(AND(SUM($G$99:G194)>0,G195>0),", ","") -> 
C196: 49 | F196: grün | G196: =COUNTIF(Kugeln!$X$4:$X$52,CONCATENATE("(",Ergebnismenge!C189,", ",F196,")")) -> 0 | N196: =IF(AND(SUM($G$99:G195)>0,G196>0),", ","") -> 
C197: 1 | F197: blau | G197: =COUNTIF(Kugeln!$X$4:$X$52,CONCATENATE("(",Ergebnismenge!C190,", ",F197,")")) -> 0 | N197: =IF(AND(SUM($G$99:G196)>0,G197>0),", ","") -> 
C198: 2 | F198: blau | G198: =COUNTIF(Kugeln!$X$4:$X$52,CONCATENATE("(",Ergebnismenge!C191,", ",F198,")")) -> 1 | N198: =IF(AND(SUM($G$99:G197)>0,G198>0),", ","") -> , | O198: (blau, 2) | V198: , (blau, 2)
C199: 3 | F199: blau | G199: =COUNTIF(Kugeln!$X$4:$X$52,CONCATENATE("(",Ergebnismenge!C192,", ",F199,")")) -> 0 | N199: =IF(AND(SUM($G$99:G198)>0,G199>0),", ","") -> 
C200: 4 | F200: blau | G200: =COUNTIF(Kugeln!$X$4:$X$52,CONCATENATE("(",Ergebnismenge!C193,", ",F200,")")) -> 0 | N200: =IF(AND(SUM($G$99:G199)>0,G200>0),", ","") -> 
C201: 5 | F201: blau | G201: =COUNTIF(Kugeln!$X$4:$X$52,CONCATENATE("(",Ergebnismenge!C194,", ",F201,")")) -> 2 | N201: =IF(AND(SUM($G$99:G200)>0,G201>0),", ","") -> , | O201: (blau, 5) | V201: , (blau, 5)
C202: 6 | F202: blau | G202: =COUNTIF(Kugeln!$X$4:$X$52,CONCATENATE("(",Ergebnismenge!C195,", ",F202,")")) -> 0 | N202: =IF(AND(SUM($G$99:G201)>0,G202>0),", ","") -> 
C203: 7 | F203: blau | G203: =COUNTIF(Kugeln!$X$4:$X$52,CONCATENATE("(",Ergebnismenge!C196,", ",F203,")")) -> 1 | N203: =IF(AND(SUM($G$99:G202)>0,G203>0),", ","") -> , | O203: (blau, 7) | V203: , (blau, 7)
C204: 8 | F204: blau | G204: =COUNTIF(Kugeln!$X$4:$X$52,CONCATENATE("(",Ergebnismenge!C197,", ",F204,")")) -> 1 | N204: =IF(AND(SUM($G$99:G203)>0,G204>0),", ","") -> , | O204: (blau, 8) | V204: , (blau, 8)
C205: 9 | F205: blau | G205: =COUNTIF(Kugeln!$X$4:$X$52,CONCATENATE("(",Ergebnismenge!C198,", ",F205,")")) -> 2 | N205: =IF(AND(SUM($G$99:G204)>0,G205>0),", ","") -> , | O205: (blau, 9) | V205: , (blau, 9)
C206: 10 | F206: blau | G206: =COUNTIF(Kugeln!$X$4:$X$52,CONCATENATE("(",Ergebnismenge!C199,", ",F206,")")) -> 0 | N206: =IF(AND(SUM($G$99:G205)>0,G206>0),", ","") -> 
C207: 11 | F207: blau | G207: =COUNTIF(Kugeln!$X$4:$X$52,CONCATENATE("(",Ergebnismenge!C200,", ",F207,")")) -> 0 | N207: =IF(AND(SUM($G$99:G206)>0,G207>0),", ","") -> 
C208: 12 | F208: blau | G208: =COUNTIF(Kugeln!$X$4:$X$52,CONCATENATE("(",Ergebnismenge!C201,", ",F208,")")) -> 0 | N208: =IF(AND(SUM($G$99:G207)>0,G208>0),", ","") -> 
C209: 13 | F209: blau | G209: =COUNTIF(Kugeln!$X$4:$X$52,CONCATENATE("(",Ergebnismenge!C202,", ",F209,")")) -> 0 | N209: =IF(AND(SUM($G$99:G208)>0,G209>0),", ","") -> 
C210: 14 | F210: blau | G210: =COUNTIF(Kugeln!$X$4:$X$52,CONCATENATE("(",Ergebnismenge!C203,", ",F210,")")) -> 0 | N210: =IF(AND(SUM($G$99:G209)>0,G210>0),", ","") -> 
C211: 15 | F211: blau | G211: =COUNTIF(Kugeln!$X$4:$X$52,CONCATENATE("(",Ergebnismenge!C204,", ",F211,")")) -> 0 | N211: =IF(AND(SUM($G$99:G210)>0,G211>0),", ","") -> 
C212: 16 | F212: blau | G212: =COUNTIF(Kugeln!$X$4:$X$52,CONCATENATE("(",Ergebnismenge!C205,", ",F212,")")) -> 0 | N212: =IF(AND(SUM($G$99:G211)>0,G212>0),", ","") -> 
C213: 17 | F213: blau | G213: =COUNTIF(Kugeln!$X$4:$X$52,CONCATENATE("(",Ergebnismenge!C206,", ",F213,")")) -> 0 | N213: =IF(AND(SUM($G$99:G212)>0,G213>0),", ","") -> 
C214: 18 | F214: blau | G214: =COUNTIF(Kugeln!$X$4:$X$52,CONCATENATE("(",Ergebnismenge!C207,", ",F214,")")) -> 0 | N214: =IF(AND(SUM($G$99:G213)>0,G214>0),", ","") -> 
C215: 19 | F215: blau | G215: =COUNTIF(Kugeln!$X$4:$X$52,CONCATENATE("(",Ergebnismenge!C208,", ",F215,")")) -> 0 | N215: =IF(AND(SUM($G$99:G214)>0,G215>0),", ","") -> 
C216: 20 | F216: blau | G216: =COUNTIF(Kugeln!$X$4:$X$52,CONCATENATE("(",Ergebnismenge!C209,", ",F216,")")) -> 0 | N216: =IF(AND(SUM($G$99:G215)>0,G216>0),", ","") -> 
C217: 21 | F217: blau | G217: =COUNTIF(Kugeln!$X$4:$X$52,CONCATENATE("(",Ergebnismenge!C210,", ",F217,")")) -> 0 | N217: =IF(AND(SUM($G$99:G216)>0,G217>0),", ","") -> 
C218: 22 | F218: blau | G218: =COUNTIF(Kugeln!$X$4:$X$52,CONCATENATE("(",Ergebnismenge!C211,", ",F218,")")) -> 0 | N218: =IF(AND(SUM($G$99:G217)>0,G218>0),", ","") -> 
C219: 23 | F219: blau | G219: =COUNTIF(Kugeln!$X$4:$X$52,CONCATENATE("(",Ergebnismenge!C212,", ",F219,")")) -> 0 | N219: =IF(AND(SUM($G$99:G218)>0,G219>0),", ","") -> 
... 126 more rows

Sheet Ereignis-W. (1)
AS2: FALSE | AU2: FALSE
B3: Gefäß mit Kugeln: | J3: =Kugeln!Y54 -> 49 | K3: Stück | AD3: Ereignis-Wahrscheinlichkeiten (1)
C5: =Kugeln!Z4 -> grün | D5: 1 | G5: =Kugeln!Z11 -> grün | H5: 8 | K5: =Kugeln!Z18 -> gelb | L5: 15 | O5: =Kugeln!Z25 -> rot | P5: 22 | S5: =Kugeln!Z32 -> rot | T5: 29 | W5: =Kugeln!Z39 -> blau | X5: 36 | AA5: =Kugeln!Z46 -> blau | AB5: 43 | AD5: 1. Es wird 1-mal gezogen, Beobachtungskriterium: Farbe
C7: =Kugeln!Z5 -> grün | D7: 2 | G7: =Kugeln!Z12 -> gelb | H7: 9 | K7: =Kugeln!Z19 -> gelb | L7: 16 | O7: =Kugeln!Z26 -> grau | P7: 23 | S7: =Kugeln!Z33 -> gelb | T7: 30 | W7: =Kugeln!Z40 -> grau | X7: 37 | AA7: =Kugeln!Z47 -> grau | AB7: 44 | AD7: Ω = | AE7: =CONCATENATE("{",V60,V61,V62,V63,V64,"}") -> {rot, grün, blau, gelb, grau}
C9: =Kugeln!Z6 -> grün | D9: 3 | G9: =Kugeln!Z13 -> gelb | H9: 10 | K9: =Kugeln!Z20 -> rot | L9: 17 | O9: =Kugeln!Z27 -> grün | P9: 24 | S9: =Kugeln!Z34 -> grau | T9: 31 | W9: =Kugeln!Z41 -> grün | X9: 38 | AA9: =Kugeln!Z48 -> grün | AB9: 45 | AD9: |Ω| = | AE9: =G65 -> 5
C11: =Kugeln!Z7 -> grau | D11: 4 | G11: =Kugeln!Z14 -> grün | H11: 11 | K11: =Kugeln!Z21 -> grau | L11: 18 | O11: =Kugeln!Z28 -> grau | P11: 25 | S11: =Kugeln!Z35 -> blau | T11: 32 | W11: =Kugeln!Z42 -> grün | X11: 39 | AA11: =Kugeln!Z49 -> grün | AB11: 46
AD12: (Elementar-)Ereignisse:
C13: =Kugeln!Z8 -> grün | D13: 5 | G13: =Kugeln!Z15 -> grau | H13: 12 | K13: =Kugeln!Z22 -> blau | L13: 19 | O13: =Kugeln!Z29 -> blau | P13: 26 | S13: =Kugeln!Z36 -> rot | T13: 33 | W13: =Kugeln!Z43 -> rot | X13: 40 | AA13: =Kugeln!Z50 -> grau | AB13: 47
AE14: A | AG14: : | AH14: Es wird eine rote Kugel gezogen. | AM14: ⇒ | AN14: P(A) | AO14: ≅ | AP14: =G21 -> 0.1224489796 | AT14: =IF(OR(AM37=0,AM37=MAX($AM$37:$AM$50)),1,0) -> 0
C15: =Kugeln!Z9 -> gelb | D15: 6 | G15: =Kugeln!Z16 -> grau | H15: 13 | K15: =Kugeln!Z23 -> gelb | L15: 20 | O15: =Kugeln!Z30 -> grün | P15: 27 | S15: =Kugeln!Z37 -> grün | T15: 34 | W15: =Kugeln!Z44 -> rot | X15: 41 | AA15: =Kugeln!Z51 -> gelb | AB15: 48
AE16: B | AG16: : | AH16: Es wird eine grüne Kugel gezogen. | AM16: ⇒ | AN16: P(B) | AO16: ≅ | AP16: =G23 -> 0.306122449
C17: =Kugeln!Z10 -> blau | D17: 7 | G17: =Kugeln!Z17 -> grau | H17: 14 | K17: =Kugeln!Z24 -> grün | L17: 21 | O17: =Kugeln!Z31 -> grau | P17: 28 | S17: =Kugeln!Z38 -> grün | T17: 35 | W17: =Kugeln!Z45 -> gelb | X17: 42 | AA17: =Kugeln!Z52 -> blau | AB17: 49 | AT17: =IF(OR(AM40=0,AM40=MAX($AM$37:$AM$50)),1,0) -> 1
AE18: C | AG18: : | AH18: Es wird eine blaue Kugel gezogen. | AM18: ⇒ | AN18: P(C) | AO18: ≅ | AP18: =G25 -> 0.1428571429
E19: FALSE
AE20: D | AG20: : | AH20: Es wird eine gelbe Kugel gezogen. | AM20: ⇒ | AN20: P(D) | AO20: ≅ | AP20: =G27 -> 0.1836734694 | AT20: =IF(OR(AM43=0,AM43=MAX($AM$37:$AM$50)),1,0) -> 0
B21: =AH37 -> P(rot) | F21: ≅ | G21: =AM37 -> 0.1224489796
AE22: E | AG22: : | AH22: Es wird eine graue Kugel gezogen. | AM22: ⇒ | AN22: P(E) | AO22: ≅ | AP22: =G29 -> 0.2448979592
B23: =AH40 -> P(grün) | F23: ≅ | G23: =AM40 -> 0.306122449
B25: =AH43 -> P(blau) | F25: ≅ | G25: =AM43 -> 0.1428571429 | AD25: Verknüpfung von Ereignissen:
B27: =AH46 -> P(gelb) | F27: ≅ | G27: =AM46 -> 0.1836734694 | AD27: A | AE27: ∪ | AF27: B | AG27: : | AH27: Es wird eine | AI27: =IF(AD27="A","rote", IF(AD27="B","grüne",IF(AD27="C","blaue",IF(AD27="D","gelbe",IF(AD27="E","graue",""))))) -> rote | AJ27: ODER | AK27: =IF(AF27="A","rote", IF(AF27="B","grüne",IF(AF27="C","blaue",IF(AF27="D","gelbe",IF(AF27="E","graue",""))))) -> grüne | AL27: Kugel gezogen. | AM27: ⇒ | AN27: =CONCATENATE("P(",AD27,AE27,AF27,")") -> P(A ∪ B) | AO27: ≅ | AP27: =CONCATENATE("P(",AD27,")" ) -> P(A) | AQ27: + | AR27: =CONCATENATE(" P(",AF27,")") -> P(B) | AS27: - | AT27: =CONCATENATE("P(",AD27," ∩ ",AF27,")") -> P(A ∩ B)
B29: =AH49 -> P(grau) | F29: ≅ | G29: =AM49 -> 0.2448979592 | AO29: ≅ | AP29: =IF(AD27="A",$AP$14,IF(AD27="B",$AP$16,IF(AD27="C",$AP$18,IF(AD27="D",$AP$20,IF(AD27="E",$AP$22))))) -> 0.1224489796 | AQ29: + | AR29: =IF(AF27="A",$AP$14,IF(AF27="B",$AP$16,IF(AF27="C",$AP$18,IF(AF27="D",$AP$20,IF(AF27="E",$AP$22))))) -> 0.306122449 | AS29: - | AT29: =IF(AD27=AF27,AP29,0) -> 0
B31: P(Ω) | F31: ≅ | G31: =SUM(G21:J29) -> 1 | AO31: ≅ | AP31: =AP29+AR29-AT29 -> 0.4285714286 | AT31: =IF(OR(AM46=0,AM46=MAX($AM$37:$AM$50)),1,0) -> 0
AT32: =IF(OR(AM49=0,AM49=MAX($AM$37:$AM$50)),1,0) -> 0
AD37: =G60 -> 6 | AF37: rote Kugeln | AH37: P(rot) | AI37: = | AJ37: =AD37 -> 6 | AK37: ≅ | AM37: =AJ37/AJ38 -> 0.1224489796 | AN37: ≅ | AO37: =AM37 -> 0.1224489796 | AU37: A
AJ38: =$AD$52 -> 49 | AU38: B
AU39: C
AD40: =G61 -> 15 | AF40: grüne Kugeln | AH40: P(grün) | AI40: = | AJ40: =AD40 -> 15 | AK40: ≅ | AM40: =AJ40/AJ41 -> 0.306122449 | AN40: ≅ | AO40: =AM40 -> 0.306122449 | AU40: D
AJ41: =$AD$52 -> 49 | AQ41: Alle Ergebnisse gleichwahrscheinlich: | AU41: E
AS42: =IF(SUM(AT14:AT32)=5,"ja","nein") -> nein
AD43: =G62 -> 7 | AF43: blaue Kugeln | AH43: P(blau) | AI43: = | AJ43: =AD43 -> 7 | AK43: ≅ | AM43: =AJ43/AJ44 -> 0.1428571429 | AN43: ≅ | AO43: =AM43 -> 0.1428571429
AJ44: =$AD$52 -> 49
AQ45: ⇒ | AR45: =IF(AS42="ja","Laplace-Experiment", "KEIN Laplace-Experiment") -> KEIN Laplace-Experiment
AD46: =G63 -> 9 | AF46: gelbe Kugeln | AH46: P(gelb) | AI46: = | AJ46: =AD46 -> 9 | AK46: ≅ | AM46: =AJ46/AJ47 -> 0.1836734694 | AN46: ≅ | AO46: =AM46 -> 0.1836734694
AJ47: =$AD$52 -> 49
AD49: =G64 -> 12 | AF49: graue Kugeln | AH49: P(grau) | AI49: = | AJ49: =AD49 -> 12 | AK49: ≅ | AM49: =AJ49/AJ50 -> 0.2448979592 | AN49: ≅ | AO49: =AM49 -> 0.2448979592
AJ50: =$AD$52 -> 49
AD52: =SUM(AD37:AD49) -> 49 | AF52: Kugeln (gesamt) | AH52: P(gesamt) | AI52: = | AJ52: =AD52 -> 49 | AK52: ≅ | AM52: =AJ52/AJ53 -> 1 | AN52: ≅ | AO52: =AM52 -> 1
AJ53: =$AD$52 -> 49
B58: Anzahl Farben:
C60: rot | G60: =COUNTIF(Kugeln!$Y$4:$Z$52,Ergebnismenge!C30) -> 6 | O60: =IF(G60>0,C60,"") -> rot | V60: =CONCATENATE(N60,O60) -> rot
C61: grün | G61: =COUNTIF(Kugeln!$Y$4:$Z$52,Ergebnismenge!C31) -> 15 | N61: =IF(AND(SUM($G$60:G60)>0,G61>0),", ","") -> , | O61: =IF(G61>0,C61,"") -> grün | V61: =CONCATENATE(N61,O61) -> , grün
C62: blau | G62: =COUNTIF(Kugeln!$Y$4:$Z$52,Ergebnismenge!C32) -> 7 | N62: =IF(AND(SUM($G$60:G61)>0,G62>0),", ","") -> , | O62: =IF(G62>0,C62,"") -> blau | V62: , blau
C63: gelb | G63: =COUNTIF(Kugeln!$Y$4:$Z$52,Ergebnismenge!C33) -> 9 | N63: =IF(AND(SUM($G$60:G62)>0,G63>0),", ","") -> , | O63: =IF(G63>0,C63,"") -> gelb | V63: , gelb
C64: grau | G64: =COUNTIF(Kugeln!$Y$4:$Z$52,Ergebnismenge!C34) -> 12 | N64: =IF(AND(SUM($G$60:G63)>0,G64>0),", ","") -> , | O64: =IF(G64>0,C64,"") -> grau | V64: , grau
C65: |Ω| = | G65: =COUNTIF(G60:G64,">0") -> 5
B67: Anzahl Zahlen:
C69: 1 | G69: =COUNTIF(Kugeln!$Y$4:$Z$52,Ergebnismenge!C39) -> 0 | O69: =IF(G69>0,C69,"") -> 
C70: 2 | G70: =COUNTIF(Kugeln!$Y$4:$Z$52,Ergebnismenge!C40) -> 8 | N70: =IF(AND(SUM($G$69:G69)>0,G70>0),", ","") ->  | O70: 2 | V70: 2
C71: 3 | G71: =COUNTIF(Kugeln!$Y$4:$Z$52,Ergebnismenge!C41) -> 3 | N71: =IF(AND(SUM($G$69:G70)>0,G71>0),", ","") -> , | O71: 3 | V71: , 3
C72: 4 | G72: =COUNTIF(Kugeln!$Y$4:$Z$52,Ergebnismenge!C42) -> 5 | N72: =IF(AND(SUM($G$69:G71)>0,G72>0),", ","") -> , | O72: 4 | V72: , 4
C73: 5 | G73: =COUNTIF(Kugeln!$Y$4:$Z$52,Ergebnismenge!C43) -> 7 | N73: =IF(AND(SUM($G$69:G72)>0,G73>0),", ","") -> , | O73: 5 | V73: , 5
C74: 6 | G74: =COUNTIF(Kugeln!$Y$4:$Z$52,Ergebnismenge!C44) -> 7 | N74: =IF(AND(SUM($G$69:G73)>0,G74>0),", ","") -> , | O74: 6 | V74: , 6
C75: 7 | G75: =COUNTIF(Kugeln!$Y$4:$Z$52,Ergebnismenge!C45) -> 7 | N75: =IF(AND(SUM($G$69:G74)>0,G75>0),", ","") -> , | O75: 7 | V75: , 7
C76: 8 | G76: =COUNTIF(Kugeln!$Y$4:$Z$52,Ergebnismenge!C46) -> 6 | N76: =IF(AND(SUM($G$69:G75)>0,G76>0),", ","") -> , | O76: 8 | V76: , 8
C77: 9 | G77: =COUNTIF(Kugeln!$Y$4:$Z$52,Ergebnismenge!C47) -> 6 | N77: =IF(AND(SUM($G$69:G76)>0,G77>0),", ","") -> , | O77: 9 | V77: , 9
C78: 10 | G78: =COUNTIF(Kugeln!$Y$4:$Z$52,Ergebnismenge!C48) -> 0 | N78: =IF(AND(SUM($G$69:G77)>0,G78>0),", ","") -> 
C79: 11 | G79: =COUNTIF(Kugeln!$Y$4:$Z$52,Ergebnismenge!C49) -> 0 | N79: =IF(AND(SUM($G$69:G78)>0,G79>0),", ","") -> 
C80: 12 | G80: =COUNTIF(Kugeln!$Y$4:$Z$52,Ergebnismenge!C50) -> 0 | N80: =IF(AND(SUM($G$69:G79)>0,G80>0),", ","") -> 
C81: 13 | G81: =COUNTIF(Kugeln!$Y$4:$Z$52,Ergebnismenge!C51) -> 0 | N81: =IF(AND(SUM($G$69:G80)>0,G81>0),", ","") -> 
C82: 14 | G82: =COUNTIF(Kugeln!$Y$4:$Z$52,Ergebnismenge!C52) -> 0 | N82: =IF(AND(SUM($G$69:G81)>0,G82>0),", ","") -> 
C83: 15 | G83: =COUNTIF(Kugeln!$Y$4:$Z$52,Ergebnismenge!C53) -> 0 | N83: =IF(AND(SUM($G$69:G82)>0,G83>0),", ","") -> 
C84: 16 | G84: =COUNTIF(Kugeln!$Y$4:$Z$52,Ergebnismenge!C54) -> 0 | N84: =IF(AND(SUM($G$69:G83)>0,G84>0),", ","") -> 
C85: 17 | G85: =COUNTIF(Kugeln!$Y$4:$Z$52,Ergebnismenge!C55) -> 0 | N85: =IF(AND(SUM($G$69:G84)>0,G85>0),", ","") -> 
C86: 18 | G86: =COUNTIF(Kugeln!$Y$4:$Z$52,Ergebnismenge!C56) -> 0 | N86: =IF(AND(SUM($G$69:G85)>0,G86>0),", ","") -> 
C87: 19 | G87: =COUNTIF(Kugeln!$Y$4:$Z$52,Ergebnismenge!C57) -> 0 | N87: =IF(AND(SUM($G$69:G86)>0,G87>0),", ","") -> 
C88: 20 | G88: =COUNTIF(Kugeln!$Y$4:$Z$52,Ergebnismenge!C58) -> 0 | N88: =IF(AND(SUM($G$69:G87)>0,G88>0),", ","") -> 
C89: 21 | G89: =COUNTIF(Kugeln!$Y$4:$Z$52,Ergebnismenge!C59) -> 0 | N89: =IF(AND(SUM($G$69:G88)>0,G89>0),", ","") -> 
C90: 22 | G90: =COUNTIF(Kugeln!$Y$4:$Z$52,Ergebnismenge!C60) -> 0 | N90: =IF(AND(SUM($G$69:G89)>0,G90>0),", ","") -> 
C91: 23 | G91: =COUNTIF(Kugeln!$Y$4:$Z$52,Ergebnismenge!C61) -> 0 | N91: =IF(AND(SUM($G$69:G90)>0,G91>0),", ","") -> 
C92: 24 | G92: =COUNTIF(Kugeln!$Y$4:$Z$52,Ergebnismenge!C62) -> 0 | N92: =IF(AND(SUM($G$69:G91)>0,G92>0),", ","") -> 
C93: 25 | G93: =COUNTIF(Kugeln!$Y$4:$Z$52,Ergebnismenge!C63) -> 0 | N93: =IF(AND(SUM($G$69:G92)>0,G93>0),", ","") -> 
C94: 26 | G94: =COUNTIF(Kugeln!$Y$4:$Z$52,Ergebnismenge!C64) -> 0 | N94: =IF(AND(SUM($G$69:G93)>0,G94>0),", ","") -> 
C95: 27 | G95: =COUNTIF(Kugeln!$Y$4:$Z$52,Ergebnismenge!C65) -> 0 | N95: =IF(AND(SUM($G$69:G94)>0,G95>0),", ","") -> 
C96: 28 | G96: =COUNTIF(Kugeln!$Y$4:$Z$52,Ergebnismenge!C66) -> 0 | N96: =IF(AND(SUM($G$69:G95)>0,G96>0),", ","") -> 
C97: 29 | G97: =COUNTIF(Kugeln!$Y$4:$Z$52,Ergebnismenge!C67) -> 0 | N97: =IF(AND(SUM($G$69:G96)>0,G97>0),", ","") -> 
C98: 30 | G98: =COUNTIF(Kugeln!$Y$4:$Z$52,Ergebnismenge!C68) -> 0 | N98: =IF(AND(SUM($G$69:G97)>0,G98>0),", ","") -> 
C99: 31 | G99: =COUNTIF(Kugeln!$Y$4:$Z$52,Ergebnismenge!C69) -> 0 | N99: =IF(AND(SUM($G$69:G98)>0,G99>0),", ","") -> 
C100: 32 | G100: =COUNTIF(Kugeln!$Y$4:$Z$52,Ergebnismenge!C70) -> 0 | N100: =IF(AND(SUM($G$69:G99)>0,G100>0),", ","") -> 
C101: 33 | G101: =COUNTIF(Kugeln!$Y$4:$Z$52,Ergebnismenge!C71) -> 0 | N101: =IF(AND(SUM($G$69:G100)>0,G101>0),", ","") ->  | O101: =IF(G101>0,C101,"") -> 
C102: 34 | G102: =COUNTIF(Kugeln!$Y$4:$Z$52,Ergebnismenge!C72) -> 0 | N102: =IF(AND(SUM($G$69:G101)>0,G102>0),", ","") -> 
C103: 35 | G103: =COUNTIF(Kugeln!$Y$4:$Z$52,Ergebnismenge!C73) -> 0 | N103: =IF(AND(SUM($G$69:G102)>0,G103>0),", ","") -> 
C104: 36 | G104: =COUNTIF(Kugeln!$Y$4:$Z$52,Ergebnismenge!C74) -> 0 | N104: =IF(AND(SUM($G$69:G103)>0,G104>0),", ","") -> 
C105: 37 | G105: =COUNTIF(Kugeln!$Y$4:$Z$52,Ergebnismenge!C75) -> 0 | N105: =IF(AND(SUM($G$69:G104)>0,G105>0),", ","") -> 
C106: 38 | G106: =COUNTIF(Kugeln!$Y$4:$Z$52,Ergebnismenge!C76) -> 0 | N106: =IF(AND(SUM($G$69:G105)>0,G106>0),", ","") -> 
C107: 39 | G107: =COUNTIF(Kugeln!$Y$4:$Z$52,Ergebnismenge!C77) -> 0 | N107: =IF(AND(SUM($G$69:G106)>0,G107>0),", ","") -> 
C108: 40 | G108: =COUNTIF(Kugeln!$Y$4:$Z$52,Ergebnismenge!C78) -> 0 | N108: =IF(AND(SUM($G$69:G107)>0,G108>0),", ","") -> 
C109: 41 | G109: =COUNTIF(Kugeln!$Y$4:$Z$52,Ergebnismenge!C79) -> 0 | N109: =IF(AND(SUM($G$69:G108)>0,G109>0),", ","") -> 
C110: 42 | G110: =COUNTIF(Kugeln!$Y$4:$Z$52,Ergebnismenge!C80) -> 0 | N110: =IF(AND(SUM($G$69:G109)>0,G110>0),", ","") -> 
C111: 43 | G111: =COUNTIF(Kugeln!$Y$4:$Z$52,Ergebnismenge!C81) -> 0 | N111: =IF(AND(SUM($G$69:G110)>0,G111>0),", ","") -> 
C112: 44 | G112: =COUNTIF(Kugeln!$Y$4:$Z$52,Ergebnismenge!C82) -> 0 | N112: =IF(AND(SUM($G$69:G111)>0,G112>0),", ","") -> 
C113: 45 | G113: =COUNTIF(Kugeln!$Y$4:$Z$52,Ergebnismenge!C83) -> 0 | N113: =IF(AND(SUM($G$69:G112)>0,G113>0),", ","") -> 
C114: 46 | G114: =COUNTIF(Kugeln!$Y$4:$Z$52,Ergebnismenge!C84) -> 0 | N114: =IF(AND(SUM($G$69:G113)>0,G114>0),", ","") -> 
C115: 47 | G115: =COUNTIF(Kugeln!$Y$4:$Z$52,Ergebnismenge!C85) -> 0 | N115: =IF(AND(SUM($G$69:G114)>0,G115>0),", ","") -> 
C116: 48 | G116: =COUNTIF(Kugeln!$Y$4:$Z$52,Ergebnismenge!C86) -> 0 | N116: =IF(AND(SUM($G$69:G115)>0,G116>0),", ","") -> 
C117: 49 | G117: =COUNTIF(Kugeln!$Y$4:$Z$52,Ergebnismenge!C87) -> 0 | N117: =IF(AND(SUM($G$69:G116)>0,G117>0),", ","") -> 
C118: |Ω| = | G118: =COUNTIF(G69:G117,">0") -> 8
B120: Anzahl (Zahl, Farbe):
C122: 1 | F122: rot | G122: =COUNTIF(Kugeln!$X$4:$X$52,CONCATENATE("(",Ergebnismenge!C92,", ",F122,")")) -> 0 | O122: =IF(G122>0,CONCATENATE("(",F122,", ",C122,")"),"") -> 
C123: 2 | F123: rot | G123: =COUNTIF(Kugeln!$X$4:$X$52,CONCATENATE("(",Ergebnismenge!C93,", ",F123,")")) -> 1 | N123: =IF(AND(SUM($G$122:G122)>0,G123>0),", ","") ->  | O123: (rot, 2) | V123: (rot, 2)
C124: 3 | F124: rot | G124: =COUNTIF(Kugeln!$X$4:$X$52,CONCATENATE("(",Ergebnismenge!C94,", ",F124,")")) -> 0 | N124: =IF(AND(SUM($G$122:G123)>0,G124>0),", ","") ->  | O124: =IF(G124>0,CONCATENATE("(",F124,", ",C124,")"),"") -> 
C125: 4 | F125: rot | G125: =COUNTIF(Kugeln!$X$4:$X$52,CONCATENATE("(",Ergebnismenge!C95,", ",F125,")")) -> 1 | N125: =IF(AND(SUM($G$122:G124)>0,G125>0),", ","") -> , | O125: =IF(G125>0,CONCATENATE("(",F125,", ",C125,")"),"") -> (rot, 4) | V125: , (rot, 4)
C126: 5 | F126: rot | G126: =COUNTIF(Kugeln!$X$4:$X$52,CONCATENATE("(",Ergebnismenge!C96,", ",F126,")")) -> 0 | N126: =IF(AND(SUM($G$122:G125)>0,G126>0),", ","") -> 
C127: 6 | F127: rot | G127: =COUNTIF(Kugeln!$X$4:$X$52,CONCATENATE("(",Ergebnismenge!C97,", ",F127,")")) -> 2 | N127: =IF(AND(SUM($G$122:G126)>0,G127>0),", ","") -> , | O127: (rot, 6) | V127: =CONCATENATE(N127,O127) -> , (rot, 6)
C128: 7 | F128: rot | G128: =COUNTIF(Kugeln!$X$4:$X$52,CONCATENATE("(",Ergebnismenge!C98,", ",F128,")")) -> 1 | N128: =IF(AND(SUM($G$122:G127)>0,G128>0),", ","") -> , | O128: (rot, 7) | V128: , (rot, 7)
C129: 8 | F129: rot | G129: =COUNTIF(Kugeln!$X$4:$X$52,CONCATENATE("(",Ergebnismenge!C99,", ",F129,")")) -> 1 | N129: =IF(AND(SUM($G$122:G128)>0,G129>0),", ","") -> , | O129: (rot, 8) | V129: , (rot, 8)
C130: 9 | F130: rot | G130: =COUNTIF(Kugeln!$X$4:$X$52,CONCATENATE("(",Ergebnismenge!C100,", ",F130,")")) -> 0 | N130: =IF(AND(SUM($G$122:G129)>0,G130>0),", ","") -> 
C131: 10 | F131: rot | G131: =COUNTIF(Kugeln!$X$4:$X$52,CONCATENATE("(",Ergebnismenge!C101,", ",F131,")")) -> 0 | N131: =IF(AND(SUM($G$122:G130)>0,G131>0),", ","") -> 
C132: 11 | F132: rot | G132: =COUNTIF(Kugeln!$X$4:$X$52,CONCATENATE("(",Ergebnismenge!C102,", ",F132,")")) -> 0 | N132: =IF(AND(SUM($G$122:G131)>0,G132>0),", ","") -> 
C133: 12 | F133: rot | G133: =COUNTIF(Kugeln!$X$4:$X$52,CONCATENATE("(",Ergebnismenge!C103,", ",F133,")")) -> 0 | N133: =IF(AND(SUM($G$122:G132)>0,G133>0),", ","") -> 
C134: 13 | F134: rot | G134: =COUNTIF(Kugeln!$X$4:$X$52,CONCATENATE("(",Ergebnismenge!C104,", ",F134,")")) -> 0 | N134: =IF(AND(SUM($G$122:G133)>0,G134>0),", ","") -> 
C135: 14 | F135: rot | G135: =COUNTIF(Kugeln!$X$4:$X$52,CONCATENATE("(",Ergebnismenge!C105,", ",F135,")")) -> 0 | N135: =IF(AND(SUM($G$122:G134)>0,G135>0),", ","") -> 
C136: 15 | F136: rot | G136: =COUNTIF(Kugeln!$X$4:$X$52,CONCATENATE("(",Ergebnismenge!C106,", ",F136,")")) -> 0 | N136: =IF(AND(SUM($G$122:G135)>0,G136>0),", ","") -> 
C137: 16 | F137: rot | G137: =COUNTIF(Kugeln!$X$4:$X$52,CONCATENATE("(",Ergebnismenge!C107,", ",F137,")")) -> 0 | N137: =IF(AND(SUM($G$122:G136)>0,G137>0),", ","") -> 
C138: 17 | F138: rot | G138: =COUNTIF(Kugeln!$X$4:$X$52,CONCATENATE("(",Ergebnismenge!C108,", ",F138,")")) -> 0 | N138: =IF(AND(SUM($G$122:G137)>0,G138>0),", ","") -> 
C139: 18 | F139: rot | G139: =COUNTIF(Kugeln!$X$4:$X$52,CONCATENATE("(",Ergebnismenge!C109,", ",F139,")")) -> 0 | N139: =IF(AND(SUM($G$122:G138)>0,G139>0),", ","") -> 
C140: 19 | F140: rot | G140: =COUNTIF(Kugeln!$X$4:$X$52,CONCATENATE("(",Ergebnismenge!C110,", ",F140,")")) -> 0 | N140: =IF(AND(SUM($G$122:G139)>0,G140>0),", ","") -> 
C141: 20 | F141: rot | G141: =COUNTIF(Kugeln!$X$4:$X$52,CONCATENATE("(",Ergebnismenge!C111,", ",F141,")")) -> 0 | N141: =IF(AND(SUM($G$122:G140)>0,G141>0),", ","") -> 
C142: 21 | F142: rot | G142: =COUNTIF(Kugeln!$X$4:$X$52,CONCATENATE("(",Ergebnismenge!C112,", ",F142,")")) -> 0 | N142: =IF(AND(SUM($G$122:G141)>0,G142>0),", ","") -> 
C143: 22 | F143: rot | G143: =COUNTIF(Kugeln!$X$4:$X$52,CONCATENATE("(",Ergebnismenge!C113,", ",F143,")")) -> 0 | N143: =IF(AND(SUM($G$122:G142)>0,G143>0),", ","") -> 
C144: 23 | F144: rot | G144: =COUNTIF(Kugeln!$X$4:$X$52,CONCATENATE("(",Ergebnismenge!C114,", ",F144,")")) -> 0 | N144: =IF(AND(SUM($G$122:G143)>0,G144>0),", ","") -> 
C145: 24 | F145: rot | G145: =COUNTIF(Kugeln!$X$4:$X$52,CONCATENATE("(",Ergebnismenge!C115,", ",F145,")")) -> 0 | N145: =IF(AND(SUM($G$122:G144)>0,G145>0),", ","") -> 
C146: 25 | F146: rot | G146: =COUNTIF(Kugeln!$X$4:$X$52,CONCATENATE("(",Ergebnismenge!C116,", ",F146,")")) -> 0 | N146: =IF(AND(SUM($G$122:G145)>0,G146>0),", ","") -> 
C147: 26 | F147: rot | G147: =COUNTIF(Kugeln!$X$4:$X$52,CONCATENATE("(",Ergebnismenge!C117,", ",F147,")")) -> 0 | N147: =IF(AND(SUM($G$122:G146)>0,G147>0),", ","") -> 
C148: 27 | F148: rot | G148: =COUNTIF(Kugeln!$X$4:$X$52,CONCATENATE("(",Ergebnismenge!C118,", ",F148,")")) -> 0 | N148: =IF(AND(SUM($G$122:G147)>0,G148>0),", ","") -> 
C149: 28 | F149: rot | G149: =COUNTIF(Kugeln!$X$4:$X$52,CONCATENATE("(",Ergebnismenge!C119,", ",F149,")")) -> 0 | N149: =IF(AND(SUM($G$122:G148)>0,G149>0),", ","") -> 
C150: 29 | F150: rot | G150: =COUNTIF(Kugeln!$X$4:$X$52,CONCATENATE("(",Ergebnismenge!C120,", ",F150,")")) -> 0 | N150: =IF(AND(SUM($G$122:G149)>0,G150>0),", ","") -> 
C151: 30 | F151: rot | G151: =COUNTIF(Kugeln!$X$4:$X$52,CONCATENATE("(",Ergebnismenge!C121,", ",F151,")")) -> 0 | N151: =IF(AND(SUM($G$122:G150)>0,G151>0),", ","") -> 
C152: 31 | F152: rot | G152: =COUNTIF(Kugeln!$X$4:$X$52,CONCATENATE("(",Ergebnismenge!C122,", ",F152,")")) -> 0 | N152: =IF(AND(SUM($G$122:G151)>0,G152>0),", ","") -> 
C153: 32 | F153: rot | G153: =COUNTIF(Kugeln!$X$4:$X$52,CONCATENATE("(",Ergebnismenge!C123,", ",F153,")")) -> 0 | N153: =IF(AND(SUM($G$122:G152)>0,G153>0),", ","") -> 
C154: 33 | F154: rot | G154: =COUNTIF(Kugeln!$X$4:$X$52,CONCATENATE("(",Ergebnismenge!C124,", ",F154,")")) -> 0 | N154: =IF(AND(SUM($G$122:G153)>0,G154>0),", ","") -> 
C155: 34 | F155: rot | G155: =COUNTIF(Kugeln!$X$4:$X$52,CONCATENATE("(",Ergebnismenge!C125,", ",F155,")")) -> 0 | N155: =IF(AND(SUM($G$122:G154)>0,G155>0),", ","") -> 
C156: 35 | F156: rot | G156: =COUNTIF(Kugeln!$X$4:$X$52,CONCATENATE("(",Ergebnismenge!C126,", ",F156,")")) -> 0 | N156: =IF(AND(SUM($G$122:G155)>0,G156>0),", ","") -> 
C157: 36 | F157: rot | G157: =COUNTIF(Kugeln!$X$4:$X$52,CONCATENATE("(",Ergebnismenge!C127,", ",F157,")")) -> 0 | N157: =IF(AND(SUM($G$122:G156)>0,G157>0),", ","") -> 
C158: 37 | F158: rot | G158: =COUNTIF(Kugeln!$X$4:$X$52,CONCATENATE("(",Ergebnismenge!C128,", ",F158,")")) -> 0 | N158: =IF(AND(SUM($G$122:G157)>0,G158>0),", ","") -> 
C159: 38 | F159: rot | G159: =COUNTIF(Kugeln!$X$4:$X$52,CONCATENATE("(",Ergebnismenge!C129,", ",F159,")")) -> 0 | N159: =IF(AND(SUM($G$122:G158)>0,G159>0),", ","") -> 
C160: 39 | F160: rot | G160: =COUNTIF(Kugeln!$X$4:$X$52,CONCATENATE("(",Ergebnismenge!C130,", ",F160,")")) -> 0 | N160: =IF(AND(SUM($G$122:G159)>0,G160>0),", ","") -> 
C161: 40 | F161: rot | G161: =COUNTIF(Kugeln!$X$4:$X$52,CONCATENATE("(",Ergebnismenge!C131,", ",F161,")")) -> 0 | N161: =IF(AND(SUM($G$122:G160)>0,G161>0),", ","") -> 
C162: 41 | F162: rot | G162: =COUNTIF(Kugeln!$X$4:$X$52,CONCATENATE("(",Ergebnismenge!C132,", ",F162,")")) -> 0 | N162: =IF(AND(SUM($G$122:G161)>0,G162>0),", ","") -> 
C163: 42 | F163: rot | G163: =COUNTIF(Kugeln!$X$4:$X$52,CONCATENATE("(",Ergebnismenge!C133,", ",F163,")")) -> 0 | N163: =IF(AND(SUM($G$122:G162)>0,G163>0),", ","") -> 
C164: 43 | F164: rot | G164: =COUNTIF(Kugeln!$X$4:$X$52,CONCATENATE("(",Ergebnismenge!C134,", ",F164,")")) -> 0 | N164: =IF(AND(SUM($G$122:G163)>0,G164>0),", ","") -> 
C165: 44 | F165: rot | G165: =COUNTIF(Kugeln!$X$4:$X$52,CONCATENATE("(",Ergebnismenge!C135,", ",F165,")")) -> 0 | N165: =IF(AND(SUM($G$122:G164)>0,G165>0),", ","") -> 
C166: 45 | F166: rot | G166: =COUNTIF(Kugeln!$X$4:$X$52,CONCATENATE("(",Ergebnismenge!C136,", ",F166,")")) -> 0 | N166: =IF(AND(SUM($G$122:G165)>0,G166>0),", ","") -> 
C167: 46 | F167: rot | G167: =COUNTIF(Kugeln!$X$4:$X$52,CONCATENATE("(",Ergebnismenge!C137,", ",F167,")")) -> 0 | N167: =IF(AND(SUM($G$122:G166)>0,G167>0),", ","") -> 
C168: 47 | F168: rot | G168: =COUNTIF(Kugeln!$X$4:$X$52,CONCATENATE("(",Ergebnismenge!C138,", ",F168,")")) -> 0 | N168: =IF(AND(SUM($G$122:G167)>0,G168>0),", ","") -> 
C169: 48 | F169: rot | G169: =COUNTIF(Kugeln!$X$4:$X$52,CONCATENATE("(",Ergebnismenge!C139,", ",F169,")")) -> 0 | N169: =IF(AND(SUM($G$122:G168)>0,G169>0),", ","") -> 
C170: 49 | F170: rot | G170: =COUNTIF(Kugeln!$X$4:$X$52,CONCATENATE("(",Ergebnismenge!C140,", ",F170,")")) -> 0 | N170: =IF(AND(SUM($G$122:G169)>0,G170>0),", ","") -> 
C171: 1 | F171: grün | G171: =COUNTIF(Kugeln!$X$4:$X$52,CONCATENATE("(",Ergebnismenge!C141,", ",F171,")")) -> 0 | N171: =IF(AND(SUM($G$122:G170)>0,G171>0),", ","") -> 
C172: 2 | F172: grün | G172: =COUNTIF(Kugeln!$X$4:$X$52,CONCATENATE("(",Ergebnismenge!C142,", ",F172,")")) -> 2 | N172: =IF(AND(SUM($G$122:G171)>0,G172>0),", ","") -> , | O172: (grün, 2) | V172: , (grün, 2)
C173: 3 | F173: grün | G173: =COUNTIF(Kugeln!$X$4:$X$52,CONCATENATE("(",Ergebnismenge!C143,", ",F173,")")) -> 1 | N173: =IF(AND(SUM($G$122:G172)>0,G173>0),", ","") -> , | O173: (grün, 3) | V173: , (grün, 3)
C174: 4 | F174: grün | G174: =COUNTIF(Kugeln!$X$4:$X$52,CONCATENATE("(",Ergebnismenge!C144,", ",F174,")")) -> 2 | N174: =IF(AND(SUM($G$122:G173)>0,G174>0),", ","") -> , | O174: (grün, 4) | V174: , (grün, 4)
C175: 5 | F175: grün | G175: =COUNTIF(Kugeln!$X$4:$X$52,CONCATENATE("(",Ergebnismenge!C145,", ",F175,")")) -> 1 | N175: =IF(AND(SUM($G$122:G174)>0,G175>0),", ","") -> , | O175: (grün, 5) | V175: , (grün, 5)
C176: 6 | F176: grün | G176: =COUNTIF(Kugeln!$X$4:$X$52,CONCATENATE("(",Ergebnismenge!C146,", ",F176,")")) -> 2 | N176: =IF(AND(SUM($G$122:G175)>0,G176>0),", ","") -> , | O176: (grün, 6) | V176: , (grün, 6)
C177: 7 | F177: grün | G177: =COUNTIF(Kugeln!$X$4:$X$52,CONCATENATE("(",Ergebnismenge!C147,", ",F177,")")) -> 2 | N177: =IF(AND(SUM($G$122:G176)>0,G177>0),", ","") -> , | O177: (grün, 7) | V177: , (grün, 7)
C178: 8 | F178: grün | G178: =COUNTIF(Kugeln!$X$4:$X$52,CONCATENATE("(",Ergebnismenge!C148,", ",F178,")")) -> 3 | N178: =IF(AND(SUM($G$122:G177)>0,G178>0),", ","") -> , | O178: (grün, 8) | V178: , (grün, 8)
C179: 9 | F179: grün | G179: =COUNTIF(Kugeln!$X$4:$X$52,CONCATENATE("(",Ergebnismenge!C149,", ",F179,")")) -> 2 | N179: =IF(AND(SUM($G$122:G178)>0,G179>0),", ","") -> , | O179: (grün, 9) | V179: , (grün, 9)
C180: 10 | F180: grün | G180: =COUNTIF(Kugeln!$X$4:$X$52,CONCATENATE("(",Ergebnismenge!C150,", ",F180,")")) -> 0 | N180: =IF(AND(SUM($G$122:G179)>0,G180>0),", ","") -> 
C181: 11 | F181: grün | G181: =COUNTIF(Kugeln!$X$4:$X$52,CONCATENATE("(",Ergebnismenge!C151,", ",F181,")")) -> 0 | N181: =IF(AND(SUM($G$122:G180)>0,G181>0),", ","") -> 
C182: 12 | F182: grün | G182: =COUNTIF(Kugeln!$X$4:$X$52,CONCATENATE("(",Ergebnismenge!C152,", ",F182,")")) -> 0 | N182: =IF(AND(SUM($G$122:G181)>0,G182>0),", ","") -> 
C183: 13 | F183: grün | G183: =COUNTIF(Kugeln!$X$4:$X$52,CONCATENATE("(",Ergebnismenge!C153,", ",F183,")")) -> 0 | N183: =IF(AND(SUM($G$122:G182)>0,G183>0),", ","") -> 
C184: 14 | F184: grün | G184: =COUNTIF(Kugeln!$X$4:$X$52,CONCATENATE("(",Ergebnismenge!C154,", ",F184,")")) -> 0 | N184: =IF(AND(SUM($G$122:G183)>0,G184>0),", ","") -> 
C185: 15 | F185: grün | G185: =COUNTIF(Kugeln!$X$4:$X$52,CONCATENATE("(",Ergebnismenge!C155,", ",F185,")")) -> 0 | N185: =IF(AND(SUM($G$122:G184)>0,G185>0),", ","") -> 
C186: 16 | F186: grün | G186: =COUNTIF(Kugeln!$X$4:$X$52,CONCATENATE("(",Ergebnismenge!C156,", ",F186,")")) -> 0 | N186: =IF(AND(SUM($G$122:G185)>0,G186>0),", ","") -> 
C187: 17 | F187: grün | G187: =COUNTIF(Kugeln!$X$4:$X$52,CONCATENATE("(",Ergebnismenge!C157,", ",F187,")")) -> 0 | N187: =IF(AND(SUM($G$122:G186)>0,G187>0),", ","") -> 
C188: 18 | F188: grün | G188: =COUNTIF(Kugeln!$X$4:$X$52,CONCATENATE("(",Ergebnismenge!C158,", ",F188,")")) -> 0 | N188: =IF(AND(SUM($G$122:G187)>0,G188>0),", ","") -> 
C189: 19 | F189: grün | G189: =COUNTIF(Kugeln!$X$4:$X$52,CONCATENATE("(",Ergebnismenge!C159,", ",F189,")")) -> 0 | N189: =IF(AND(SUM($G$122:G188)>0,G189>0),", ","") ->  | O189: =IF(G189>0,CONCATENATE("(",F189,", ",C189,")"),"") -> 
C190: 20 | F190: grün | G190: =COUNTIF(Kugeln!$X$4:$X$52,CONCATENATE("(",Ergebnismenge!C160,", ",F190,")")) -> 0 | N190: =IF(AND(SUM($G$122:G189)>0,G190>0),", ","") -> 
C191: 21 | F191: grün | G191: =COUNTIF(Kugeln!$X$4:$X$52,CONCATENATE("(",Ergebnismenge!C161,", ",F191,")")) -> 0 | N191: =IF(AND(SUM($G$122:G190)>0,G191>0),", ","") ->  | V191: =CONCATENATE(N191,O191) -> 
C192: 22 | F192: grün | G192: =COUNTIF(Kugeln!$X$4:$X$52,CONCATENATE("(",Ergebnismenge!C162,", ",F192,")")) -> 0 | N192: =IF(AND(SUM($G$122:G191)>0,G192>0),", ","") -> 
C193: 23 | F193: grün | G193: =COUNTIF(Kugeln!$X$4:$X$52,CONCATENATE("(",Ergebnismenge!C163,", ",F193,")")) -> 0 | N193: =IF(AND(SUM($G$122:G192)>0,G193>0),", ","") -> 
C194: 24 | F194: grün | G194: =COUNTIF(Kugeln!$X$4:$X$52,CONCATENATE("(",Ergebnismenge!C164,", ",F194,")")) -> 0 | N194: =IF(AND(SUM($G$122:G193)>0,G194>0),", ","") -> 
C195: 25 | F195: grün | G195: =COUNTIF(Kugeln!$X$4:$X$52,CONCATENATE("(",Ergebnismenge!C165,", ",F195,")")) -> 0 | N195: =IF(AND(SUM($G$122:G194)>0,G195>0),", ","") -> 
C196: 26 | F196: grün | G196: =COUNTIF(Kugeln!$X$4:$X$52,CONCATENATE("(",Ergebnismenge!C166,", ",F196,")")) -> 0 | N196: =IF(AND(SUM($G$122:G195)>0,G196>0),", ","") -> 
C197: 27 | F197: grün | G197: =COUNTIF(Kugeln!$X$4:$X$52,CONCATENATE("(",Ergebnismenge!C167,", ",F197,")")) -> 0 | N197: =IF(AND(SUM($G$122:G196)>0,G197>0),", ","") -> 
C198: 28 | F198: grün | G198: =COUNTIF(Kugeln!$X$4:$X$52,CONCATENATE("(",Ergebnismenge!C168,", ",F198,")")) -> 0 | N198: =IF(AND(SUM($G$122:G197)>0,G198>0),", ","") -> 
C199: 29 | F199: grün | G199: =COUNTIF(Kugeln!$X$4:$X$52,CONCATENATE("(",Ergebnismenge!C169,", ",F199,")")) -> 0 | N199: =IF(AND(SUM($G$122:G198)>0,G199>0),", ","") -> 
C200: 30 | F200: grün | G200: =COUNTIF(Kugeln!$X$4:$X$52,CONCATENATE("(",Ergebnismenge!C170,", ",F200,")")) -> 0 | N200: =IF(AND(SUM($G$122:G199)>0,G200>0),", ","") -> 
C201: 31 | F201: grün | G201: =COUNTIF(Kugeln!$X$4:$X$52,CONCATENATE("(",Ergebnismenge!C171,", ",F201,")")) -> 0 | N201: =IF(AND(SUM($G$122:G200)>0,G201>0),", ","") -> 
C202: 32 | F202: grün | G202: =COUNTIF(Kugeln!$X$4:$X$52,CONCATENATE("(",Ergebnismenge!C172,", ",F202,")")) -> 0 | N202: =IF(AND(SUM($G$122:G201)>0,G202>0),", ","") -> 
C203: 33 | F203: grün | G203: =COUNTIF(Kugeln!$X$4:$X$52,CONCATENATE("(",Ergebnismenge!C173,", ",F203,")")) -> 0 | N203: =IF(AND(SUM($G$122:G202)>0,G203>0),", ","") -> 
C204: 34 | F204: grün | G204: =COUNTIF(Kugeln!$X$4:$X$52,CONCATENATE("(",Ergebnismenge!C174,", ",F204,")")) -> 0 | N204: =IF(AND(SUM($G$122:G203)>0,G204>0),", ","") -> 
C205: 35 | F205: grün | G205: =COUNTIF(Kugeln!$X$4:$X$52,CONCATENATE("(",Ergebnismenge!C175,", ",F205,")")) -> 0 | N205: =IF(AND(SUM($G$122:G204)>0,G205>0),", ","") -> 
C206: 36 | F206: grün | G206: =COUNTIF(Kugeln!$X$4:$X$52,CONCATENATE("(",Ergebnismenge!C176,", ",F206,")")) -> 0 | N206: =IF(AND(SUM($G$122:G205)>0,G206>0),", ","") -> 
C207: 37 | F207: grün | G207: =COUNTIF(Kugeln!$X$4:$X$52,CONCATENATE("(",Ergebnismenge!C177,", ",F207,")")) -> 0 | N207: =IF(AND(SUM($G$122:G206)>0,G207>0),", ","") -> 
C208: 38 | F208: grün | G208: =COUNTIF(Kugeln!$X$4:$X$52,CONCATENATE("(",Ergebnismenge!C178,", ",F208,")")) -> 0 | N208: =IF(AND(SUM($G$122:G207)>0,G208>0),", ","") -> 
C209: 39 | F209: grün | G209: =COUNTIF(Kugeln!$X$4:$X$52,CONCATENATE("(",Ergebnismenge!C179,", ",F209,")")) -> 0 | N209: =IF(AND(SUM($G$122:G208)>0,G209>0),", ","") -> 
C210: 40 | F210: grün | G210: =COUNTIF(Kugeln!$X$4:$X$52,CONCATENATE("(",Ergebnismenge!C180,", ",F210,")")) -> 0 | N210: =IF(AND(SUM($G$122:G209)>0,G210>0),", ","") -> 
C211: 41 | F211: grün | G211: =COUNTIF(Kugeln!$X$4:$X$52,CONCATENATE("(",Ergebnismenge!C181,", ",F211,")")) -> 0 | N211: =IF(AND(SUM($G$122:G210)>0,G211>0),", ","") -> 
C212: 42 | F212: grün | G212: =COUNTIF(Kugeln!$X$4:$X$52,CONCATENATE("(",Ergebnismenge!C182,", ",F212,")")) -> 0 | N212: =IF(AND(SUM($G$122:G211)>0,G212>0),", ","") -> 
C213: 43 | F213: grün | G213: =COUNTIF(Kugeln!$X$4:$X$52,CONCATENATE("(",Ergebnismenge!C183,", ",F213,")")) -> 0 | N213: =IF(AND(SUM($G$122:G212)>0,G213>0),", ","") -> 
C214: 44 | F214: grün | G214: =COUNTIF(Kugeln!$X$4:$X$52,CONCATENATE("(",Ergebnismenge!C184,", ",F214,")")) -> 0 | N214: =IF(AND(SUM($G$122:G213)>0,G214>0),", ","") -> 
C215: 45 | F215: grün | G215: =COUNTIF(Kugeln!$X$4:$X$52,CONCATENATE("(",Ergebnismenge!C185,", ",F215,")")) -> 0 | N215: =IF(AND(SUM($G$122:G214)>0,G215>0),", ","") -> 
C216: 46 | F216: grün | G216: =COUNTIF(Kugeln!$X$4:$X$52,CONCATENATE("(",Ergebnismenge!C186,", ",F216,")")) -> 0 | N216: =IF(AND(SUM($G$122:G215)>0,G216>0),", ","") -> 
C217: 47 | F217: grün | G217: =COUNTIF(Kugeln!$X$4:$X$52,CONCATENATE("(",Ergebnismenge!C187,", ",F217,")")) -> 0 | N217: =IF(AND(SUM($G$122:G216)>0,G217>0),", ","") -> 
C218: 48 | F218: grün | G218: =COUNTIF(Kugeln!$X$4:$X$52,CONCATENATE("(",Ergebnismenge!C188,", ",F218,")")) -> 0 | N218: =IF(AND(SUM($G$122:G217)>0,G218>0),", ","") -> 
C219: 49 | F219: grün | G219: =COUNTIF(Kugeln!$X$4:$X$52,CONCATENATE("(",Ergebnismenge!C189,", ",F219,")")) -> 0 | N219: =IF(AND(SUM($G$122:G218)>0,G219>0),", ","") -> 
C220: 1 | F220: blau | G220: =COUNTIF(Kugeln!$X$4:$X$52,CONCATENATE("(",Ergebnismenge!C190,", ",F220,")")) -> 0 | N220: =IF(AND(SUM($G$122:G219)>0,G220>0),", ","") -> 
C221: 2 | F221: blau | G221: =COUNTIF(Kugeln!$X$4:$X$52,CONCATENATE("(",Ergebnismenge!C191,", ",F221,")")) -> 1 | N221: =IF(AND(SUM($G$122:G220)>0,G221>0),", ","") -> , | O221: (blau, 2) | V221: , (blau, 2)
C222: 3 | F222: blau | G222: =COUNTIF(Kugeln!$X$4:$X$52,CONCATENATE("(",Ergebnismenge!C192,", ",F222,")")) -> 0 | N222: =IF(AND(SUM($G$122:G221)>0,G222>0),", ","") -> 
C223: 4 | F223: blau | G223: =COUNTIF(Kugeln!$X$4:$X$52,CONCATENATE("(",Ergebnismenge!C193,", ",F223,")")) -> 0 | N223: =IF(AND(SUM($G$122:G222)>0,G223>0),", ","") -> 
C224: 5 | F224: blau | G224: =COUNTIF(Kugeln!$X$4:$X$52,CONCATENATE("(",Ergebnismenge!C194,", ",F224,")")) -> 2 | N224: =IF(AND(SUM($G$122:G223)>0,G224>0),", ","") -> , | O224: (blau, 5) | V224: , (blau, 5)
... 144 more rows

Sheet Ereignis-W. (2)
AY2: TRUE
B3: Gefäß mit Kugeln: | J3: =Kugeln!Y54 -> 49 | K3: Stück | AD3: Ereignis-Wahrscheinlichkeiten (2) | AP3: FALSE
B5: =Kugeln!Y4 -> 7 | D5: 1 | F5: =Kugeln!Y11 -> 9 | H5: 8 | J5: =Kugeln!Y18 -> 5 | L5: 15 | N5: =Kugeln!Y25 -> 2 | P5: 22 | R5: =Kugeln!Y32 -> 6 | T5: 29 | V5: =Kugeln!Y39 -> 5 | X5: 36 | Z5: =Kugeln!Y46 -> 5 | AB5: 43 | AD5: 2. Es wird 1-mal gezogen, Beobachtungskriterium: Zahl
B7: =Kugeln!Y5 -> 8 | D7: 2 | F7: =Kugeln!Y12 -> 6 | H7: 9 | J7: =Kugeln!Y19 -> 3 | L7: 16 | N7: =Kugeln!Y26 -> 2 | P7: 23 | R7: =Kugeln!Y33 -> 9 | T7: 30 | V7: =Kugeln!Y40 -> 2 | X7: 37 | Z7: =Kugeln!Y47 -> 6 | AB7: 44 | AD7: Ω = | AE7: =CONCATENATE("{",V55,V56,V57,V58,V59,V60,V61,V62,V63,V64,V65,V66,V67,V68,V69,V70,V71,V72,V73,V74,V75,V76,V77,V78,V79,V80,V81,V82,V83,V84,V85,V86,V87,V88,V89,V90,V91,V92,V93,V94,V95,V96,V97,V98,V99,V100,V101,V102,V103,"}") -> {2, 3, 4, 5, 6, 7, 8, 9}
B9: =Kugeln!Y6 -> 4 | D9: 3 | F9: =Kugeln!Y13 -> 7 | H9: 10 | J9: =Kugeln!Y20 -> 7 | L9: 17 | N9: =Kugeln!Y27 -> 2 | P9: 24 | R9: =Kugeln!Y34 -> 7 | T9: 31 | V9: =Kugeln!Y41 -> 9 | X9: 38 | Z9: =Kugeln!Y48 -> 3 | AB9: 45 | AD9: |Ω| = | AE9: =G104 -> 8
B11: =Kugeln!Y7 -> 2 | D11: 4 | F11: =Kugeln!Y14 -> 8 | H11: 11 | J11: =Kugeln!Y21 -> 5 | L11: 18 | N11: =Kugeln!Y28 -> 5 | P11: 25 | R11: =Kugeln!Y35 -> 7 | T11: 32 | V11: =Kugeln!Y42 -> 6 | X11: 39 | Z11: =Kugeln!Y49 -> 6 | AB11: 46 | AD11: P( | AE11: 1 | AF11: ) | AG11: = | AH11: =INDEX($G$55:$G$103,AE11) -> 0 | AI11: ≅ | AK11: =AH11/AH12 -> 0
AH12: =$J$3 -> 49
B13: =Kugeln!Y8 -> 2 | D13: 5 | F13: =Kugeln!Y15 -> 7 | H13: 12 | J13: =Kugeln!Y22 -> 2 | L13: 19 | N13: =Kugeln!Y29 -> 9 | P13: 26 | R13: =Kugeln!Y36 -> 6 | T13: 33 | V13: =Kugeln!Y43 -> 8 | X13: 40 | Z13: =Kugeln!Y50 -> 8 | AB13: 47 | AD13: P( | AE13: =AE11+1 -> 2 | AF13: ) | AG13: = | AH13: =INDEX($G$55:$G$103,AE13) -> 8 | AI13: ≅ | AK13: =AH13/AH14 -> 0.1632653061
AH14: =$J$3 -> 49 | AL14: ⇒ | AM14: =CONCATENATE("P([ ",AE11," ; ",AE17," ])") -> P([ 1 ; 4 ]) | AO14: ≅ | AP14: =ROUND(SUM(AK11:AK18),4) -> 0.3265
B15: =Kugeln!Y9 -> 5 | D15: 6 | F15: =Kugeln!Y16 -> 4 | H15: 13 | J15: =Kugeln!Y23 -> 9 | L15: 20 | N15: =Kugeln!Y30 -> 4 | P15: 27 | R15: =Kugeln!Y37 -> 5 | T15: 34 | V15: =Kugeln!Y44 -> 4 | X15: 41 | Z15: =Kugeln!Y51 -> 4 | AB15: 48 | AD15: P( | AE15: =AE13+1 -> 3 | AF15: ) | AG15: = | AH15: =INDEX($G$55:$G$103,AE15) -> 3 | AI15: ≅ | AK15: =AH15/AH16 -> 0.0612244898
AH16: =$J$3 -> 49
B17: =Kugeln!Y10 -> 8 | D17: 7 | F17: =Kugeln!Y17 -> 2 | H17: 14 | J17: =Kugeln!Y24 -> 8 | L17: 21 | N17: =Kugeln!Y31 -> 3 | P17: 28 | R17: =Kugeln!Y38 -> 7 | T17: 35 | V17: =Kugeln!Y45 -> 6 | X17: 42 | Z17: =Kugeln!Y52 -> 9 | AB17: 49 | AD17: P( | AE17: =AE15+1 -> 4 | AF17: ) | AG17: = | AH17: =INDEX($G$55:$G$103,AE17) -> 5 | AI17: ≅ | AK17: =AH17/AH18 -> 0.1020408163
AH18: =$J$3 -> 49
E19: FALSE
AD20: Ereignisse ( = Teilmengen von Ω):
AE22: A | AF22: : | AG22: Es wird eine Zahl aus dem abgeschlossenen Intervall [ | AR22: 2 | AS22: ; | AT22: 6 | AU22: ] gezogen.
AE24: B | AF24: : | AG24: Es wird eine Zahl aus dem abgeschlossenen Intervall [ | AR24: 4 | AS24: ; | AT24: 7 | AU24: ] gezogen.
AD26: A ∪ B | AF26: : | AG26: =CONCATENATE("Es wird eine Zahl aus dem Intervall [ ",AR22," ; ",AT22," ] ODER dem Intervall [ ",AR24," ; ",AT24," ] gezogen.") -> Es wird eine Zahl aus dem Intervall [ 2 ; 6 ] ODER dem Intervall [ 4 ; 7 ] gezogen.
AP27: =MAX(AR22,AR24) -> 4 | AR27: =MIN(AT22,AT24) -> 6
AE28: A ∩ B | AF28: : | AG28: =IF(AP27>AR27,CONCATENATE("Es ist nicht möglich eine Zahl zu ziehen, die im Intervall [ ",AR22," ; ",AT22," ] UND im Intervall [ ",AR24," ; ",AT24," ] liegt."),CONCATENATE("Es wird eine Zahl aus dem Intervall [ ",AP27," ; ",AR27," ] gezogen.")) -> Es wird eine Zahl aus dem Intervall [ 4 ; 6 ] gezogen.
AD30: P(A) | AG30: ≅ | AH30: =IF(AR22<=AT22,SUM(INDIRECT("z"&ROW($Z$55)+AR22-1):INDIRECT("z"&ROW($Z$55)+AT22-1)),0) -> 0.612244898
AD32: P(B) | AG32: ≅ | AH32: =IF(AR24<=AT24,SUM(INDIRECT("z"&ROW($Z$55)+AR24-1):INDIRECT("z"&ROW($Z$55)+AT24-1)),0) -> 0.5306122449
AD34: P(A ∩ B) | AG34: ≅ | AH34: =IF(AP27<=AR27,SUM(INDIRECT("z"&ROW($Z$55)+AP27-1):INDIRECT("z"&ROW($Z$55)+AR27-1)),0) -> 0.387755102
AD36: P(A ∪ B) | AG36: ≅ | AH36: P(A) | AK36: + | AL36: P(B) | AM36: - | AN36: P(A ∩ B)
AG38: ≅ | AH38: =AH30 -> 0.612244898 | AK38: + | AL38: =AH32 -> 0.5306122449 | AM38: - | AN38: =AH34 -> 0.387755102 | AO38: ≅ | AP38: =ROUND(AH38+AL38-AN38,4) -> 0.7551
B44: Anzahl Farben:
C46: rot | G46: =COUNTIF(Kugeln!$Y$4:$Z$52,Ergebnismenge!C30) -> 6 | O46: =IF(G46>0,C46,"") -> rot | V46: =CONCATENATE(N46,O46) -> rot
C47: grün | G47: =COUNTIF(Kugeln!$Y$4:$Z$52,Ergebnismenge!C31) -> 15 | N47: =IF(AND(SUM($G$46:G46)>0,G47>0),", ","") -> , | O47: =IF(G47>0,C47,"") -> grün | V47: =CONCATENATE(N47,O47) -> , grün
C48: blau | G48: =COUNTIF(Kugeln!$Y$4:$Z$52,Ergebnismenge!C32) -> 7 | N48: =IF(AND(SUM($G$46:G47)>0,G48>0),", ","") -> , | O48: =IF(G48>0,C48,"") -> blau | V48: , blau
C49: gelb | G49: =COUNTIF(Kugeln!$Y$4:$Z$52,Ergebnismenge!C33) -> 9 | N49: =IF(AND(SUM($G$46:G48)>0,G49>0),", ","") -> , | O49: =IF(G49>0,C49,"") -> gelb | V49: , gelb
C50: grau | G50: =COUNTIF(Kugeln!$Y$4:$Z$52,Ergebnismenge!C34) -> 12 | N50: =IF(AND(SUM($G$46:G49)>0,G50>0),", ","") -> , | O50: =IF(G50>0,C50,"") -> grau | V50: , grau
C51: |Ω| = | G51: =COUNTIF(G46:G50,">0") -> 5
B53: Anzahl Zahlen:
C55: 1 | G55: =COUNTIF(Kugeln!$Y$4:$Z$52,Ergebnismenge!C39) -> 0 | O55: =IF(G55>0,C55,"") ->  | Z55: =G55/$J$3 -> 0
C56: 2 | G56: =COUNTIF(Kugeln!$Y$4:$Z$52,Ergebnismenge!C40) -> 8 | N56: =IF(AND(SUM($G$55:G55)>0,G56>0),", ","") ->  | O56: 2 | V56: 2 | Z56: =G56/$J$3 -> 0.1632653061
C57: 3 | G57: =COUNTIF(Kugeln!$Y$4:$Z$52,Ergebnismenge!C41) -> 3 | N57: =IF(AND(SUM($G$55:G56)>0,G57>0),", ","") -> , | O57: 3 | V57: , 3 | Z57: 0.0612244898
C58: 4 | G58: =COUNTIF(Kugeln!$Y$4:$Z$52,Ergebnismenge!C42) -> 5 | N58: =IF(AND(SUM($G$55:G57)>0,G58>0),", ","") -> , | O58: 4 | V58: , 4 | Z58: 0.1020408163
C59: 5 | G59: =COUNTIF(Kugeln!$Y$4:$Z$52,Ergebnismenge!C43) -> 7 | N59: =IF(AND(SUM($G$55:G58)>0,G59>0),", ","") -> , | O59: 5 | V59: , 5 | Z59: 0.1428571429
C60: 6 | G60: =COUNTIF(Kugeln!$Y$4:$Z$52,Ergebnismenge!C44) -> 7 | N60: =IF(AND(SUM($G$55:G59)>0,G60>0),", ","") -> , | O60: 6 | V60: , 6 | Z60: 0.1428571429
C61: 7 | G61: =COUNTIF(Kugeln!$Y$4:$Z$52,Ergebnismenge!C45) -> 7 | N61: =IF(AND(SUM($G$55:G60)>0,G61>0),", ","") -> , | O61: 7 | V61: , 7 | Z61: 0.1428571429
C62: 8 | G62: =COUNTIF(Kugeln!$Y$4:$Z$52,Ergebnismenge!C46) -> 6 | N62: =IF(AND(SUM($G$55:G61)>0,G62>0),", ","") -> , | O62: 8 | V62: , 8 | Z62: 0.1224489796
C63: 9 | G63: =COUNTIF(Kugeln!$Y$4:$Z$52,Ergebnismenge!C47) -> 6 | N63: =IF(AND(SUM($G$55:G62)>0,G63>0),", ","") -> , | O63: 9 | V63: , 9 | Z63: 0.1224489796
C64: 10 | G64: =COUNTIF(Kugeln!$Y$4:$Z$52,Ergebnismenge!C48) -> 0 | N64: =IF(AND(SUM($G$55:G63)>0,G64>0),", ","") ->  | Z64: 0
C65: 11 | G65: =COUNTIF(Kugeln!$Y$4:$Z$52,Ergebnismenge!C49) -> 0 | N65: =IF(AND(SUM($G$55:G64)>0,G65>0),", ","") ->  | Z65: 0
C66: 12 | G66: =COUNTIF(Kugeln!$Y$4:$Z$52,Ergebnismenge!C50) -> 0 | N66: =IF(AND(SUM($G$55:G65)>0,G66>0),", ","") ->  | Z66: 0
C67: 13 | G67: =COUNTIF(Kugeln!$Y$4:$Z$52,Ergebnismenge!C51) -> 0 | N67: =IF(AND(SUM($G$55:G66)>0,G67>0),", ","") ->  | Z67: 0
C68: 14 | G68: =COUNTIF(Kugeln!$Y$4:$Z$52,Ergebnismenge!C52) -> 0 | N68: =IF(AND(SUM($G$55:G67)>0,G68>0),", ","") ->  | Z68: 0
C69: 15 | G69: =COUNTIF(Kugeln!$Y$4:$Z$52,Ergebnismenge!C53) -> 0 | N69: =IF(AND(SUM($G$55:G68)>0,G69>0),", ","") ->  | Z69: 0
C70: 16 | G70: =COUNTIF(Kugeln!$Y$4:$Z$52,Ergebnismenge!C54) -> 0 | N70: =IF(AND(SUM($G$55:G69)>0,G70>0),", ","") ->  | Z70: 0
C71: 17 | G71: =COUNTIF(Kugeln!$Y$4:$Z$52,Ergebnismenge!C55) -> 0 | N71: =IF(AND(SUM($G$55:G70)>0,G71>0),", ","") ->  | Z71: 0
C72: 18 | G72: =COUNTIF(Kugeln!$Y$4:$Z$52,Ergebnismenge!C56) -> 0 | N72: =IF(AND(SUM($G$55:G71)>0,G72>0),", ","") ->  | Z72: 0
C73: 19 | G73: =COUNTIF(Kugeln!$Y$4:$Z$52,Ergebnismenge!C57) -> 0 | N73: =IF(AND(SUM($G$55:G72)>0,G73>0),", ","") ->  | Z73: 0
C74: 20 | G74: =COUNTIF(Kugeln!$Y$4:$Z$52,Ergebnismenge!C58) -> 0 | N74: =IF(AND(SUM($G$55:G73)>0,G74>0),", ","") ->  | Z74: 0
C75: 21 | G75: =COUNTIF(Kugeln!$Y$4:$Z$52,Ergebnismenge!C59) -> 0 | N75: =IF(AND(SUM($G$55:G74)>0,G75>0),", ","") ->  | Z75: 0
C76: 22 | G76: =COUNTIF(Kugeln!$Y$4:$Z$52,Ergebnismenge!C60) -> 0 | N76: =IF(AND(SUM($G$55:G75)>0,G76>0),", ","") ->  | Z76: 0
C77: 23 | G77: =COUNTIF(Kugeln!$Y$4:$Z$52,Ergebnismenge!C61) -> 0 | N77: =IF(AND(SUM($G$55:G76)>0,G77>0),", ","") ->  | Z77: 0
C78: 24 | G78: =COUNTIF(Kugeln!$Y$4:$Z$52,Ergebnismenge!C62) -> 0 | N78: =IF(AND(SUM($G$55:G77)>0,G78>0),", ","") ->  | Z78: 0
C79: 25 | G79: =COUNTIF(Kugeln!$Y$4:$Z$52,Ergebnismenge!C63) -> 0 | N79: =IF(AND(SUM($G$55:G78)>0,G79>0),", ","") ->  | Z79: 0
C80: 26 | G80: =COUNTIF(Kugeln!$Y$4:$Z$52,Ergebnismenge!C64) -> 0 | N80: =IF(AND(SUM($G$55:G79)>0,G80>0),", ","") ->  | Z80: 0
C81: 27 | G81: =COUNTIF(Kugeln!$Y$4:$Z$52,Ergebnismenge!C65) -> 0 | N81: =IF(AND(SUM($G$55:G80)>0,G81>0),", ","") ->  | Z81: 0
C82: 28 | G82: =COUNTIF(Kugeln!$Y$4:$Z$52,Ergebnismenge!C66) -> 0 | N82: =IF(AND(SUM($G$55:G81)>0,G82>0),", ","") ->  | Z82: 0
C83: 29 | G83: =COUNTIF(Kugeln!$Y$4:$Z$52,Ergebnismenge!C67) -> 0 | N83: =IF(AND(SUM($G$55:G82)>0,G83>0),", ","") ->  | Z83: 0
C84: 30 | G84: =COUNTIF(Kugeln!$Y$4:$Z$52,Ergebnismenge!C68) -> 0 | N84: =IF(AND(SUM($G$55:G83)>0,G84>0),", ","") ->  | Z84: 0
C85: 31 | G85: =COUNTIF(Kugeln!$Y$4:$Z$52,Ergebnismenge!C69) -> 0 | N85: =IF(AND(SUM($G$55:G84)>0,G85>0),", ","") ->  | Z85: 0
C86: 32 | G86: =COUNTIF(Kugeln!$Y$4:$Z$52,Ergebnismenge!C70) -> 0 | N86: =IF(AND(SUM($G$55:G85)>0,G86>0),", ","") ->  | Z86: 0
C87: 33 | G87: =COUNTIF(Kugeln!$Y$4:$Z$52,Ergebnismenge!C71) -> 0 | N87: =IF(AND(SUM($G$55:G86)>0,G87>0),", ","") ->  | Z87: 0
C88: 34 | G88: =COUNTIF(Kugeln!$Y$4:$Z$52,Ergebnismenge!C72) -> 0 | N88: =IF(AND(SUM($G$55:G87)>0,G88>0),", ","") ->  | Z88: 0
C89: 35 | G89: =COUNTIF(Kugeln!$Y$4:$Z$52,Ergebnismenge!C73) -> 0 | N89: =IF(AND(SUM($G$55:G88)>0,G89>0),", ","") ->  | Z89: 0
C90: 36 | G90: =COUNTIF(Kugeln!$Y$4:$Z$52,Ergebnismenge!C74) -> 0 | N90: =IF(AND(SUM($G$55:G89)>0,G90>0),", ","") ->  | Z90: 0
C91: 37 | G91: =COUNTIF(Kugeln!$Y$4:$Z$52,Ergebnismenge!C75) -> 0 | N91: =IF(AND(SUM($G$55:G90)>0,G91>0),", ","") ->  | Z91: 0
C92: 38 | G92: =COUNTIF(Kugeln!$Y$4:$Z$52,Ergebnismenge!C76) -> 0 | N92: =IF(AND(SUM($G$55:G91)>0,G92>0),", ","") ->  | Z92: 0
C93: 39 | G93: =COUNTIF(Kugeln!$Y$4:$Z$52,Ergebnismenge!C77) -> 0 | N93: =IF(AND(SUM($G$55:G92)>0,G93>0),", ","") ->  | Z93: 0
C94: 40 | G94: =COUNTIF(Kugeln!$Y$4:$Z$52,Ergebnismenge!C78) -> 0 | N94: =IF(AND(SUM($G$55:G93)>0,G94>0),", ","") ->  | Z94: 0
C95: 41 | G95: =COUNTIF(Kugeln!$Y$4:$Z$52,Ergebnismenge!C79) -> 0 | N95: =IF(AND(SUM($G$55:G94)>0,G95>0),", ","") ->  | Z95: 0
C96: 42 | G96: =COUNTIF(Kugeln!$Y$4:$Z$52,Ergebnismenge!C80) -> 0 | N96: =IF(AND(SUM($G$55:G95)>0,G96>0),", ","") ->  | Z96: 0
C97: 43 | G97: =COUNTIF(Kugeln!$Y$4:$Z$52,Ergebnismenge!C81) -> 0 | N97: =IF(AND(SUM($G$55:G96)>0,G97>0),", ","") ->  | Z97: 0
C98: 44 | G98: =COUNTIF(Kugeln!$Y$4:$Z$52,Ergebnismenge!C82) -> 0 | N98: =IF(AND(SUM($G$55:G97)>0,G98>0),", ","") ->  | Z98: 0
C99: 45 | G99: =COUNTIF(Kugeln!$Y$4:$Z$52,Ergebnismenge!C83) -> 0 | N99: =IF(AND(SUM($G$55:G98)>0,G99>0),", ","") ->  | Z99: 0
C100: 46 | G100: =COUNTIF(Kugeln!$Y$4:$Z$52,Ergebnismenge!C84) -> 0 | N100: =IF(AND(SUM($G$55:G99)>0,G100>0),", ","") ->  | Z100: 0
C101: 47 | G101: =COUNTIF(Kugeln!$Y$4:$Z$52,Ergebnismenge!C85) -> 0 | N101: =IF(AND(SUM($G$55:G100)>0,G101>0),", ","") ->  | Z101: 0
C102: 48 | G102: =COUNTIF(Kugeln!$Y$4:$Z$52,Ergebnismenge!C86) -> 0 | N102: =IF(AND(SUM($G$55:G101)>0,G102>0),", ","") ->  | Z102: 0
C103: 49 | G103: =COUNTIF(Kugeln!$Y$4:$Z$52,Ergebnismenge!C87) -> 0 | N103: =IF(AND(SUM($G$55:G102)>0,G103>0),", ","") ->  | Z103: 0
C104: |Ω| = | G104: =COUNTIF(G55:G103,">0") -> 8
B106: Anzahl (Zahl, Farbe):
C108: 1 | F108: rot | G108: =COUNTIF(Kugeln!$X$4:$X$52,CONCATENATE("(",Ergebnismenge!C92,", ",F108,")")) -> 0 | O108: =IF(G108>0,CONCATENATE("(",F108,", ",C108,")"),"") -> 
C109: 2 | F109: rot | G109: =COUNTIF(Kugeln!$X$4:$X$52,CONCATENATE("(",Ergebnismenge!C93,", ",F109,")")) -> 1 | N109: =IF(AND(SUM($G$108:G108)>0,G109>0),", ","") ->  | O109: (rot, 2) | V109: (rot, 2)
C110: 3 | F110: rot | G110: =COUNTIF(Kugeln!$X$4:$X$52,CONCATENATE("(",Ergebnismenge!C94,", ",F110,")")) -> 0 | N110: =IF(AND(SUM($G$108:G109)>0,G110>0),", ","") ->  | O110: =IF(G110>0,CONCATENATE("(",F110,", ",C110,")"),"") -> 
C111: 4 | F111: rot | G111: =COUNTIF(Kugeln!$X$4:$X$52,CONCATENATE("(",Ergebnismenge!C95,", ",F111,")")) -> 1 | N111: =IF(AND(SUM($G$108:G110)>0,G111>0),", ","") -> , | O111: =IF(G111>0,CONCATENATE("(",F111,", ",C111,")"),"") -> (rot, 4) | V111: , (rot, 4)
C112: 5 | F112: rot | G112: =COUNTIF(Kugeln!$X$4:$X$52,CONCATENATE("(",Ergebnismenge!C96,", ",F112,")")) -> 0 | N112: =IF(AND(SUM($G$108:G111)>0,G112>0),", ","") -> 
C113: 6 | F113: rot | G113: =COUNTIF(Kugeln!$X$4:$X$52,CONCATENATE("(",Ergebnismenge!C97,", ",F113,")")) -> 2 | N113: =IF(AND(SUM($G$108:G112)>0,G113>0),", ","") -> , | O113: (rot, 6) | V113: =CONCATENATE(N113,O113) -> , (rot, 6)
C114: 7 | F114: rot | G114: =COUNTIF(Kugeln!$X$4:$X$52,CONCATENATE("(",Ergebnismenge!C98,", ",F114,")")) -> 1 | N114: =IF(AND(SUM($G$108:G113)>0,G114>0),", ","") -> , | O114: (rot, 7) | V114: , (rot, 7)
C115: 8 | F115: rot | G115: =COUNTIF(Kugeln!$X$4:$X$52,CONCATENATE("(",Ergebnismenge!C99,", ",F115,")")) -> 1 | N115: =IF(AND(SUM($G$108:G114)>0,G115>0),", ","") -> , | O115: (rot, 8) | V115: , (rot, 8)
C116: 9 | F116: rot | G116: =COUNTIF(Kugeln!$X$4:$X$52,CONCATENATE("(",Ergebnismenge!C100,", ",F116,")")) -> 0 | N116: =IF(AND(SUM($G$108:G115)>0,G116>0),", ","") -> 
C117: 10 | F117: rot | G117: =COUNTIF(Kugeln!$X$4:$X$52,CONCATENATE("(",Ergebnismenge!C101,", ",F117,")")) -> 0 | N117: =IF(AND(SUM($G$108:G116)>0,G117>0),", ","") -> 
C118: 11 | F118: rot | G118: =COUNTIF(Kugeln!$X$4:$X$52,CONCATENATE("(",Ergebnismenge!C102,", ",F118,")")) -> 0 | N118: =IF(AND(SUM($G$108:G117)>0,G118>0),", ","") -> 
C119: 12 | F119: rot | G119: =COUNTIF(Kugeln!$X$4:$X$52,CONCATENATE("(",Ergebnismenge!C103,", ",F119,")")) -> 0 | N119: =IF(AND(SUM($G$108:G118)>0,G119>0),", ","") -> 
C120: 13 | F120: rot | G120: =COUNTIF(Kugeln!$X$4:$X$52,CONCATENATE("(",Ergebnismenge!C104,", ",F120,")")) -> 0 | N120: =IF(AND(SUM($G$108:G119)>0,G120>0),", ","") -> 
C121: 14 | F121: rot | G121: =COUNTIF(Kugeln!$X$4:$X$52,CONCATENATE("(",Ergebnismenge!C105,", ",F121,")")) -> 0 | N121: =IF(AND(SUM($G$108:G120)>0,G121>0),", ","") -> 
C122: 15 | F122: rot | G122: =COUNTIF(Kugeln!$X$4:$X$52,CONCATENATE("(",Ergebnismenge!C106,", ",F122,")")) -> 0 | N122: =IF(AND(SUM($G$108:G121)>0,G122>0),", ","") -> 
C123: 16 | F123: rot | G123: =COUNTIF(Kugeln!$X$4:$X$52,CONCATENATE("(",Ergebnismenge!C107,", ",F123,")")) -> 0 | N123: =IF(AND(SUM($G$108:G122)>0,G123>0),", ","") -> 
C124: 17 | F124: rot | G124: =COUNTIF(Kugeln!$X$4:$X$52,CONCATENATE("(",Ergebnismenge!C108,", ",F124,")")) -> 0 | N124: =IF(AND(SUM($G$108:G123)>0,G124>0),", ","") -> 
C125: 18 | F125: rot | G125: =COUNTIF(Kugeln!$X$4:$X$52,CONCATENATE("(",Ergebnismenge!C109,", ",F125,")")) -> 0 | N125: =IF(AND(SUM($G$108:G124)>0,G125>0),", ","") -> 
C126: 19 | F126: rot | G126: =COUNTIF(Kugeln!$X$4:$X$52,CONCATENATE("(",Ergebnismenge!C110,", ",F126,")")) -> 0 | N126: =IF(AND(SUM($G$108:G125)>0,G126>0),", ","") -> 
C127: 20 | F127: rot | G127: =COUNTIF(Kugeln!$X$4:$X$52,CONCATENATE("(",Ergebnismenge!C111,", ",F127,")")) -> 0 | N127: =IF(AND(SUM($G$108:G126)>0,G127>0),", ","") -> 
C128: 21 | F128: rot | G128: =COUNTIF(Kugeln!$X$4:$X$52,CONCATENATE("(",Ergebnismenge!C112,", ",F128,")")) -> 0 | N128: =IF(AND(SUM($G$108:G127)>0,G128>0),", ","") -> 
C129: 22 | F129: rot | G129: =COUNTIF(Kugeln!$X$4:$X$52,CONCATENATE("(",Ergebnismenge!C113,", ",F129,")")) -> 0 | N129: =IF(AND(SUM($G$108:G128)>0,G129>0),", ","") -> 
C130: 23 | F130: rot | G130: =COUNTIF(Kugeln!$X$4:$X$52,CONCATENATE("(",Ergebnismenge!C114,", ",F130,")")) -> 0 | N130: =IF(AND(SUM($G$108:G129)>0,G130>0),", ","") -> 
C131: 24 | F131: rot | G131: =COUNTIF(Kugeln!$X$4:$X$52,CONCATENATE("(",Ergebnismenge!C115,", ",F131,")")) -> 0 | N131: =IF(AND(SUM($G$108:G130)>0,G131>0),", ","") -> 
C132: 25 | F132: rot | G132: =COUNTIF(Kugeln!$X$4:$X$52,CONCATENATE("(",Ergebnismenge!C116,", ",F132,")")) -> 0 | N132: =IF(AND(SUM($G$108:G131)>0,G132>0),", ","") -> 
C133: 26 | F133: rot | G133: =COUNTIF(Kugeln!$X$4:$X$52,CONCATENATE("(",Ergebnismenge!C117,", ",F133,")")) -> 0 | N133: =IF(AND(SUM($G$108:G132)>0,G133>0),", ","") -> 
C134: 27 | F134: rot | G134: =COUNTIF(Kugeln!$X$4:$X$52,CONCATENATE("(",Ergebnismenge!C118,", ",F134,")")) -> 0 | N134: =IF(AND(SUM($G$108:G133)>0,G134>0),", ","") -> 
C135: 28 | F135: rot | G135: =COUNTIF(Kugeln!$X$4:$X$52,CONCATENATE("(",Ergebnismenge!C119,", ",F135,")")) -> 0 | N135: =IF(AND(SUM($G$108:G134)>0,G135>0),", ","") -> 
C136: 29 | F136: rot | G136: =COUNTIF(Kugeln!$X$4:$X$52,CONCATENATE("(",Ergebnismenge!C120,", ",F136,")")) -> 0 | N136: =IF(AND(SUM($G$108:G135)>0,G136>0),", ","") -> 
C137: 30 | F137: rot | G137: =COUNTIF(Kugeln!$X$4:$X$52,CONCATENATE("(",Ergebnismenge!C121,", ",F137,")")) -> 0 | N137: =IF(AND(SUM($G$108:G136)>0,G137>0),", ","") -> 
C138: 31 | F138: rot | G138: =COUNTIF(Kugeln!$X$4:$X$52,CONCATENATE("(",Ergebnismenge!C122,", ",F138,")")) -> 0 | N138: =IF(AND(SUM($G$108:G137)>0,G138>0),", ","") -> 
C139: 32 | F139: rot | G139: =COUNTIF(Kugeln!$X$4:$X$52,CONCATENATE("(",Ergebnismenge!C123,", ",F139,")")) -> 0 | N139: =IF(AND(SUM($G$108:G138)>0,G139>0),", ","") -> 
C140: 33 | F140: rot | G140: =COUNTIF(Kugeln!$X$4:$X$52,CONCATENATE("(",Ergebnismenge!C124,", ",F140,")")) -> 0 | N140: =IF(AND(SUM($G$108:G139)>0,G140>0),", ","") -> 
C141: 34 | F141: rot | G141: =COUNTIF(Kugeln!$X$4:$X$52,CONCATENATE("(",Ergebnismenge!C125,", ",F141,")")) -> 0 | N141: =IF(AND(SUM($G$108:G140)>0,G141>0),", ","") -> 
C142: 35 | F142: rot | G142: =COUNTIF(Kugeln!$X$4:$X$52,CONCATENATE("(",Ergebnismenge!C126,", ",F142,")")) -> 0 | N142: =IF(AND(SUM($G$108:G141)>0,G142>0),", ","") -> 
C143: 36 | F143: rot | G143: =COUNTIF(Kugeln!$X$4:$X$52,CONCATENATE("(",Ergebnismenge!C127,", ",F143,")")) -> 0 | N143: =IF(AND(SUM($G$108:G142)>0,G143>0),", ","") -> 
C144: 37 | F144: rot | G144: =COUNTIF(Kugeln!$X$4:$X$52,CONCATENATE("(",Ergebnismenge!C128,", ",F144,")")) -> 0 | N144: =IF(AND(SUM($G$108:G143)>0,G144>0),", ","") -> 
C145: 38 | F145: rot | G145: =COUNTIF(Kugeln!$X$4:$X$52,CONCATENATE("(",Ergebnismenge!C129,", ",F145,")")) -> 0 | N145: =IF(AND(SUM($G$108:G144)>0,G145>0),", ","") -> 
C146: 39 | F146: rot | G146: =COUNTIF(Kugeln!$X$4:$X$52,CONCATENATE("(",Ergebnismenge!C130,", ",F146,")")) -> 0 | N146: =IF(AND(SUM($G$108:G145)>0,G146>0),", ","") -> 
C147: 40 | F147: rot | G147: =COUNTIF(Kugeln!$X$4:$X$52,CONCATENATE("(",Ergebnismenge!C131,", ",F147,")")) -> 0 | N147: =IF(AND(SUM($G$108:G146)>0,G147>0),", ","") -> 
C148: 41 | F148: rot | G148: =COUNTIF(Kugeln!$X$4:$X$52,CONCATENATE("(",Ergebnismenge!C132,", ",F148,")")) -> 0 | N148: =IF(AND(SUM($G$108:G147)>0,G148>0),", ","") -> 
C149: 42 | F149: rot | G149: =COUNTIF(Kugeln!$X$4:$X$52,CONCATENATE("(",Ergebnismenge!C133,", ",F149,")")) -> 0 | N149: =IF(AND(SUM($G$108:G148)>0,G149>0),", ","") -> 
C150: 43 | F150: rot | G150: =COUNTIF(Kugeln!$X$4:$X$52,CONCATENATE("(",Ergebnismenge!C134,", ",F150,")")) -> 0 | N150: =IF(AND(SUM($G$108:G149)>0,G150>0),", ","") -> 
C151: 44 | F151: rot | G151: =COUNTIF(Kugeln!$X$4:$X$52,CONCATENATE("(",Ergebnismenge!C135,", ",F151,")")) -> 0 | N151: =IF(AND(SUM($G$108:G150)>0,G151>0),", ","") -> 
C152: 45 | F152: rot | G152: =COUNTIF(Kugeln!$X$4:$X$52,CONCATENATE("(",Ergebnismenge!C136,", ",F152,")")) -> 0 | N152: =IF(AND(SUM($G$108:G151)>0,G152>0),", ","") -> 
C153: 46 | F153: rot | G153: =COUNTIF(Kugeln!$X$4:$X$52,CONCATENATE("(",Ergebnismenge!C137,", ",F153,")")) -> 0 | N153: =IF(AND(SUM($G$108:G152)>0,G153>0),", ","") -> 
C154: 47 | F154: rot | G154: =COUNTIF(Kugeln!$X$4:$X$52,CONCATENATE("(",Ergebnismenge!C138,", ",F154,")")) -> 0 | N154: =IF(AND(SUM($G$108:G153)>0,G154>0),", ","") -> 
C155: 48 | F155: rot | G155: =COUNTIF(Kugeln!$X$4:$X$52,CONCATENATE("(",Ergebnismenge!C139,", ",F155,")")) -> 0 | N155: =IF(AND(SUM($G$108:G154)>0,G155>0),", ","") -> 
C156: 49 | F156: rot | G156: =COUNTIF(Kugeln!$X$4:$X$52,CONCATENATE("(",Ergebnismenge!C140,", ",F156,")")) -> 0 | N156: =IF(AND(SUM($G$108:G155)>0,G156>0),", ","") -> 
C157: 1 | F157: grün | G157: =COUNTIF(Kugeln!$X$4:$X$52,CONCATENATE("(",Ergebnismenge!C141,", ",F157,")")) -> 0 | N157: =IF(AND(SUM($G$108:G156)>0,G157>0),", ","") -> 
C158: 2 | F158: grün | G158: =COUNTIF(Kugeln!$X$4:$X$52,CONCATENATE("(",Ergebnismenge!C142,", ",F158,")")) -> 2 | N158: =IF(AND(SUM($G$108:G157)>0,G158>0),", ","") -> , | O158: (grün, 2) | V158: , (grün, 2)
C159: 3 | F159: grün | G159: =COUNTIF(Kugeln!$X$4:$X$52,CONCATENATE("(",Ergebnismenge!C143,", ",F159,")")) -> 1 | N159: =IF(AND(SUM($G$108:G158)>0,G159>0),", ","") -> , | O159: (grün, 3) | V159: , (grün, 3)
C160: 4 | F160: grün | G160: =COUNTIF(Kugeln!$X$4:$X$52,CONCATENATE("(",Ergebnismenge!C144,", ",F160,")")) -> 2 | N160: =IF(AND(SUM($G$108:G159)>0,G160>0),", ","") -> , | O160: (grün, 4) | V160: , (grün, 4)
C161: 5 | F161: grün | G161: =COUNTIF(Kugeln!$X$4:$X$52,CONCATENATE("(",Ergebnismenge!C145,", ",F161,")")) -> 1 | N161: =IF(AND(SUM($G$108:G160)>0,G161>0),", ","") -> , | O161: (grün, 5) | V161: , (grün, 5)
C162: 6 | F162: grün | G162: =COUNTIF(Kugeln!$X$4:$X$52,CONCATENATE("(",Ergebnismenge!C146,", ",F162,")")) -> 2 | N162: =IF(AND(SUM($G$108:G161)>0,G162>0),", ","") -> , | O162: (grün, 6) | V162: , (grün, 6)
C163: 7 | F163: grün | G163: =COUNTIF(Kugeln!$X$4:$X$52,CONCATENATE("(",Ergebnismenge!C147,", ",F163,")")) -> 2 | N163: =IF(AND(SUM($G$108:G162)>0,G163>0),", ","") -> , | O163: (grün, 7) | V163: , (grün, 7)
C164: 8 | F164: grün | G164: =COUNTIF(Kugeln!$X$4:$X$52,CONCATENATE("(",Ergebnismenge!C148,", ",F164,")")) -> 3 | N164: =IF(AND(SUM($G$108:G163)>0,G164>0),", ","") -> , | O164: (grün, 8) | V164: , (grün, 8)
C165: 9 | F165: grün | G165: =COUNTIF(Kugeln!$X$4:$X$52,CONCATENATE("(",Ergebnismenge!C149,", ",F165,")")) -> 2 | N165: =IF(AND(SUM($G$108:G164)>0,G165>0),", ","") -> , | O165: (grün, 9) | V165: , (grün, 9)
C166: 10 | F166: grün | G166: =COUNTIF(Kugeln!$X$4:$X$52,CONCATENATE("(",Ergebnismenge!C150,", ",F166,")")) -> 0 | N166: =IF(AND(SUM($G$108:G165)>0,G166>0),", ","") -> 
C167: 11 | F167: grün | G167: =COUNTIF(Kugeln!$X$4:$X$52,CONCATENATE("(",Ergebnismenge!C151,", ",F167,")")) -> 0 | N167: =IF(AND(SUM($G$108:G166)>0,G167>0),", ","") -> 
C168: 12 | F168: grün | G168: =COUNTIF(Kugeln!$X$4:$X$52,CONCATENATE("(",Ergebnismenge!C152,", ",F168,")")) -> 0 | N168: =IF(AND(SUM($G$108:G167)>0,G168>0),", ","") -> 
C169: 13 | F169: grün | G169: =COUNTIF(Kugeln!$X$4:$X$52,CONCATENATE("(",Ergebnismenge!C153,", ",F169,")")) -> 0 | N169: =IF(AND(SUM($G$108:G168)>0,G169>0),", ","") -> 
C170: 14 | F170: grün | G170: =COUNTIF(Kugeln!$X$4:$X$52,CONCATENATE("(",Ergebnismenge!C154,", ",F170,")")) -> 0 | N170: =IF(AND(SUM($G$108:G169)>0,G170>0),", ","") -> 
C171: 15 | F171: grün | G171: =COUNTIF(Kugeln!$X$4:$X$52,CONCATENATE("(",Ergebnismenge!C155,", ",F171,")")) -> 0 | N171: =IF(AND(SUM($G$108:G170)>0,G171>0),", ","") -> 
C172: 16 | F172: grün | G172: =COUNTIF(Kugeln!$X$4:$X$52,CONCATENATE("(",Ergebnismenge!C156,", ",F172,")")) -> 0 | N172: =IF(AND(SUM($G$108:G171)>0,G172>0),", ","") -> 
C173: 17 | F173: grün | G173: =COUNTIF(Kugeln!$X$4:$X$52,CONCATENATE("(",Ergebnismenge!C157,", ",F173,")")) -> 0 | N173: =IF(AND(SUM($G$108:G172)>0,G173>0),", ","") -> 
C174: 18 | F174: grün | G174: =COUNTIF(Kugeln!$X$4:$X$52,CONCATENATE("(",Ergebnismenge!C158,", ",F174,")")) -> 0 | N174: =IF(AND(SUM($G$108:G173)>0,G174>0),", ","") -> 
C175: 19 | F175: grün | G175: =COUNTIF(Kugeln!$X$4:$X$52,CONCATENATE("(",Ergebnismenge!C159,", ",F175,")")) -> 0 | N175: =IF(AND(SUM($G$108:G174)>0,G175>0),", ","") ->  | O175: =IF(G175>0,CONCATENATE("(",F175,", ",C175,")"),"") -> 
C176: 20 | F176: grün | G176: =COUNTIF(Kugeln!$X$4:$X$52,CONCATENATE("(",Ergebnismenge!C160,", ",F176,")")) -> 0 | N176: =IF(AND(SUM($G$108:G175)>0,G176>0),", ","") -> 
C177: 21 | F177: grün | G177: =COUNTIF(Kugeln!$X$4:$X$52,CONCATENATE("(",Ergebnismenge!C161,", ",F177,")")) -> 0 | N177: =IF(AND(SUM($G$108:G176)>0,G177>0),", ","") ->  | V177: =CONCATENATE(N177,O177) -> 
C178: 22 | F178: grün | G178: =COUNTIF(Kugeln!$X$4:$X$52,CONCATENATE("(",Ergebnismenge!C162,", ",F178,")")) -> 0 | N178: =IF(AND(SUM($G$108:G177)>0,G178>0),", ","") -> 
C179: 23 | F179: grün | G179: =COUNTIF(Kugeln!$X$4:$X$52,CONCATENATE("(",Ergebnismenge!C163,", ",F179,")")) -> 0 | N179: =IF(AND(SUM($G$108:G178)>0,G179>0),", ","") -> 
C180: 24 | F180: grün | G180: =COUNTIF(Kugeln!$X$4:$X$52,CONCATENATE("(",Ergebnismenge!C164,", ",F180,")")) -> 0 | N180: =IF(AND(SUM($G$108:G179)>0,G180>0),", ","") -> 
C181: 25 | F181: grün | G181: =COUNTIF(Kugeln!$X$4:$X$52,CONCATENATE("(",Ergebnismenge!C165,", ",F181,")")) -> 0 | N181: =IF(AND(SUM($G$108:G180)>0,G181>0),", ","") -> 
C182: 26 | F182: grün | G182: =COUNTIF(Kugeln!$X$4:$X$52,CONCATENATE("(",Ergebnismenge!C166,", ",F182,")")) -> 0 | N182: =IF(AND(SUM($G$108:G181)>0,G182>0),", ","") -> 
C183: 27 | F183: grün | G183: =COUNTIF(Kugeln!$X$4:$X$52,CONCATENATE("(",Ergebnismenge!C167,", ",F183,")")) -> 0 | N183: =IF(AND(SUM($G$108:G182)>0,G183>0),", ","") -> 
C184: 28 | F184: grün | G184: =COUNTIF(Kugeln!$X$4:$X$52,CONCATENATE("(",Ergebnismenge!C168,", ",F184,")")) -> 0 | N184: =IF(AND(SUM($G$108:G183)>0,G184>0),", ","") -> 
C185: 29 | F185: grün | G185: =COUNTIF(Kugeln!$X$4:$X$52,CONCATENATE("(",Ergebnismenge!C169,", ",F185,")")) -> 0 | N185: =IF(AND(SUM($G$108:G184)>0,G185>0),", ","") -> 
C186: 30 | F186: grün | G186: =COUNTIF(Kugeln!$X$4:$X$52,CONCATENATE("(",Ergebnismenge!C170,", ",F186,")")) -> 0 | N186: =IF(AND(SUM($G$108:G185)>0,G186>0),", ","") -> 
C187: 31 | F187: grün | G187: =COUNTIF(Kugeln!$X$4:$X$52,CONCATENATE("(",Ergebnismenge!C171,", ",F187,")")) -> 0 | N187: =IF(AND(SUM($G$108:G186)>0,G187>0),", ","") -> 
C188: 32 | F188: grün | G188: =COUNTIF(Kugeln!$X$4:$X$52,CONCATENATE("(",Ergebnismenge!C172,", ",F188,")")) -> 0 | N188: =IF(AND(SUM($G$108:G187)>0,G188>0),", ","") -> 
C189: 33 | F189: grün | G189: =COUNTIF(Kugeln!$X$4:$X$52,CONCATENATE("(",Ergebnismenge!C173,", ",F189,")")) -> 0 | N189: =IF(AND(SUM($G$108:G188)>0,G189>0),", ","") -> 
C190: 34 | F190: grün | G190: =COUNTIF(Kugeln!$X$4:$X$52,CONCATENATE("(",Ergebnismenge!C174,", ",F190,")")) -> 0 | N190: =IF(AND(SUM($G$108:G189)>0,G190>0),", ","") -> 
C191: 35 | F191: grün | G191: =COUNTIF(Kugeln!$X$4:$X$52,CONCATENATE("(",Ergebnismenge!C175,", ",F191,")")) -> 0 | N191: =IF(AND(SUM($G$108:G190)>0,G191>0),", ","") -> 
C192: 36 | F192: grün | G192: =COUNTIF(Kugeln!$X$4:$X$52,CONCATENATE("(",Ergebnismenge!C176,", ",F192,")")) -> 0 | N192: =IF(AND(SUM($G$108:G191)>0,G192>0),", ","") -> 
C193: 37 | F193: grün | G193: =COUNTIF(Kugeln!$X$4:$X$52,CONCATENATE("(",Ergebnismenge!C177,", ",F193,")")) -> 0 | N193: =IF(AND(SUM($G$108:G192)>0,G193>0),", ","") -> 
C194: 38 | F194: grün | G194: =COUNTIF(Kugeln!$X$4:$X$52,CONCATENATE("(",Ergebnismenge!C178,", ",F194,")")) -> 0 | N194: =IF(AND(SUM($G$108:G193)>0,G194>0),", ","") -> 
C195: 39 | F195: grün | G195: =COUNTIF(Kugeln!$X$4:$X$52,CONCATENATE("(",Ergebnismenge!C179,", ",F195,")")) -> 0 | N195: =IF(AND(SUM($G$108:G194)>0,G195>0),", ","") -> 
C196: 40 | F196: grün | G196: =COUNTIF(Kugeln!$X$4:$X$52,CONCATENATE("(",Ergebnismenge!C180,", ",F196,")")) -> 0 | N196: =IF(AND(SUM($G$108:G195)>0,G196>0),", ","") -> 
C197: 41 | F197: grün | G197: =COUNTIF(Kugeln!$X$4:$X$52,CONCATENATE("(",Ergebnismenge!C181,", ",F197,")")) -> 0 | N197: =IF(AND(SUM($G$108:G196)>0,G197>0),", ","") -> 
C198: 42 | F198: grün | G198: =COUNTIF(Kugeln!$X$4:$X$52,CONCATENATE("(",Ergebnismenge!C182,", ",F198,")")) -> 0 | N198: =IF(AND(SUM($G$108:G197)>0,G198>0),", ","") -> 
C199: 43 | F199: grün | G199: =COUNTIF(Kugeln!$X$4:$X$52,CONCATENATE("(",Ergebnismenge!C183,", ",F199,")")) -> 0 | N199: =IF(AND(SUM($G$108:G198)>0,G199>0),", ","") -> 
C200: 44 | F200: grün | G200: =COUNTIF(Kugeln!$X$4:$X$52,CONCATENATE("(",Ergebnismenge!C184,", ",F200,")")) -> 0 | N200: =IF(AND(SUM($G$108:G199)>0,G200>0),", ","") -> 
C201: 45 | F201: grün | G201: =COUNTIF(Kugeln!$X$4:$X$52,CONCATENATE("(",Ergebnismenge!C185,", ",F201,")")) -> 0 | N201: =IF(AND(SUM($G$108:G200)>0,G201>0),", ","") -> 
C202: 46 | F202: grün | G202: =COUNTIF(Kugeln!$X$4:$X$52,CONCATENATE("(",Ergebnismenge!C186,", ",F202,")")) -> 0 | N202: =IF(AND(SUM($G$108:G201)>0,G202>0),", ","") -> 
C203: 47 | F203: grün | G203: =COUNTIF(Kugeln!$X$4:$X$52,CONCATENATE("(",Ergebnismenge!C187,", ",F203,")")) -> 0 | N203: =IF(AND(SUM($G$108:G202)>0,G203>0),", ","") -> 
C204: 48 | F204: grün | G204: =COUNTIF(Kugeln!$X$4:$X$52,CONCATENATE("(",Ergebnismenge!C188,", ",F204,")")) -> 0 | N204: =IF(AND(SUM($G$108:G203)>0,G204>0),", ","") -> 
C205: 49 | F205: grün | G205: =COUNTIF(Kugeln!$X$4:$X$52,CONCATENATE("(",Ergebnismenge!C189,", ",F205,")")) -> 0 | N205: =IF(AND(SUM($G$108:G204)>0,G205>0),", ","") -> 
C206: 1 | F206: blau | G206: =COUNTIF(Kugeln!$X$4:$X$52,CONCATENATE("(",Ergebnismenge!C190,", ",F206,")")) -> 0 | N206: =IF(AND(SUM($G$108:G205)>0,G206>0),", ","") -> 
C207: 2 | F207: blau | G207: =COUNTIF(Kugeln!$X$4:$X$52,CONCATENATE("(",Ergebnismenge!C191,", ",F207,")")) -> 1 | N207: =IF(AND(SUM($G$108:G206)>0,G207>0),", ","") -> , | O207: (blau, 2) | V207: , (blau, 2)
C208: 3 | F208: blau | G208: =COUNTIF(Kugeln!$X$4:$X$52,CONCATENATE("(",Ergebnismenge!C192,", ",F208,")")) -> 0 | N208: =IF(AND(SUM($G$108:G207)>0,G208>0),", ","") -> 
C209: 4 | F209: blau | G209: =COUNTIF(Kugeln!$X$4:$X$52,CONCATENATE("(",Ergebnismenge!C193,", ",F209,")")) -> 0 | N209: =IF(AND(SUM($G$108:G208)>0,G209>0),", ","") -> 
C210: 5 | F210: blau | G210: =COUNTIF(Kugeln!$X$4:$X$52,CONCATENATE("(",Ergebnismenge!C194,", ",F210,")")) -> 2 | N210: =IF(AND(SUM($G$108:G209)>0,G210>0),", ","") -> , | O210: (blau, 5) | V210: , (blau, 5)
C211: 6 | F211: blau | G211: =COUNTIF(Kugeln!$X$4:$X$52,CONCATENATE("(",Ergebnismenge!C195,", ",F211,")")) -> 0 | N211: =IF(AND(SUM($G$108:G210)>0,G211>0),", ","") -> 
C212: 7 | F212: blau | G212: =COUNTIF(Kugeln!$X$4:$X$52,CONCATENATE("(",Ergebnismenge!C196,", ",F212,")")) -> 1 | N212: =IF(AND(SUM($G$108:G211)>0,G212>0),", ","") -> , | O212: (blau, 7) | V212: , (blau, 7)
C213: 8 | F213: blau | G213: =COUNTIF(Kugeln!$X$4:$X$52,CONCATENATE("(",Ergebnismenge!C197,", ",F213,")")) -> 1 | N213: =IF(AND(SUM($G$108:G212)>0,G213>0),", ","") -> , | O213: (blau, 8) | V213: , (blau, 8)
C214: 9 | F214: blau | G214: =COUNTIF(Kugeln!$X$4:$X$52,CONCATENATE("(",Ergebnismenge!C198,", ",F214,")")) -> 2 | N214: =IF(AND(SUM($G$108:G213)>0,G214>0),", ","") -> , | O214: (blau, 9) | V214: , (blau, 9)
C215: 10 | F215: blau | G215: =COUNTIF(Kugeln!$X$4:$X$52,CONCATENATE("(",Ergebnismenge!C199,", ",F215,")")) -> 0 | N215: =IF(AND(SUM($G$108:G214)>0,G215>0),", ","") -> 
C216: 11 | F216: blau | G216: =COUNTIF(Kugeln!$X$4:$X$52,CONCATENATE("(",Ergebnismenge!C200,", ",F216,")")) -> 0 | N216: =IF(AND(SUM($G$108:G215)>0,G216>0),", ","") -> 
C217: 12 | F217: blau | G217: =COUNTIF(Kugeln!$X$4:$X$52,CONCATENATE("(",Ergebnismenge!C201,", ",F217,")")) -> 0 | N217: =IF(AND(SUM($G$108:G216)>0,G217>0),", ","") -> 
C218: 13 | F218: blau | G218: =COUNTIF(Kugeln!$X$4:$X$52,CONCATENATE("(",Ergebnismenge!C202,", ",F218,")")) -> 0 | N218: =IF(AND(SUM($G$108:G217)>0,G218>0),", ","") -> 
C219: 14 | F219: blau | G219: =COUNTIF(Kugeln!$X$4:$X$52,CONCATENATE("(",Ergebnismenge!C203,", ",F219,")")) -> 0 | N219: =IF(AND(SUM($G$108:G218)>0,G219>0),", ","") -> 
C220: 15 | F220: blau | G220: =COUNTIF(Kugeln!$X$4:$X$52,CONCATENATE("(",Ergebnismenge!C204,", ",F220,")")) -> 0 | N220: =IF(AND(SUM($G$108:G219)>0,G220>0),", ","") -> 
C221: 16 | F221: blau | G221: =COUNTIF(Kugeln!$X$4:$X$52,CONCATENATE("(",Ergebnismenge!C205,", ",F221,")")) -> 0 | N221: =IF(AND(SUM($G$108:G220)>0,G221>0),", ","") -> 
C222: 17 | F222: blau | G222: =COUNTIF(Kugeln!$X$4:$X$52,CONCATENATE("(",Ergebnismenge!C206,", ",F222,")")) -> 0 | N222: =IF(AND(SUM($G$108:G221)>0,G222>0),", ","") -> 
C223: 18 | F223: blau | G223: =COUNTIF(Kugeln!$X$4:$X$52,CONCATENATE("(",Ergebnismenge!C207,", ",F223,")")) -> 0 | N223: =IF(AND(SUM($G$108:G222)>0,G223>0),", ","") -> 
... 131 more rows
